{"text_format":"1","workbook":"xlsx","n_sheets":4,"sheets":["hodnoceni","vysledky","knt_tab","ranking"],"not_rendered":{"charts":0,"images":0,"macros":1,"external_links":0,"defined_names":1,"comments":0,"pivot_tables":14},"unopened":[],"bounds":{"document_bytes":16777216,"sheet_cells":100000,"rows_first":2000,"rows_last":500,"rows_between":2000,"halvings":0,"cell_chars":16384,"cell_head_chars":4096},"cells_cut":0,"cells_raw":0,"read":"whole","date_system":"1900"}

{"sheet":"hodnoceni","index":0,"n_rows":61,"n_cols":9,"rows_kept":61,"cut":false,"hidden":false,"merged":[]}
["1.      Kritéria pro bodování jednotlivců:"]
[]
["Každý závodník obdrží :"]
["a)","1 bod za vyhraný zápas v turnaji jednotlivců"]
["b)","2 body za vyhraný zápas v turnaji družstev"]
["c)","1 bod za remízu v turnaji družstev"]
["d)","počet bodů za umístění podle typu soutěže"]
[]
["1.1.  Mistrovské soutěže ( MK, MČR, ME, MS, soutěže družstev):"]
[]
["1.1.1        MK:",null,null,null,null,"1.1.3        ME:"]
["             ","1. místo                 7 bodů",null,null,null,"             ","1. místo                 50 bodů"]
["             ","2. místo                 5 bodů",null,null,null,"             ","2. místo                 40 bodů"]
["             ","3. místo                 4 body",null,null,null,"             ","3. místo                 35 bodů "]
[" ",null,null,null,null,"             ","5. místo                 30 bodů"]
[null,null,null,null,null,"             ","7. místo                 25 bodů"]
[null,null,null,null,null,"             ","9. místo                 20 bodů"]
["1.1.2        MČR:"]
["             ","1. místo                 20 bodů",null,null,null,"1.1.4        MS:"]
["             ","2. místo                 15 bodů",null,null,null,null,"1. místo                100 bodů"]
["             ","3. místo                 10 bodů ",null,null,null,null,"2. místo                 80 bodů"]
["             ","4. místo                   7 bodů ",null,null,null,null,"3. místo                 70 bodů "]
["             ","5. místo                   7 bodů",null,null,null,null,"5. místo                 60 bodů"]
["             ","6. místo                   5 bodů",null,null,null,null,"7. místo                 50 bodů"]
[null,"7. místo                   5 bodů",null,null,null,null,"9. místo                 40 bodů"]
[]
["1.2.    Nemistrovské soutěže ( MC, PK, VC, MVC, KT, MT, PČR, EJU, soutěže družstev):"]
[]
["1.2.1        MC a ostatní :",null,null,null,null,"1.2.2        VC, MVC, PK a PSO:"]
["             ","1. místo                  4      body",null,null,null,null,"1.místo                  6    bodů"]
["             ","2. místo                  3      body",null,null,null,null,"2. místo                 5    bodů"]
["             ","3. místo                  2      body ",null,null,null,null,"3. místo                 3    body "]
[null,null,null,null,null," "]
["1.2.3        KT, MT a PČR:",null,null,null,null,"1.2.4        EJU:"]
["             ","1. místo               10 bodů",null,null,null,"           ","1. místo                 35 bodů"]
["             ","2. místo                 7 bodů",null,null,null,"             ","2. místo                 30 bodů"]
["             ","3. místo                 5 bodů ",null,null,null,"             ","3. místo                 25 bodů "]
["             ","4. místo                 3 body ",null,null,null,"             ","5. místo                 20 bodů "]
["             ","5. místo                 3 body ",null,null,null,"             ","7. místo                 15 bodů"]
["             ","6. místo                 2 body ",null,null,null,"             ","9. místo                 10 bodů"]
[null,"7. místo                 2 body"]
[null,null,null,null,null,"1.2.4        EYOF:"]
[null,null,null,null,null,"           ","1. místo                 50 bodů"]
[null,null,null,null,null,"             ","2. místo                 40 bodů"]
[null,null,null,null,null,"             ","3. místo                 35 bodů "]
[null,null,null,null,null,"             ","5. místo                 30 bodů "]
[null,null,null,null,null,"             ","7. místo                 25 bodů"]
[null,null,null,null,null,"             ","9. místo                 20 bodů"]
[]
["Legenda :"]
["MC","malá cena",null,null,null,null,null,"MK","mistrovství kraje"]
["VC ","ostatní turnaje zařazené do kal. ČSJu",null,null,null,null,null,"MČR","mistrovství České republiky"]
["MVC","mezinárodní velká cena",null,null,null,null,null,"ME","mistrovství Evropy"]
["PK","přebor kraje",null,null,null,null,null,"DL","dorostenecká liga"]
["PČR","přebor České republiky",null,null,null,null,null,"EXL","extraliga mužů"]
["KT","kvalifikační turnaj na PČR, MČR",null,null,null,null,null,"PSO","přebor spojených oblastí"]
["MT","turnaj za účasti více než 3 států",null,null,null,null,null,"MS","mistrovství světa"]
["EJU","turnaj zařazen do kalendáře Evropské federace juda",null,null,null,null,null,"EYOF","Evropský olympijský festival mládeže"]
[]
["V Ostravě 17.11.2011"]
["M. Pavlica"]

{"sheet":"vysledky","index":1,"n_rows":996,"n_cols":23,"rows_kept":996,"cut":false,"hidden":false,"merged":[]}
["datum","nazev","typ_souteze","jedn./dr.","Primeni","Jmeno","umisteni","kategorie","vaha","vyhr_zap","rem_zap","prohr_zap","body_um","body_zap","zavodnik","body",null,"Typ soutěže",null,"Bodování"]
["2015-01-24","Těšínský turnaj žáků","MC","j","Jakubec","Lukáš",3,"mladší žáci","30",1,0,2,{"$f":"IF(ISNA(VLOOKUP(C2&G2,$V$3:$W$83,2,FALSE)),0,VLOOKUP(C2&G2,$V$3:$W$83,2,FALSE))","v":2},{"$f":"IF(D2=\"d\",SUM(J2*2,K2),J2)","v":1},{"$f":"E2&\" \"&F2","v":"Jakubec Lukáš"},{"$f":"SUM(M2,N2)","v":3},null,"MC",null,"typ_souteze","umisteni","kód","body"]
["2015-01-24","Těšínský turnaj žáků","MC","j","Zabek","Matyáš",2,"mladší žáci","38",2,0,1,3,{"$f":"IF(D3=\"d\",SUM(J3*2,K3),J3)","v":2},"Zabek Matyáš",{"$f":"SUM(M3,N3)","v":5},null,"VC",null,"EJU",1,{"$f":"T3&U3","v":"EJU1"},35]
["2015-01-24","Těšínský turnaj žáků","MC","j","Tomek","David",4,"mladší žáci","42",1,0,3,0,1,"Tomek David",1,null,"MVC",null,"EJU",2,"EJU2",30]
["2015-01-24","Těšínský turnaj žáků","MC","j","Motyka","Dominik",2,"mladší žáci","+60",0,0,2,3,0,"Motyka Dominik",3,null,"PK",null,"EJU",3,"EJU3",25]
["2015-01-24","Těšínský turnaj žáků","MC","j","Hrtus","Rostislav",1,"mladší žáci","55",2,0,0,4,2,"Hrtus Rostislav",6,null,"PCR",null,"EJU",5,"EJU5",20]
["2015-01-24","Těšínský turnaj žáků","MC","j","Král","Miroslav",2,"starší žáci","50",0,0,2,3,0,"Král Miroslav",3,null,"PSO",null,"EJU",7,"EJU7",15]
["2015-01-24","Těšínský turnaj žáků","MC","j","Pelikán","Dominik",2,"starší žáci","46",0,0,2,3,0,"Pelikán Dominik",3,null,"KT",null,"EJU",9,"EJU9",10]
["2015-01-24","IV.Ročník Velké Ceny - České Třebové","VC","j","Brzusková","Marie",3,"starší žákyně","44",1,0,1,3,1,"Brzusková Marie",4,null,"MK",null,"KT",1,"KT1",10]
["2015-01-24","IV.Ročník Velké Ceny - České Třebové","VC","j","Kuncová","Viktorie",1,"starší žákyně","44",1,0,1,6,1,"Kuncová Viktorie",7,null,"MCR",null,"KT",2,"KT2",7]
["2015-01-24","IV.Ročník Velké Ceny - České Třebové","VC","j","Havlíčková","Barbora",2,"starší žákyně","48",2,0,1,5,2,"Havlíčková Barbora",7,null,"DL",null,"KT",3,"KT3",5]
["2015-01-24","IV.Ročník Velké Ceny - České Třebové","VC","j","Pavlica","Lukáš",7,"starší žáci","46",2,0,2,0,2,"Pavlica Lukáš",2,null,"EXL",null,"KT",4,"KT4",3]
["2015-01-24","IV.Ročník Velké Ceny - České Třebové","VC","j","Mojžíšek","Lukáš",3,"starší žáci","55",2,0,1,3,2,"Mojžíšek Lukáš",5,null,"EJU",null,"KT",5,"KT5",3]
["2015-01-24","IV.Ročník Velké Ceny - České Třebové","VC","j","Blažej","Jan","bez","starší žáci","55",0,0,1,0,0,"Blažej Jan",0,null,"EYOF",null,"KT",6,"KT6",2]
["2015-01-24","IV.Ročník Velké Ceny - České Třebové","VC","j","Pavlica","Tomáš",5,"starší žáci","73",1,0,2,0,1,"Pavlica Tomáš",1,null,"ME",null,"KT",7,{"$f":"T15&U15","v":"KT7"},2]
["2015-01-24","IV.Ročník Velké Ceny - České Třebové","VC","j","Král","Jan",3,"starší žáci","73",1,0,1,3,1,"Král Jan",4,null,"MT",null,"MC",1,"MC1",4]
["2015-01-31","MT - Pohár Nadějí - Olomouc ","VC","j","Chwastarzová","Alena",1,"dorostenky","57",4,0,0,6,4,"Chwastarzová Alena",10,null,"MS",null,"MC",2,"MC2",3]
["2015-01-31","MT - Pohár Nadějí - Olomouc ","VC","j","Polášková","Kristýna",5,"dorostenky","63",1,0,2,0,1,"Polášková Kristýna",1,null,null,null,"MC",3,"MC3",2]
["2015-01-31","MT - Pohár Nadějí - Olomouc ","VC","j","Martínková","Adéla",3,"dorostenky","63",2,0,1,3,2,"Martínková Adéla",5,null,"Věkové kategorie",null,"MCR",1,"MCR1",20]
["2015-01-31","MT - Pohár Nadějí - Olomouc ","VC","j","Ondrašíková","Eva",2,"dorostenky","+70",0,0,2,5,0,"Ondrašíková Eva",5,null,"mláďata",null,"MCR",2,"MCR2",15]
["2015-01-31","MT - Pohár Nadějí - Olomouc ","VC","j","Pátek","Jan",3,"dorostenci","73",3,0,1,3,3,"Pátek Jan",6,null,"mladší žákyně",null,"MCR",3,"MCR3",10]
["2015-01-31","MT - Pohár Nadějí - Olomouc ","VC","j","Raška","Michael",3,"dorostenci","90",3,0,2,3,3,"Raška Michael",6,null,"mladší žáci",null,"MCR",4,"MCR4",7]
["2015-01-31","MT - Pohár Nadějí - Olomouc ","VC","j","Pustějovský","Tomáš",7,"dorostenci","81",1,0,2,0,1,"Pustějovský Tomáš",1,null,"starší žákyně",null,"MCR",5,"MCR5",7]
["2015-01-31","MT - Pohár Nadějí - Olomouc ","VC","j","Franek","Patrik",5,"dorostenci","50",0,0,4,0,0,"Franek Patrik",0,null,"starší žáci",null,"MCR",6,"MCR6",5]
["2015-01-31","MT - Pohár Nadějí - Olomouc ","VC","j","Šmehlík","František",1,"junioři","73",3,0,0,6,3,"Šmehlík František",9,null,"dorostenky",null,"MCR",7,{"$f":"T25&U25","v":"MCR7"},5]
["2015-01-31","MT - Pohár Nadějí - Olomouc ","VC","j","Selecký","Lukáš",2,"junioři","66",2,0,1,5,2,"Selecký Lukáš",7,null,"dorostenci",null,"EYOF",1,"EYOF1",50]
["2015-01-31","MT - Pohár Nadějí - Olomouc ","VC","j","Král","Jakub",3,"junioři","+100",1,0,2,3,1,"Král Jakub",4,null,"juniorky",null,"EYOF",2,"EYOF2",40]
["2015-01-31","MT - Pohár Nadějí - Olomouc ","VC","j","Ochman","Martin","bez","junioři","81",0,0,1,0,0,"Ochman Martin",0,null,"junioři",null,"EYOF",3,"EYOF3",35]
["2015-02-07","USK - CUP - Praha","KT","j","Kohn","Pavel",7,"muži","66",1,0,2,2,1,"Kohn Pavel",3,null,"ženy",null,"EYOF",5,"EYOF5",30]
["2015-02-07","USK - CUP - Praha","KT","j","Kohn","Tomáš",7,"muži","66",1,0,2,2,1,"Kohn Tomáš",3,null,"muži",null,"EYOF",7,"EYOF7",25]
["2015-02-07","USK - CUP - Praha","KT","j","Otto","Matyáš",5,"muži","73",2,0,2,3,2,"Otto Matyáš",5,null,"veteráni",null,"EYOF",9,"EYOF9",20]
["2015-02-07","USK - CUP - Praha","KT","j","Šeděnka","Richard",7,"muži","73",2,0,2,2,2,"Šeděnka Richard",4,null,"kata",null,"ME",1,{"$f":"T32&U32","v":"ME1"},50]
["2015-02-07","USK - CUP - Praha","KT","j","Svoboda","Jiří",9,"muži","81",1,0,2,0,1,"Svoboda Jiří",1,null,null,null,"ME",2,"ME2",40]
["2015-02-07","USK - CUP - Praha","KT","j","Ochman","Marek","bez","muži","81",0,0,1,0,0,"Ochman Marek",0,null,null,null,"ME",3,"ME3",35]
["2015-02-07","USK - CUP - Praha","KT","j","Král","Jakub",5,"muži","+100",0,0,1,3,0,"Král Jakub",3,null,null,null,"ME",5,"ME5",30]
["2015-02-28","Moravská liga mužů - 1.kolo - Brno","PSO","d","Kohn","Pavel",null,"muži","60",4,1,0,0,9,"Kohn Pavel",9,null,null,null,"ME",7,"ME7",25]
["2015-02-28","Moravská liga mužů - 1.kolo - Brno","PSO","d","Selecký","Lukáš",null,"muži","66",3,0,0,0,6,"Selecký Lukáš",6,null,null,null,"ME",9,"ME9",20]
["2015-02-28","Moravská liga mužů - 1.kolo - Brno","PSO","d","Kohn","Tomáš",null,"muži","66",2,0,0,0,4,"Kohn Tomáš",4,null,null,null,"MK",1,"MK1",7]
["2015-02-28","Moravská liga mužů - 1.kolo - Brno","PSO","d","Ochman","Marek",null,"muži","73",2,0,1,0,4,"Ochman Marek",4,null,null,null,"MK",2,"MK2",5]
["2015-02-28","Moravská liga mužů - 1.kolo - Brno","PSO","d","Šeděnka","Richard",null,"muži","73",1,0,1,0,2,"Šeděnka Richard",2,null,null,null,"MK",3,"MK3",4]
["2015-02-28","Moravská liga mužů - 1.kolo - Brno","PSO","d","Otto","Matyáš",null,"muži"," 81",3,0,0,0,6,"Otto Matyáš",6,null,null,null,"MVC",1,"MVC1",6]
["2015-02-28","Moravská liga mužů - 1.kolo - Brno","PSO","d","Svoboda","Jiří",null,"muži","81",3,0,0,0,6,"Svoboda Jiří",6,null,null,null,"MVC",2,"MVC2",5]
["2015-02-28","Moravská liga mužů - 1.kolo - Brno","PSO","d","Pustějovský","Tomáš",null,"muži","90",0,0,3,0,0,"Pustějovský Tomáš",0,null,null,null,"MVC",3,"MVC3",3]
["2015-02-28","Moravská liga mužů - 1.kolo - Brno","PSO","d","Raška","Michael",null,"muži","90",2,0,1,0,4,"Raška Michael",4,null,null,null,"PCR",1,"PCR1",10]
["2015-02-28","Moravská liga mužů - 1.kolo - Brno","PSO","d","Martínek","Roman",null,"muži","100",4,0,0,0,8,"Martínek Roman",8,null,null,null,"PCR",2,"PCR2",7]
["2015-02-28","Moravská liga mužů - 1.kolo - Brno","PSO","d","Král","Jakub",null,"muži","+100",3,0,1,0,6,"Král Jakub",6,null,null,null,"PCR",3,"PCR3",5]
["2015-02-14","Grand Prix Ostrava - KT","KT","j","Jakubec","Lukáš",7,"mladší žáci","30",0,0,1,2,0,"Jakubec Lukáš",2,null,null,null,"PCR",4,"PCR4",3]
["2015-02-14","Grand Prix Ostrava - KT","KT","j","Malaczynski","Filip",5,"mladší žáci","30",1,0,2,3,1,"Malaczynski Filip",4,null,null,null,"PCR",5,"PCR5",3]
["2015-02-14","Grand Prix Ostrava - KT","KT","j","Kunc","Matěj","bez","mladší žáci","34",3,0,1,0,3,"Kunc Matěj",3,null,null,null,"PCR",6,"PCR6",2]
["2015-02-14","Grand Prix Ostrava - KT","KT","j","Matýsek","Jan","bez","mladší žáci","34",0,0,1,0,0,"Matýsek Jan",0,null,null,null,"PCR",7,{"$f":"T50&U50","v":"PCR7"},2]
["2015-02-14","Grand Prix Ostrava - KT","KT","j","Meixner","Tomáš",7,"mladší žáci","34",3,0,2,2,3,"Meixner Tomáš",5,null,null,null,"PK",1,{"$f":"T51&U51","v":"PK1"},6]
["2015-02-14","Grand Prix Ostrava - KT","KT","j","Zabek","Matyáš","bez","mladší žáci","38",0,0,2,0,0,"Zabek Matyáš",0,null,null,null,"PK",2,"PK2",5]
["2015-02-14","Grand Prix Ostrava - KT","KT","j","Bulka","Vojtěch","bez","mladší žáci","38",1,0,1,0,1,"Bulka Vojtěch",1,null,null,null,"PK",3,"PK3",3]
["2015-02-14","Grand Prix Ostrava - KT","KT","j","Tycar","Štěpán",3,"mladší žáci","38",5,0,1,5,5,"Tycar Štěpán",10,null,null,null,"VC",1,"VC1",6]
["2015-02-14","Grand Prix Ostrava - KT","KT","j","Křížek","Šimon","bez","mladší žáci","42",0,0,1,0,0,"Křížek Šimon",0,null,null,null,"VC",2,"VC2",5]
["2015-02-14","Grand Prix Ostrava - KT","KT","j","Turčínek","Tomáš","bez","mladší žáci","50",0,0,2,0,0,"Turčínek Tomáš",0,null,null,null,"VC",3,"VC3",3]
["2015-02-14","Grand Prix Ostrava - KT","KT","j","Hrtus","Rostislav",3,"mladší žáci","55",3,0,1,5,3,"Hrtus Rostislav",8,null,null,null,"MT",1,"MT1",10]
["2015-02-14","Grand Prix Ostrava - KT","KT","j","Franek","Adam",2,"mladší žáci","55",3,0,1,7,3,"Franek Adam",10,null,null,null,"MT",2,"MT2",7]
["2015-02-14","Grand Prix Ostrava - KT","KT","j","Motyka","Dominik",3,"mladší žáci","+60",2,0,1,5,2,"Motyka Dominik",7,null,null,null,"MT",3,"MT3",5]
["2015-02-14","Grand Prix Ostrava - KT","KT","j","Václavková","Tereza",7,"mladší žákyně","36",2,0,1,2,2,"Václavková Tereza",4,null,null,null,"MT",4,"MT4",3]
["2015-02-14","Grand Prix Ostrava - KT","KT","j","Kokešová","Alexandra","bez","mladší žákyně","44",2,0,1,0,2,"Kokešová Alexandra",2,null,null,null,"MT",5,"MT5",3]
["2015-02-14","Grand Prix Ostrava - KT","KT","j","Pelikán","Dominik","bez","starší žáci","46",1,0,2,0,1,"Pelikán Dominik",1,null,null,null,"MT",6,{"$f":"T62&U62","v":"MT6"},2]
["2015-02-14","Grand Prix Ostrava - KT","KT","j","Janečka","Jakub","bez","starší žáci","55",0,0,1,0,0,"Janečka Jakub",0,null,null,null,"MT",7,{"$f":"T63&U63","v":"MT7"},2]
["2015-02-14","Grand Prix Ostrava - KT","KT","j","Blažej","Jan","bez","starší žáci","55",0,0,1,0,0,"Blažej Jan",0,null,null,null,"DL",1,"DL1",20]
["2015-02-14","Grand Prix Ostrava - KT","KT","j","Mojžíšek","Lukáš",7,"starší žáci","55",3,0,2,2,3,"Mojžíšek Lukáš",5,null,null,null,"DL",2,"DL2",15]
["2015-02-14","Grand Prix Ostrava - KT","KT","j","Kresta","Matěj",3,"starší žáci","55",4,0,1,{"$f":"IF(ISNA(VLOOKUP(C66&G66,$V$3:$W$83,2,FALSE)),0,VLOOKUP(C66&G66,$V$3:$W$83,2,FALSE))","v":5},4,{"$f":"E66&\" \"&F66","v":"Kresta Matěj"},9,null,null,null,"DL",3,"DL3",10]
["2015-02-14","Grand Prix Ostrava - KT","KT","j","Moravec","Jan","bez","starší žáci","66",1,0,2,0,{"$f":"IF(D67=\"d\",SUM(J67*2,K67),J67)","v":1},"Moravec Jan",{"$f":"SUM(M67,N67)","v":1},null,null,null,"DL",4,"DL4",7]
["2015-02-14","Grand Prix Ostrava - KT","KT","j","Král","Jan",7,"starší žáci","73",0,0,2,2,0,"Král Jan",2,null,null,null,"DL",5,"DL5",7]
["2015-02-14","Grand Prix Ostrava - KT","KT","j","Brzusková","Marie",7,"starší žákyně","44",1,0,2,2,1,"Brzusková Marie",3,null,null,null,"DL",6,"DL6",5]
["2015-02-14","Grand Prix Ostrava - KT","KT","j","Kuncová","Viktorie",7,"starší žákyně","44",1,0,2,2,1,"Kuncová Viktorie",3,null,null,null,"DL",7,{"$f":"T70&U70","v":"DL7"},5]
["2015-02-14","Grand Prix Ostrava - KT","KT","j","Havlíčková","Barbora","bez","starší žákyně","48",0,0,2,0,0,"Havlíčková Barbora",0,null,null,null,"EXL",1,{"$f":"T71&U71","v":"EXL1"},20]
["2015-02-15","Grand Prix Ostrava - KT","KT","j","Selecký","Lukáš",1,"junioři","66",3,0,0,10,3,"Selecký Lukáš",13,null,null,null,"EXL",2,"EXL2",15]
["2015-02-15","Grand Prix Ostrava - KT","KT","j","Šmehlík","František",2,"junioři","73",3,0,1,7,3,"Šmehlík František",10,null,null,null,"EXL",3,"EXL3",10]
["2015-02-15","Grand Prix Ostrava - KT","KT","j","Svoboda","Jiří",1,"junioři","81",3,0,0,10,3,"Svoboda Jiří",13,null,null,null,"EXL",4,"EXL4",7]
["2015-02-15","Grand Prix Ostrava - KT","KT","j","Král","Jakub",1,"junioři","+100",2,0,0,10,2,"Král Jakub",12,null,null,null,"EXL",5,"EXL5",7]
["2015-02-15","Grand Prix Ostrava - KT","KT","j","Ochman","Marek","bez","junioři","81",0,0,2,0,0,"Ochman Marek",0,null,null,null,"EXL",6,"EXL6",5]
["2015-02-15","Grand Prix Ostrava - KT","KT","j","Nikolas","Koval","bez","dorostenci","46",0,0,2,0,0,"Nikolas Koval",0,null,null,null,"EXL",7,{"$f":"T77&U77","v":"EXL7"},5]
["2015-02-15","Grand Prix Ostrava - KT","KT","j","Bittner","Michael","bez","dorostenci","46",0,0,2,0,0,"Bittner Michael",0,null,null,null,"MS",1,{"$f":"T78&U78","v":"MS1"},100]
["2015-02-15","Grand Prix Ostrava - KT","KT","j","Franek","Patrik",5,"dorostenci","50",2,0,2,3,2,"Franek Patrik",5,null,null,null,"MS",2,"MS2",80]
["2015-02-15","Grand Prix Ostrava - KT","KT","j","Janík","Tadeáš","bez","dorostenci","66",0,0,1,0,0,"Janík Tadeáš",0,null,null,null,"MS",3,"MS3",70]
["2015-02-15","Grand Prix Ostrava - KT","KT","j","Pátek","Jan",5,"dorostenci","73",4,0,2,3,4,"Pátek Jan",7,null,null,null,"MS",5,"MS5",60]
["2015-02-15","Grand Prix Ostrava - KT","KT","j","Pustějovský","Tomáš",2,"dorostenci","90",4,0,1,7,4,"Pustějovský Tomáš",11,null,null,null,"MS",7,"MS7",50]
["2015-02-15","Grand Prix Ostrava - KT","KT","j","Raška","Michael",5,"dorostenci","90",2,0,3,3,2,"Raška Michael",5,null,null,null,"MS",9,"MS9",40]
["2015-02-15","Grand Prix Ostrava - KT","KT","j","Ondrašíková","Eva",5,"dorostenky","+70",1,0,4,3,1,"Ondrašíková Eva",4]
["2015-02-15","Grand Prix Ostrava - KT","KT","j","Chwastarzová","Alena",2,"dorostenky","57",3,0,1,7,3,"Chwastarzová Alena",10]
["2015-02-15","Grand Prix Ostrava - KT","KT","j","Polášková","Kristýna",1,"dorostenky","57",4,0,0,10,4,"Polášková Kristýna",14]
["2015-03-07","Dorostenecká liga I. Kolo- Brno","DL","d","Raška","Michael",null,"dorostenci","90",5,0,0,0,10,"Raška Michael",10]
["2015-03-07","Dorostenecká liga I. Kolo- Brno","DL","d","Pustějovský","Tomáš",null,"dorostenci","81",5,0,0,0,10,"Pustějovský Tomáš",10]
["2015-03-07","Dorostenecká liga I. Kolo- Brno","DL","d","Pupakis","Sotirios",null,"dorostenci","73",2,0,2,0,4,"Pupakis Sotirios",4]
["2015-03-07","Dorostenecká liga I. Kolo- Brno","DL","d","Franek","Patrik",null,"dorostenci","50",1,0,1,0,2,"Franek Patrik",2]
["2015-03-07","Dorostenecká liga I. Kolo- Brno","DL","d","Kresta","Matěj",null,"dorostenci","55",1,0,3,0,2,"Kresta Matěj",2]
["2015-03-07","Dorostenecká liga I. Kolo- Brno","DL","d","Pátek","Jan",null,"dorostenci","73",0,0,1,0,0,"Pátek Jan",0]
["2015-03-07","Dorostenecká liga I. Kolo- Brno","DL","d","Rovenský","Ondřej",null,"dorostenci","66",0,0,2,0,0,"Rovenský Ondřej",0]
["2015-03-15","Kvalifikační turnaj - Jablonec nad Nisou","KT","j","Král","Jakub",1,"junioři","+100",3,0,0,10,3,"Král Jakub",13]
["2015-03-15","Kvalifikační turnaj - Jablonec nad Nisou","KT","j","Franek","Patrik",5,"dorostenci","50",1,0,2,3,1,"Franek Patrik",4]
["2015-03-15","Kvalifikační turnaj - Jablonec nad Nisou","KT","j","Janík","Tadeáš","bez","dorostenci","66",0,0,2,0,0,"Janík Tadeáš",0]
["2015-03-15","Kvalifikační turnaj - Jablonec nad Nisou","KT","j","Pustějovský","Tomáš",3,"dorostenci","90",2,0,1,5,2,"Pustějovský Tomáš",7]
["2015-03-15","Kvalifikační turnaj - Jablonec nad Nisou","KT","j","Raška","Michael",1,"dorostenci","90",4,0,0,10,4,"Raška Michael",14]
["2015-03-15","Kvalifikační turnaj - Jablonec nad Nisou","KT","j","Pupakis","Sotirios","bez","dorostenci","73",1,0,1,0,1,"Pupakis Sotirios",1]
["2015-03-15","Kvalifikační turnaj - Jablonec nad Nisou","KT","j","Kresta","Matěj","bez","dorostenci","55",0,0,1,0,0,"Kresta Matěj",0]
["2015-03-15","Kvalifikační turnaj - Jablonec nad Nisou","KT","j","Huvar","Jan","bez","dorostenci","60",0,0,1,0,0,"Huvar Jan",0]
["2015-03-15","Kvalifikační turnaj - Jablonec nad Nisou","KT","j","Ondrašíková","Eva",5,"dorostenky","+70",1,0,2,3,1,"Ondrašíková Eva",4]
["2015-03-15","Kvalifikační turnaj - Jablonec nad Nisou","KT","j","Chwastarzová","Alena",3,"dorostenky","57",3,0,1,5,3,"Chwastarzová Alena",8]
["2015-03-15","Kvalifikační turnaj - Jablonec nad Nisou","KT","j","Polášková","Kristýna",1,"dorostenky","57",4,0,0,10,4,"Polášková Kristýna",14]
["2015-03-15","Kvalifikační turnaj - Jablonec nad Nisou","KT","j","Martínková","Adéla",5,"dorostenky","63",4,0,2,3,4,"Martínková Adéla",7]
["2015-03-22","International masters U21 Bremen","EJU","j","Selecký","Lukáš","bez","junioři","66",1,0,2,0,1,"Selecký Lukáš",1]
["2015-03-22","International masters U21 Bremen","EJU","j","Šmehlík","František","bez","junioři","73",2,0,2,0,2,"Šmehlík František",2]
["2015-03-28","Velikonoční turnaj v Karviné","MC","j","Pavlica","Lukáš",2,"starší žáci","46",2,0,1,3,2,"Pavlica Lukáš",5]
["2015-03-28","Junior European Judo Cup - Lignano","EJU","j","Selecký","Lukáš","bez","junioři","66",0,0,2,0,0,"Selecký Lukáš",0]
["2015-03-28","Junior European Judo Cup - Lignano","EJU","j","Šmehlík","František",7,"junioři","73",4,0,2,15,4,"Šmehlík František",19]
["2015-03-28","Moravská liga mužů - 2.kolo - Brno","PSO","d","Kohn","Pavel",null,"muži","60",4,0,0,0,8,"Kohn Pavel",8]
["2015-03-28","Moravská liga mužů - 2.kolo - Brno","PSO","d","Kohn","Tomáš",null,"muži","66",4,0,0,0,8,"Kohn Tomáš",8]
["2015-03-28","Moravská liga mužů - 2.kolo - Brno","PSO","d","Šeděnka","Richard",null,"muži","73",3,0,1,0,6,"Šeděnka Richard",6]
["2015-03-28","Moravská liga mužů - 2.kolo - Brno","PSO","d","Svoboda","Jiří",null,"muži","81",4,0,0,0,8,"Svoboda Jiří",8]
["2015-03-28","Moravská liga mužů - 2.kolo - Brno","PSO","d","Raška","Michael",null,"muži","90",4,0,0,0,8,"Raška Michael",8]
["2015-03-28","Moravská liga mužů - 2.kolo - Brno","PSO","d","Schöffer","Radim",null,"muži","100",3,0,1,0,6,"Schöffer Radim",6]
["2015-03-28","Moravská liga mužů - 2.kolo - Brno","PSO","d","Král","Jakub",null,"muži","+100",2,0,2,0,4,"Král Jakub",4]
["2015-03-21","MT Bad Blankenburg (GER) – U18 a U21","MT","j","Chwastarzová","Alena","bez","dorostenky","52",0,0,1,0,0,"Chwastarzová Alena",0]
["2015-03-21","MT Bad Blankenburg (GER) – U18 a U21","MT","j","Polášková","Kristýna","bez","dorostenky","63",0,0,1,0,0,"Polášková Kristýna",0]
["2015-03-28","Krajský přebor - Ostrava","PK","j","Martínková","Adéla",1,"dorostenky","70",2,0,0,6,2,"Martínková Adéla",8]
["2015-03-28","Krajský přebor - Ostrava","PK","j","Franek","Patrik",2,"dorostenci","50",1,0,1,5,1,"Franek Patrik",6]
["2015-03-28","Krajský přebor - Ostrava","PK","j","Kresta","Matěj",1,"dorostenci","60",2,0,0,6,2,"Kresta Matěj",8]
["2015-03-28","Krajský přebor - Ostrava","PK","j","Kocman","Petr",1,"dorostenci","55",2,0,0,6,2,"Kocman Petr",8]
["2015-03-28","Krajský přebor - Ostrava","PK","j","Koval","Nikolas",2,"dorostenci","46",0,0,2,5,0,"Koval Nikolas",5]
["2015-03-28","Krajský přebor - Ostrava","PK","j","Šmatelka","Ondřej","bez","dorostenci","66",0,0,4,0,0,"Šmatelka Ondřej",0]
["2015-03-28","Krajský přebor - Ostrava","PK","j","Ondrašíková","Eva",2,"dorostenky","+70",0,0,2,5,0,"Ondrašíková Eva",5]
["2015-03-28","Krajský přebor - Ostrava","PK","j","Rajna","Adam","bez","dorostenci","66",0,0,4,0,0,"Rajna Adam",0]
["2015-03-28","Krajský přebor - Ostrava","PK","j","Rovenský","Ondřej","bez","dorostenci","66",2,0,2,0,2,"Rovenský Ondřej",2]
["2015-03-28","Krajský přebor - Ostrava","PK","j","Novák","Pavel",3,"muži","100",1,0,2,3,1,"Novák Pavel",4]
["2015-03-28","Krajský přebor - Ostrava","PK","j","Koza","Dušan",1,"muži","100",3,0,0,{"$f":"IF(ISNA(VLOOKUP(C130&G130,$V$3:$W$83,2,FALSE)),0,VLOOKUP(C130&G130,$V$3:$W$83,2,FALSE))","v":6},3,{"$f":"E130&\" \"&F130","v":"Koza Dušan"},9]
["2015-03-28","Krajský přebor - Ostrava","PK","j","Ševčíková","Sabina","bez","dorostenky","52",0,0,3,0,{"$f":"IF(D131=\"d\",SUM(J131*2,K131),J131)","v":0},"Ševčíková Sabina",{"$f":"SUM(M131,N131)","v":0}]
["2015-03-28","Krajský přebor - Ostrava","PK","j","Janík","Tadeáš","bez","dorostenci","66",1,0,3,0,1,"Janík Tadeáš",1]
["2015-04-05","EUROPEAN CUP CADETS TVER","EJU","j","Polášková","Kristýna","bez","dorostenky","63",1,0,1,0,1,"Polášková Kristýna",1]
["2015-04-04","Junior European Judo Cup Athens ","EJU","j","Selecký","Lukáš","bez","junioři","66",0,0,1,0,0,"Selecký Lukáš",0]
["2015-05-05","Junior European Judo Cup Athens ","EJU","j","Šmehlík","František","bez","junioři","73",0,0,1,0,0,"Šmehlík František",0]
["2015-03-21","Grand Prix Ostrava - KT","KT","j","Kohn","Pavel",3,"muži","66",0,0,2,5,0,"Kohn Pavel",5]
["2015-03-21","Grand Prix Ostrava - KT","KT","j","Kohn","Tomáš",1,"muži","66",2,0,0,10,2,"Kohn Tomáš",12]
["2015-03-21","Grand Prix Ostrava - KT","KT","j","Šeděnka","Richard","bez","muži","73",0,0,2,0,0,"Šeděnka Richard",0]
["2015-03-21","Grand Prix Ostrava - KT","KT","j","Otto","Matyáš",3,"muži","73",3,0,1,5,3,"Otto Matyáš",8]
["2015-03-21","Grand Prix Ostrava - KT","KT","j","Holý","Martin",5,"muži","81",1,0,2,3,1,"Holý Martin",4]
["2015-03-21","Grand Prix Ostrava - KT","KT","j","Svoboda","Jiří","bez","muži","81",0,0,2,0,0,"Svoboda Jiří",0]
["2015-03-21","Grand Prix Ostrava - KT","KT","j","Raška","Michael",1,"muži","100",3,0,0,10,3,"Raška Michael",13]
["2015-03-21","Grand Prix Ostrava - KT","KT","j","Novák","Pavel",3,"muži","100",1,0,2,5,1,"Novák Pavel",6]
["2015-03-21","Grand Prix Ostrava - KT","KT","j","Král","Jakub",3,"muži","+100",0,0,2,5,0,"Král Jakub",5]
["2015-04-11","EP Teplice","EJU","j","Pátek","Jan","bez","dorostenci","73",1,0,2,0,1,"Pátek Jan",1]
["2015-04-11","EP Teplice","EJU","j","Pustějovský","Tomáš","bez","dorostenci","90",0,0,2,0,0,"Pustějovský Tomáš",0]
["2015-04-11","EP Teplice","EJU","j","Raška","Michael","bez","dorostenci","90",0,0,2,0,0,"Raška Michael",0]
["2015-04-11","EP Teplice","EJU","j","Chwastarzová","Alena","bez","dorostenky","52",0,0,1,0,0,"Chwastarzová Alena",0]
["2015-04-11","EP Teplice","EJU","j","Polášková","Kristýna","bez","dorostenky","63",0,0,1,0,0,"Polášková Kristýna",0]
["2015-04-11","EP Teplice","EJU","j","Martínková","Adéla","bez","dorostenky","63",0,0,1,0,0,"Martínková Adéla",0]
["2015-04-11","VC BAIL JUDO OSTRAVA","VC","j","Cagala","Šimon",3,"mláďata","24",0,0,2,3,0,"Cagala Šimon",3]
["2015-04-11","VC BAIL JUDO OSTRAVA","VC","j","Meixner","Michal",3,"mláďata","27",2,0,1,3,2,"Meixner Michal",5]
["2015-04-11","VC BAIL JUDO OSTRAVA","VC","j","Seibert","Marian",1,"mláďata","30",3,0,0,6,3,"Seibert Marian",9]
["2015-04-11","VC BAIL JUDO OSTRAVA","VC","j","Zach","Matyáš","bez","mláďata","34",1,0,2,0,1,"Zach Matyáš",1]
["2015-04-11","VC BAIL JUDO OSTRAVA","VC","j","Bortlíček","Adam","bez","mláďata","34",0,0,2,0,0,"Bortlíček Adam",0]
["2015-04-11","VC BAIL JUDO OSTRAVA","VC","j","Čebík","Filip",3,"mláďata","34",3,0,1,3,3,"Čebík Filip",6]
["2015-04-11","VC BAIL JUDO OSTRAVA","VC","j","Přibil","Jakub",5,"mláďata","38",2,0,2,0,2,"Přibil Jakub",2]
["2015-04-11","VC BAIL JUDO OSTRAVA","VC","j","Konvičný","Dominik",2,"mláďata","42",1,0,1,5,1,"Konvičný Dominik",6]
["2015-04-11","VC BAIL JUDO OSTRAVA","VC","j","Čerchla","Michal",1,"mláďata","46",4,0,0,6,4,"Čerchla Michal",10]
["2015-04-11","VC BAIL JUDO OSTRAVA","VC","j","Tomek","David","bez","mláďata","46",0,0,3,0,0,"Tomek David",0]
["2015-04-11","VC BAIL JUDO OSTRAVA","VC","j","Mikendová","Tereza",1,"mláďata","36",2,0,0,6,2,"Mikendová Tereza",8]
["2015-04-11","VC BAIL JUDO OSTRAVA","VC","j","Meixner","Tomáš",3,"mladší žáci","34",4,0,1,3,4,"Meixner Tomáš",7]
["2015-04-11","VC BAIL JUDO OSTRAVA","VC","j","Kunc","Matěj","bez","mladší žáci","34",2,0,2,0,2,"Kunc Matěj",2]
["2015-04-11","VC BAIL JUDO OSTRAVA","VC","j","Přibyl","Jan","bez","mladší žáci","34",0,0,2,0,0,"Přibyl Jan",0]
["2015-04-11","VC BAIL JUDO OSTRAVA","VC","j","Kolář","Daniel",5,"mladší žáci","38",2,0,2,0,2,"Kolář Daniel",2]
["2015-04-11","VC BAIL JUDO OSTRAVA","VC","j","Bulka","Vojtěch",2,"mladší žáci","38",3,0,1,5,3,"Bulka Vojtěch",8]
["2015-04-11","VC BAIL JUDO OSTRAVA","VC","j","Turčínek","Tomáš","bez","mladší žáci","50",1,0,2,0,1,"Turčínek Tomáš",1]
["2015-04-11","VC BAIL JUDO OSTRAVA","VC","j","Franek","Adam",1,"mladší žáci","55",3,0,0,6,3,"Franek Adam",9]
["2015-04-11","VC BAIL JUDO OSTRAVA","VC","j","Čerchlová","Markéta",3,"mladší žákyně","+63",0,0,3,3,0,"Čerchlová Markéta",3]
["2015-04-11","VC BAIL JUDO OSTRAVA","VC","j","Kokešová","Alexandra",2,"mladší žákyně","44",2,0,2,5,2,"Kokešová Alexandra",7]
["2015-04-11","VC BAIL JUDO OSTRAVA","VC","j","Pavlica","Lukáš","bez","starší žáci","46",0,0,2,0,0,"Pavlica Lukáš",0]
["2015-04-11","VC BAIL JUDO OSTRAVA","VC","j","Pavlica","Tomáš",3,"starší žáci","73",0,0,2,3,0,"Pavlica Tomáš",3]
["2015-04-11","VC BAIL JUDO OSTRAVA","VC","j","Král","Jan",1,"starší žáci","73",2,0,0,6,2,"Král Jan",8]
["2015-04-11","VC BAIL JUDO OSTRAVA","VC","j","Ďurinová","Kristýna",1,"starší žákyně","57",2,0,0,6,2,"Ďurinová Kristýna",8]
["2015-04-18","Slezký pohár Opava","VC","j","Meixner","Michal",3,"mláďata","27",3,0,1,3,3,"Meixner Michal",6]
["2015-04-18","Slezký pohár Opava","VC","j","Čebík","Filip",2,"mláďata","34",2,0,1,5,2,"Čebík Filip",7]
["2015-04-18","Slezký pohár Opava","VC","j","Krčmář","Jakub",3,"mláďata","34",3,0,1,3,3,"Krčmář Jakub",6]
["2015-04-18","Slezký pohár Opava","VC","j","Malaczynski","Filip",1,"mladší žáci","30",2,0,1,6,2,"Malaczynski Filip",8]
["2015-04-18","Slezký pohár Opava","VC","j","Meixner","Tomáš",2,"mladší žáci","34",3,0,1,5,3,"Meixner Tomáš",8]
["2015-04-18","Slezký pohár Opava","VC","j","Kunc","Matěj",3,"mladší žáci","34",3,0,1,3,3,"Kunc Matěj",6]
["2015-04-18","Slezký pohár Opava","VC","j","Kolář","Daniel","bez","mladší žáci","38",0,0,2,0,0,"Kolář Daniel",0]
["2015-04-18","Slezký pohár Opava","VC","j","Bulka","Vojtěch",2,"mladší žáci","38",3,0,1,5,3,"Bulka Vojtěch",8]
["2015-04-18","Slezký pohár Opava","VC","j","Zabek","Matyáš","bez","mladší žáci","38",0,0,1,0,0,"Zabek Matyáš",0]
["2015-04-18","Slezký pohár Opava","VC","j","Turčínek","Tomáš","bez","mladší žáci","50",1,0,2,0,1,"Turčínek Tomáš",1]
["2015-04-18","Slezký pohár Opava","VC","j","Kokešová","Alexandra",3,"mladší žákyně","44",1,0,2,3,1,"Kokešová Alexandra",4]
["2015-04-18","Slezký pohár Opava","VC","j","Pelikán","Dominik","bez","starší žáci","46",1,0,2,0,1,"Pelikán Dominik",1]
["2015-04-18","Slezký pohár Opava","VC","j","Moravec","Jan",2,"starší žáci","66",3,0,1,5,3,"Moravec Jan",8]
["2015-04-18","Slezký pohár Opava","VC","j","Brzusková","Marie",2,"starší žákyně","48",0,0,2,5,0,"Brzusková Marie",5]
["2015-04-18","EXTRALIGA MUŽŮ 2015 - 1. kolo","EXL","d","Kohn","Tomáš",null,"muži","66",2,0,1,0,4,"Kohn Tomáš",4]
["2015-04-18","EXTRALIGA MUŽŮ 2015 - 1. kolo","EXL","d","Selecký","Lukáš",null,"muži","66",0,0,2,0,0,"Selecký Lukáš",0]
["2015-04-18","EXTRALIGA MUŽŮ 2015 - 1. kolo","EXL","d","Šeděnka","Richard",null,"muži","73",0,0,1,0,0,"Šeděnka Richard",0]
["2015-04-18","EXTRALIGA MUŽŮ 2015 - 1. kolo","EXL","d","Svoboda","Jiří",null,"muži","81",1,0,3,0,2,"Svoboda Jiří",2]
["2015-04-18","EXTRALIGA MUŽŮ 2015 - 1. kolo","EXL","d","Otto","Matyáš",null,"muži","81",0,0,1,0,0,"Otto Matyáš",0]
["2015-04-18","EXTRALIGA MUŽŮ 2015 - 1. kolo","EXL","d","Raška","Michael",null,"muži","90",1,0,0,{"$f":"IF(ISNA(VLOOKUP(C194&G194,$V$3:$W$83,2,FALSE)),0,VLOOKUP(C194&G194,$V$3:$W$83,2,FALSE))","v":0},2,{"$f":"E194&\" \"&F194","v":"Raška Michael"},2]
["2015-04-18","EXTRALIGA MUŽŮ 2015 - 1. kolo","EXL","d","Král","Jakub",null,"muži","+90",1,0,0,0,{"$f":"IF(D195=\"d\",SUM(J195*2,K195),J195)","v":2},"Král Jakub",{"$f":"SUM(M195,N195)","v":2}]
["2015-04-18","EXTRALIGA MUŽŮ 2015 - 1. kolo","EXL","d","Koza","Dušan",null,"muži","+90",1,0,1,0,2,"Koza Dušan",2]
["2015-04-25","ČP Družstev starších žáků a st.žaček","KT","d","Brzusková","Marie",2,"starší žákyně","44",1,0,4,7,2,"Brzusková Marie",9]
["2015-04-25","ČP Družstev starších žáků a st.žaček","KT","d","Kresta","Matěj",2,"starší žáci","60",2,0,3,7,4,"Kresta Matěj",11]
["2015-04-26","MČR juniorů a juniorek - Chomutov","MCR","j","Chwastarzová","Alena",3,"juniorky","57",3,0,1,10,3,"Chwastarzová Alena",13]
["2015-04-26","MČR juniorů a juniorek - Chomutov","MCR","j","Šmehlík","František",1,"junioři","73",4,0,0,20,4,"Šmehlík František",24]
["2015-04-26","MČR juniorů a juniorek - Chomutov","MCR","j","Selecký","Lukáš",3,"junioři","66",3,0,1,10,3,"Selecký Lukáš",13]
["2015-04-26","MČR juniorů a juniorek - Chomutov","MCR","j","Svoboda","Jiří",3,"junioři","81",3,0,1,10,3,"Svoboda Jiří",13]
["2015-04-26","MČR juniorů a juniorek - Chomutov","MCR","j","Raška","Michael",3,"junioři","100",3,0,2,10,3,"Raška Michael",13]
["2015-04-26","MČR juniorů a juniorek - Chomutov","MCR","j","Pustějovský","Tomáš","bez","junioři","90",0,0,2,0,0,"Pustějovský Tomáš",0]
["2015-04-26","MČR juniorů a juniorek - Chomutov","MCR","j","Král","Jakub",2,"junioři","+100",2,0,1,15,2,"Král Jakub",17]
["2015-05-02","MT BUDAPEŠŤ","MT","j","Chwastarzová","Alena",2,"dorostenky","57",3,0,1,7,3,"Chwastarzová Alena",10]
["2015-05-02","MT BUDAPEŠŤ","MT","j","Polášková","Kristýna","bez","dorostenky","63",1,0,2,0,1,"Polášková Kristýna",1]
["2015-05-02","MT BUDAPEŠŤ","MT","j","Martínková","Adéla",5,"dorostenky","63",3,0,2,3,3,"Martínková Adéla",6]
["2015-05-02","MT BUDAPEŠŤ","MT","j","Pátek","Jan",5,"dorostenci","73",3,0,2,3,3,"Pátek Jan",6]
["2015-05-02","MT BUDAPEŠŤ","MT","j","Franek","Patrik","bez","dorostenci","50",0,0,2,0,0,"Franek Patrik",0]
["2015-05-02","MT BUDAPEŠŤ","MT","j","Raška","Michael",7,"dorostenci","90",1,0,2,2,1,"Raška Michael",3]
["2015-05-02","MT BUDAPEŠŤ","MT","j","Pustějovský","Tomáš",5,"dorostenci","90",2,0,2,3,2,"Pustějovský Tomáš",5]
["2015-05-02","Krajský Přebor - Český Těšín","PK","j","Malaczynski","Filip",1,"mladší žáci","30",2,0,0,6,2,"Malaczynski Filip",8]
["2015-05-02","Krajský Přebor - Český Těšín","PK","j","Kunc","Matěj",1,"mladší žáci","34",6,0,0,6,6,"Kunc Matěj",12]
["2015-05-02","Krajský Přebor - Český Těšín","PK","j","Bulka","Vojtěch",1,"mladší žáci","38",4,0,0,6,4,"Bulka Vojtěch",10]
["2015-05-02","Krajský Přebor - Český Těšín","PK","j","Franek","Adam",1,"mladší žáci","60",2,0,0,6,2,"Franek Adam",8]
["2015-05-02","Krajský Přebor - Český Těšín","PK","j","Turčínek","Tomáš",1,"mladší žáci","50",2,0,0,6,2,"Turčínek Tomáš",8]
["2015-05-02","Krajský Přebor - Český Těšín","PK","j","Václavková","Tereza",1,"mladší žákyně","40",3,0,0,6,3,"Václavková Tereza",9]
["2015-05-02","Krajský Přebor - Český Těšín","PK","j","Křížek","Šimon",2,"mladší žáci","46",3,0,1,5,3,"Křížek Šimon",8]
["2015-05-02","Krajský Přebor - Český Těšín","PK","j","Meixner","Tomáš",2,"mladší žáci","34",1,0,2,5,1,"Meixner Tomáš",6]
["2015-05-02","Krajský Přebor - Český Těšín","PK","j","Kolář","Daniel",3,"mladší žáci","38",1,0,2,3,1,"Kolář Daniel",4]
["2015-05-02","Krajský Přebor - Český Těšín","PK","j","Matýsek","Jan","bez","mladší žáci","34",0,0,4,0,0,"Matýsek Jan",0]
["2015-05-02","Krajský Přebor - Český Těšín","PK","j","Zabek","Matyáš","bez","mladší žáci","38",0,0,2,0,0,"Zabek Matyáš",0]
["2015-05-02","Krajský Přebor - Český Těšín","PK","j","Kresta","Matěj",1,"starší žáci","60",4,0,0,6,4,"Kresta Matěj",10]
["2015-05-02","Krajský Přebor - Český Těšín","PK","j","Král","Jan",1,"starší žáci","+73",3,0,0,6,3,"Král Jan",9]
["2015-05-02","Krajský Přebor - Český Těšín","PK","j","Pavlica","Lukáš",2,"starší žáci","50",1,0,1,5,1,"Pavlica Lukáš",6]
["2015-05-02","Krajský Přebor - Český Těšín","PK","j","Moravec","Jan",2,"starší žáci","66",1,0,2,5,1,"Moravec Jan",6]
["2015-05-02","Krajský Přebor - Český Těšín","PK","j","Pelikán","Dominik","bez","starší žáci","46",0,0,4,0,0,"Pelikán Dominik",0]
["2015-05-09","7. ročník KRÁLE ZEMAŘŮ","VC","j","Martínek","Roman",1,"muži",null,6,0,0,6,6,"Martínek Roman",12]
["2015-05-09","7. ročník KRÁLE ZEMAŘŮ","VC","j","Šeděnka","Richard",3,"muži",null,5,0,1,3,5,"Šeděnka Richard",8]
["2015-05-09","7. ročník KRÁLE ZEMAŘŮ","VC","j","Král","Jakub",5,"muži",null,3,0,4,0,3,"Král Jakub",3]
["2015-05-16","Pražský Pohár - USK Cup ","VC","j","Král","Jan",1,"starší žáci","73",3,0,0,6,3,"Král Jan",9]
["2015-05-23","Májový turnaj Český Těšín","MC","j","Tomek","David",2,"mláďata","43",3,0,1,3,3,"Tomek David",6]
["2015-05-23","Májový turnaj Český Těšín","MC","j","Matýsek","Jan",7,"mladší žáci","34",1,0,2,0,1,"Matýsek Jan",1]
["2015-05-23","Májový turnaj Český Těšín","MC","j","Zabek","Matyáš","bez","mladší žáci","38",0,0,1,0,0,"Zabek Matyáš",0]
["2015-05-23","Májový turnaj Český Těšín","MC","j","Kolář","Daniel",5,"mladší žáci","38",1,0,1,0,1,"Kolář Daniel",1]
["2015-05-23","Májový turnaj Český Těšín","MC","j","Kokešová","Alexandra",1,"mladší žákyně","44",3,0,0,4,3,"Kokešová Alexandra",7]
["2015-05-23","Májový turnaj Český Těšín","MC","j","Turčínek","Tomáš",1,"mladší žáci","50",2,0,1,4,2,"Turčínek Tomáš",6]
["2015-05-23","Moravská liga mužů - 3.kolo -  Brno","PSO","d","Janiš","Lukáš",null,"muži",null,5,0,1,0,10,"Janiš Lukáš",10]
["2015-05-23","Moravská liga mužů - 3.kolo -  Brno","PSO","d","Kohn","Tomáš",null,"muži",null,6,0,0,0,12,"Kohn Tomáš",12]
["2015-05-23","Moravská liga mužů - 3.kolo -  Brno","PSO","d","Šeděnka","Richard",null,"muži",null,4,0,2,0,8,"Šeděnka Richard",8]
["2015-05-23","Moravská liga mužů - 3.kolo -  Brno","PSO","d","Ochman","Marek",null,"muži",null,5,0,1,0,10,"Ochman Marek",10]
["2015-05-23","Moravská liga mužů - 3.kolo -  Brno","PSO","d","Pustějovský","Tomáš",null,"muži",null,3,0,3,0,6,"Pustějovský Tomáš",6]
["2015-05-23","Moravská liga mužů - 3.kolo -  Brno","PSO","d","Raška","Michael",null,"muži",null,4,0,2,0,8,"Raška Michael",8]
["2015-05-23","Moravská liga mužů - 3.kolo -  Brno","PSO","d","Král","Jakub",null,"muži",null,5,0,1,0,10,"Král Jakub",10]
["2015-05-23","PČR - družstva - st.žákyň - Jablonec n.N.","PCR","d","Brzusková","Marie","bez","starší žákyně","44",0,0,2,0,0,"Brzusková Marie",0]
["2015-05-23","PČR - družstva - st.žákyň - Jablonec n.N.","PCR","d","Kuncová","Viktorie","bez","starší žákyně","44",0,0,2,0,0,"Kuncová Viktorie",0]
["2015-05-23","PČR - družstva - st.žákyň - Jablonec n.N.","PCR","d","Havlíčková","Barbora","bez","starší žákyně","48",1,0,3,0,2,"Havlíčková Barbora",2]
["2015-05-23","PČR - družstva - st.žákyň - Jablonec n.N.","PCR","d","Ďurinová","Kristýna","bez","starší žákyně","57",1,0,3,{"$f":"IF(ISNA(VLOOKUP(C249&G249,$V$3:$W$83,2,FALSE)),0,VLOOKUP(C249&G249,$V$3:$W$83,2,FALSE))","v":0},{"$f":"IF(D249=\"d\",SUM(J249*2,K249),J249)","v":2},{"$f":"E249&\" \"&F249","v":"Ďurinová Kristýna"},2]
["2015-05-23","PČR - družstva - st.žáků  -  Jablonec n.N.","PCR","d","Pelikán","Dominik",1,"starší žáci","46",0,0,0,10,0,"Pelikán Dominik",10]
["2015-05-23","PČR - družstva - st.žáků  -  Jablonec n.N.","PCR","d","Mojžíšek","Lukáš",1,"starší žáci","55",0,0,0,10,0,"Mojžíšek Lukáš",10]
["2015-05-23","PČR - družstva - st.žáků  -  Jablonec n.N.","PCR","d","Kresta","Matěj",1,"starší žáci","60",2,0,1,10,4,"Kresta Matěj",14]
["2015-05-23","PČR - družstva - st.žáků  -  Jablonec n.N.","PCR","d","Moravec","Jan",1,"starší žáci","66",1,0,1,10,2,"Moravec Jan",12]
["2015-05-23","PČR - družstva - st.žáků  -  Jablonec n.N.","PCR","d","Král","Jan",1,"starší žáci","73",3,0,0,10,6,"Král Jan",16]
["2015-05-23","MČR-družstva-dorostenky-Jablonec n.N.","MCR","d","Kuncová","Viktorie",3,"dorostenky","44",2,0,2,10,4,"Kuncová Viktorie",14]
["2015-05-23","MČR-družstva-dorostenky-Jablonec n.N.","MCR","d","Chwastarzová","Alena",3,"dorostenky","57",2,0,1,10,4,"Chwastarzová Alena",14]
["2015-05-23","MČR-družstva-dorostenky-Jablonec n.N.","MCR","d","Polášková","Kristýna",3,"dorostenky","63",3,0,1,10,6,"Polášková Kristýna",16]
["2015-05-23","MČR-družstva-dorostenky-Jablonec n.N.","MCR","d","Martínková","Adéla",3,"dorostenky","70",3,0,1,10,6,"Martínková Adéla",16]
["2015-05-23","MČR-družstva-dorostenky-Jablonec n.N.","MCR","d","Ondrašíková","Eva",3,"dorostenky","+70",0,0,0,10,0,"Ondrašíková Eva",{"$f":"SUM(M259,N259)","v":10}]
["2015-05-29","ME - veteránu - Maďarsko","ME","j","Černota","Jiří",3,"veteráni","81",0,0,3,35,0,"Černota Jiří",35]
["2015-05-31","MT - Překonáme Hranice - Bielsko-Biała","MVC","j","Meixner","Michal","bez","mláďata","27",0,0,2,0,0,"Meixner Michal",0]
["2015-05-31","MT - Překonáme Hranice - Bielsko-Biała","MVC","j","Boháček","Jan",3,"mláďata","33",5,0,1,3,5,"Boháček Jan",8]
["2015-05-31","MT - Překonáme Hranice - Bielsko-Biała","MVC","j","Čebík","Filip",5,"mláďata","33",3,0,2,0,3,"Čebík Filip",3]
["2015-05-31","MT - Překonáme Hranice - Bielsko-Biała","MVC","j","Meixner","Tomáš",3,"mladší žáci","33",3,0,1,3,3,"Meixner Tomáš",6]
["2015-05-31","MT - Překonáme Hranice - Bielsko-Biała","MVC","j","Kunc","Matěj",3,"mladší žáci","36",4,0,1,3,4,"Kunc Matěj",7]
["2015-05-31","MT - Překonáme Hranice - Bielsko-Biała","MVC","j","Kolář","Daniel","bez","mladší žáci","39",0,0,1,0,0,"Kolář Daniel",0]
["2015-05-31","MT - Překonáme Hranice - Bielsko-Biała","MVC","j","Křížek","Šimon",5,"mladší žáci","45",2,0,2,0,2,"Křížek Šimon",2]
["2015-05-31","MT - Překonáme Hranice - Bielsko-Biała","MVC","j","Turčínek","Tomáš",4,"mladší žáci","51",0,0,3,0,0,"Turčínek Tomáš",0]
["2015-05-31","MT - Překonáme Hranice - Bielsko-Biała","MVC","j","Motyka","Dominik",5,"mladší žáci","+57",1,0,2,0,1,"Motyka Dominik",1]
["2015-05-31","MT - Překonáme Hranice - Bielsko-Biała","MVC","j","Václavková","Tereza",1,"mladší žákyně","39",4,0,0,6,4,"Václavková Tereza",10]
["2015-05-31","MT - Překonáme Hranice - Bielsko-Biała","MVC","j","Kokešová","Alexandra",3,"mladší žákyně","44",1,0,2,3,1,"Kokešová Alexandra",4]
["2015-05-31","MT - Překonáme Hranice - Bielsko-Biała","MVC","j","Ďurinová","Kristýna",1,"starší žákyně","57",2,0,1,6,2,"Ďurinová Kristýna",8]
["2015-05-31","MT - Překonáme Hranice - Bielsko-Biała","MVC","j","Pelikán","Dominik","bez","starší žáci","46",0,0,2,0,0,"Pelikán Dominik",0]
["2015-05-31","MT - Překonáme Hranice - Bielsko-Biała","MVC","j","Kubis","Jiří","bez","starší žáci","81",0,0,2,0,0,"Kubis Jiří",0]
["2015-05-31","MT - Překonáme Hranice - Bielsko-Biała","MVC","j","Moravec","Jan",3,"starší žáci","66",2,0,1,3,2,"Moravec Jan",5]
["2015-05-02","Velká cena Prostějova","VC","j","Boháček","Jan",1,"mláďata","34",4,0,0,6,4,"Boháček Jan",10]
["2015-05-23","Mezinárodní velká cena Rimavské Soboty","MVC","j","Boháček","Jan",3,"mláďata","34",5,0,1,3,5,"Boháček Jan",8]
["2015-05-30","Malá cena Gliwic – Polsko","MC","j","Boháček","Jan",1,"mláďata","36",3,0,0,4,3,"Boháček Jan",7]
["2015-05-31","DL - II.kolo - Jablonec nad Nisou","DL","d","Franek","Patrik",null,"dorostenci","50",3,0,2,0,6,"Franek Patrik",6]
["2015-05-31","DL - II.kolo - Jablonec nad Nisou","DL","d","Kresta","Matěj",null,"dorostenci","55",1,0,2,0,2,"Kresta Matěj",2]
["2015-05-31","DL - II.kolo - Jablonec nad Nisou","DL","d","Kocman","Petr",null,"dorostenci","55",0,0,2,{"$f":"IF(ISNA(VLOOKUP(C281&G281,$V$3:$W$83,2,FALSE)),0,VLOOKUP(C281&G281,$V$3:$W$83,2,FALSE))","v":0},{"$f":"IF(D281=\"d\",SUM(J281*2,K281),J281)","v":0},{"$f":"E281&\" \"&F281","v":"Kocman Petr"},0]
["2015-05-31","DL - II.kolo - Jablonec nad Nisou","DL","d","Rovenský","Ondřej",null,"dorostenci","66",0,0,0,0,0,"Rovenský Ondřej",0]
["2015-05-31","DL - II.kolo - Jablonec nad Nisou","DL","d","Pupakis","Sotirios",null,"dorostenci","73",1,0,2,0,2,"Pupakis Sotirios",2]
["2015-05-31","DL - II.kolo - Jablonec nad Nisou","DL","d","Pátek","Jan",null,"dorostenci","81",3,0,2,0,6,"Pátek Jan",6]
["2015-05-31","DL - II.kolo - Jablonec nad Nisou","DL","d","Pustějovský","Tomáš",null,"dorostenci","90",3,0,2,0,6,"Pustějovský Tomáš",6]
["2015-05-31","DL - II.kolo - Jablonec nad Nisou","DL","d","Raška","Michael",null,"dorostenci","+90",5,0,0,0,10,"Raška Michael",10]
["2015-05-30","Extraliga mužů - II.kolo - SKKP Brno","EXL","d","Kohn","Tomáš",null,"muži","66",1,0,4,0,2,"Kohn Tomáš",2]
["2015-05-30","Extraliga mužů - II.kolo - SKKP Brno","EXL","d","Svoboda","Jiří",null,"muži","81",2,0,3,0,4,"Svoboda Jiří",4]
["2015-05-30","Extraliga mužů - II.kolo - SKKP Brno","EXL","d","Otto","Matyáš",null,"muži","81",0,0,2,0,0,"Otto Matyáš",0]
["2015-05-30","Extraliga mužů - II.kolo - SKKP Brno","EXL","d","Král","Jakub",null,"muži","+90",0,0,1,0,0,"Král Jakub",0]
["2015-05-30","Extraliga mužů - II.kolo - SKKP Brno","EXL","d","Koza","Dušan",null,"muži","+90",1,0,1,0,2,"Koza Dušan",2]
["2015-06-06","III. Otevřené Mistrovství Města Opole","VC","j","Malaczynski","Filip",3,"mladší žáci","30",1,0,2,3,1,"Malaczynski Filip",4]
["2015-06-06","III. Otevřené Mistrovství Města Opole","VC","j","Kunc","Matěj",1,"mladší žáci","35",3,0,1,6,3,"Kunc Matěj",9]
["2015-06-06","III. Otevřené Mistrovství Města Opole","VC","j","Bulka","Vojtěch",1,"mladší žáci","37",3,0,1,6,3,"Bulka Vojtěch",9]
["2015-06-06","III. Otevřené Mistrovství Města Opole","VC","j","Kolář","Daniel",4,"mladší žáci","39",1,0,3,0,1,"Kolář Daniel",1]
["2015-06-06","III. Otevřené Mistrovství Města Opole","VC","j","Křížek","Šimon",3,"mladší žáci","42",1,0,2,3,1,"Křížek Šimon",4]
["2015-06-06","III. Otevřené Mistrovství Města Opole","VC","j","Turčínek","Tomáš",2,"mladší žáci","50",3,0,1,5,3,"Turčínek Tomáš",8]
["2015-06-06","III. Otevřené Mistrovství Města Opole","VC","j","Václavková","Tereza",1,"mladší žákyně","40",2,0,0,6,2,"Václavková Tereza",8]
["2015-06-06","III. Otevřené Mistrovství Města Opole","VC","j","Kokešová","Alexandra",1,"mladší žákyně","48",2,0,1,6,2,"Kokešová Alexandra",8]
["2015-06-06","III. Otevřené Mistrovství Města Opole","VC","j","Mojžíšek","Lukáš",1,"starší žáci","50",3,0,0,6,3,"Mojžíšek Lukáš",9]
["2015-06-06","III. Otevřené Mistrovství Města Opole","VC","j","Blažej","Jan",4,"starší žáci","50",1,0,2,0,1,"Blažej Jan",1]
["2015-06-06","III. Otevřené Mistrovství Města Opole","VC","j","Pelikán","Dominik",3,"starší žáci","46",0,0,2,3,0,"Pelikán Dominik",3]
["2015-06-06","III. Otevřené Mistrovství Města Opole","VC","j","Ďurinová","Kristýna",2,"starší žákyně","57",1,0,1,5,1,"Ďurinová Kristýna",6]
["2015-06-13","Kvalifikační turnaj - ČP - Jičín","KT","j","Šeděnka","Richard",7,"muži","73",1,0,2,2,1,"Šeděnka Richard",3]
["2015-06-13","Kvalifikační turnaj - ČP - Jičín","KT","j","Svoboda","Jiří",2,"muži","81",3,0,1,7,3,"Svoboda Jiří",10]
["2015-06-13","Kvalifikační turnaj - ČP - Jičín","KT","j","Král","Jakub",2,"muži","+100",1,0,1,7,1,"Král Jakub",8]
["2015-06-07","III. Otevřené Mistrovství Města Opole","VC","j","Čebík","Filip",1,"mláďata","33",4,0,0,6,4,"Čebík Filip",10]
["2015-06-07","III. Otevřené Mistrovství Města Opole","VC","j","Huvar","Jakub",2,"mláďata","33",3,0,1,5,3,"Huvar Jakub",8]
["2015-06-07","III. Otevřené Mistrovství Města Opole","VC","j","Čerchla","Michal",1,"mláďata","51",2,0,1,6,2,"Čerchla Michal",8]
["2015-06-07","III. Otevřené Mistrovství Města Opole","VC","j","Tomek","David",2,"mláďata","51",2,0,1,5,2,"Tomek David",7]
["2015-06-06","EC Cadets – Bielsko Biala (POL)","EJU","j","Pátek","Jan","bez","dorostenci","73",0,0,1,0,0,"Pátek Jan",0]
["2015-06-06","EC Cadets – Bielsko Biala (POL)","EJU","j","Raška","Michael","bez","dorostenci","90",0,0,2,0,0,"Raška Michael",0]
["2015-06-06","EC Cadets – Bielsko Biala (POL)","EJU","j","Chwastarzová","Alena","bez","dorostenky","52",0,0,1,{"$f":"IF(ISNA(VLOOKUP(C313&G313,$V$3:$W$83,2,FALSE)),0,VLOOKUP(C313&G313,$V$3:$W$83,2,FALSE))","v":0},{"$f":"IF(D313=\"d\",SUM(J313*2,K313),J313)","v":0},{"$f":"E313&\" \"&F313","v":"Chwastarzová Alena"},0]
["2015-06-06","EC Cadets – Bielsko Biala (POL)","EJU","j","Polášková","Kristýna","bez","dorostenky","63",0,0,1,0,0,"Polášková Kristýna",0]
["2015-06-14","Závišický pohár","MC","j","Seibert","Marian",2,"mláďata","31",1,0,2,3,1,"Seibert Marian",4]
["2015-06-14","Závišický pohár","MC","j","Mikendová","Tereza",1,"mláďata","38",2,0,0,4,2,"Mikendová Tereza",6]
["2015-06-14","Závišický pohár","MC","j","Přibil","Jakub",3,"mláďata","28",1,0,2,2,1,"Přibil Jakub",3]
["2015-06-14","Závišický pohár","MC","j","Meixner","Michal",3,"mláďata","28",1,0,2,2,1,"Meixner Michal",3]
["2015-06-14","Závišický pohár","MC","j","Neuwirt","Petr",3,"mláďata","23",0,0,2,2,0,"Neuwirt Petr",2]
["2015-06-14","Závišický pohár","MC","j","Bortlíček","Adam",1,"mláďata","33",2,0,0,4,2,"Bortlíček Adam",6]
["2015-06-13","Kvalifikační turnaj - ČP - Chomutov ","KT","j","Král","Jan",2,"starší žáci","73",3,0,1,7,3,"Král Jan",10]
["2015-07-18","Junior Evropean Judo Cup Wroclav","EJU","j","Selecký","Lukáš","bez","junioři","66",1,0,1,0,1,"Selecký Lukáš",1]
["2015-07-18","Junior Evropean Judo Cup Wroclav","EJU","j","Šmehlík","František","bez","junioři","73",1,0,1,0,1,"Šmehlík František",{"$f":"SUM(M323,N323)","v":1}]
["2015-07-18","Junior Evropean Judo Cup Wroclav","EJU","j","Svoboda","Jiří","bez","junioři","81",0,0,1,0,0,"Svoboda Jiří",0]
["2015-07-25","European Cup - JUNIORS - Praha","EJU","j","Selecký","Lukáš","bez","junioři","66",0,0,1,0,0,"Selecký Lukáš",0]
["2015-07-25","European Cup - JUNIORS - Praha","EJU","j","Šmehlík","František","bez","junioři","73",0,0,1,0,0,"Šmehlík František",0]
["2015-07-26","European Cup - JUNIORS - Praha","EJU","j","Svoboda","Jiří","bez","junioři","81",0,0,1,{"$f":"IF(ISNA(VLOOKUP(C327&G327,$V$3:$W$83,2,FALSE)),0,VLOOKUP(C327&G327,$V$3:$W$83,2,FALSE))","v":0},{"$f":"IF(D327=\"d\",SUM(J327*2,K327),J327)","v":0},{"$f":"E327&\" \"&F327","v":"Svoboda Jiří"},0]
["2015-07-26","European Cup - JUNIORS - Praha","EJU","j","Král","Jakub","bez","junioři","+100",0,0,1,0,0,"Král Jakub",0]
["2015-06-28","MT  -  GRAZ CUP 2015","MVC","j","Raška","Michael",2,"dorostenci","+90",3,0,1,5,3,"Raška Michael",8]
["2015-06-28","MT  -  GRAZ CUP 2015","MVC","j","Pustějovský","Tomáš",3,"dorostenci","90",2,0,1,3,2,"Pustějovský Tomáš",5]
["2015-06-28","MT  -  GRAZ CUP 2015","MVC","j","Martínková","Adéla",3,"dorostenky","63",2,0,1,3,2,"Martínková Adéla",5]
["2015-06-28","MT  -  GRAZ CUP 2015","MVC","j","Král","Jan","bez","starší žáci","73",0,0,1,0,0,"Král Jan",0]
["2015-06-28","MT  -  GRAZ CUP 2015","MVC","j","Franek","Patrik","bez","dorostenci","50",0,0,2,0,0,"Franek Patrik",0]
["2015-06-28","MT  -  GRAZ CUP 2015","MVC","j","Moravec","Jan","bez","starší žáci","66",0,0,2,0,0,"Moravec Jan",0]
["2015-06-28","MT  -  GRAZ CUP 2015","MVC","j","Kresta","Matěj","bez","starší žáci","60",0,0,1,0,0,"Kresta Matěj",0]
["2015-06-28","MT  -  GRAZ CUP 2015","MVC","j","Chwastarzová","Alena","bez","dorostenky","57",0,0,2,0,0,"Chwastarzová Alena",0]
["2015-09-12","Turnaj olympijských nadějí Dobrá","VC","j","Malcová","Sabrina",3,"mláďata","27",2,0,1,3,2,"Malcová Sabrina",5]
["2015-09-12","Turnaj olympijských nadějí Dobrá","VC","j","Motyka","Dominik",1,"mladší žáci","+60",3,0,0,6,3,"Motyka Dominik",9]
["2015-09-12","Turnaj olympijských nadějí Dobrá","VC","j","Václavková","Tereza",1,"mladší žákyně","38",2,0,0,6,2,"Václavková Tereza",8]
["2015-09-12","Turnaj olympijských nadějí Dobrá","VC","j","Otáhalová","Magda",2,"mladší žákyně","40",1,0,1,5,1,"Otáhalová Magda",6]
["2015-09-12","Turnaj olympijských nadějí Dobrá","VC","j","Kokešová","Alexandra",2,"mladší žákyně","46",2,0,1,5,2,"Kokešová Alexandra",7]
["2015-09-12","Turnaj olympijských nadějí Dobrá","VC","j","Kunc","Matěj",3,"mladší žáci","34",3,0,1,3,3,"Kunc Matěj",6]
["2015-09-12","Turnaj olympijských nadějí Dobrá","VC","j","Turčínek","Tomáš","bez","mláďata","50",0,0,1,0,0,"Turčínek Tomáš",0]
["2015-09-12","Turnaj olympijských nadějí Dobrá","VC","j","Tycar","Štěpán",1,"mladší žáci","38",5,0,0,6,5,"Tycar Štěpán",11]
["2015-09-12","Turnaj olympijských nadějí Dobrá","VC","j","Malaczynski","Filip",5,"mladší žáci","32",1,0,2,0,1,"Malaczynski Filip",1]
["2015-09-12","Turnaj olympijských nadějí Dobrá","VC","j","Bulka","Vojtěch",3,"mladší žáci","38",1,0,2,3,1,"Bulka Vojtěch",4]
["2015-09-12","Turnaj olympijských nadějí Dobrá","VC","j","Zabek","Matyáš",3,"mladší žáci","42",2,0,2,3,2,"Zabek Matyáš",5]
["2015-09-12","Turnaj olympijských nadějí Dobrá","VC","j","Kolář","Daniel",4,"mladší žáci","42",1,0,3,0,1,"Kolář Daniel",1]
["2015-09-12","Turnaj olympijských nadějí Dobrá","VC","j","Franek","Adam","bez","mladší žáci","60",1,0,1,0,1,"Franek Adam",1]
["2015-09-12","Turnaj olympijských nadějí Dobrá","VC","j","Meixner","Tomáš",1,"mladší žáci","34",4,0,0,6,4,"Meixner Tomáš",10]
["2015-09-12","Turnaj olympijských nadějí Dobrá","VC","j","Matýsek","Jan","bez","mláďata","35",0,0,1,0,0,"Matýsek Jan",0]
["2015-09-12","Turnaj olympijských nadějí Dobrá","VC","j","Pelikán","Dominik",3,"mladší žáci","46",1,0,2,3,1,"Pelikán Dominik",4]
["2015-09-12","Turnaj olympijských nadějí Dobrá","VC","j","Dušenka","Michael","bez","starší žáci","60",0,0,2,0,0,"Dušenka Michael",0]
["2015-09-12","Turnaj olympijských nadějí Dobrá","VC","j","Huvar","Jakub","bez","mláďata","36",0,0,1,0,0,"Huvar Jakub",0]
["2015-09-12","Turnaj olympijských nadějí Dobrá","VC","j","Horák","Adam",1,"mláďata","63",2,0,1,6,2,"Horák Adam",8]
["2015-09-12","Turnaj olympijských nadějí Dobrá","VC","j","Válek","Matěj","bez","mláďata","30",1,0,2,0,1,"Válek Matěj",1]
["2015-09-12","Turnaj olympijských nadějí Dobrá","VC","j","Král","Jan",1,"starší žáci","73",4,0,0,6,4,"Král Jan",10]
["2015-09-12","Turnaj olympijských nadějí Dobrá","VC","j","Meixner","Michal",2,"mláďata","27",1,0,1,5,1,"Meixner Michal",6]
["2015-09-12","Turnaj olympijských nadějí Dobrá","VC","j","Čebík","Filip",3,"mláďata","36",3,0,1,3,3,"Čebík Filip",6]
["2015-09-12","Turnaj olympijských nadějí Dobrá","VC","j","Rajna","Alexandr","bez","mláďata","32",1,0,2,0,1,"Rajna Alexandr",1]
["2015-09-12","Turnaj olympijských nadějí Dobrá","VC","j","Boháček","Jan","bez","mláďata","36",0,0,1,0,0,"Boháček Jan",0]
["2015-09-12","Turnaj olympijských nadějí Dobrá","VC","j","Havlíčková","Barbora",3,"starší žákyně","55",1,0,2,3,1,"Havlíčková Barbora",4]
["2015-09-12","Turnaj olympijských nadějí Dobrá","VC","j","Tomek","David",2,"mláďata","45",2,0,1,5,2,"Tomek David",7]
["2015-09-12","Turnaj olympijských nadějí Dobrá","VC","j","Kuncová","Viktorie",3,"starší žákyně","48",1,0,2,3,1,"Kuncová Viktorie",4]
["2015-09-12","Turnaj olympijských nadějí Dobrá","VC","j","Brzusková","Marie",2,"starší žákyně","48",2,0,1,5,2,"Brzusková Marie",7]
["2015-09-12","Turnaj olympijských nadějí Dobrá","VC","j","Mojžíšek","Lukáš","bez","starší žáci","60",1,0,2,0,1,"Mojžíšek Lukáš",1]
["2015-09-12","Turnaj olympijských nadějí Dobrá","VC","j","Blažej","Jan","bez","starší žáci","60",0,0,2,0,0,"Blažej Jan",0]
["2015-09-12","Turnaj olympijských nadějí Dobrá","VC","j","Moravec","Jan",2,"starší žáci","73",3,0,1,5,3,"Moravec Jan",8]
["2015-09-12","Turnaj olympijských nadějí Dobrá","VC","j","Křenková","Marie",3,"starší žákyně","+63",0,0,2,3,0,"Křenková Marie",3]
["2015-09-12","Turnaj olympijských nadějí Dobrá","VC","j","Král","Miroslav",3,"starší žáci","55",1,0,2,3,1,"Král Miroslav",4]
["2015-09-12","Turnaj olympijských nadějí Dobrá","VC","j","Křížek","Šimon","bez","mladší žáci","46",0,0,2,0,0,"Křížek Šimon",0]
["2015-09-05","Moravská liga mužů - 4.kolo -  Brno","PSO","d","Selecký","Lukáš",null,"muži","66",7,0,0,0,14,"Selecký Lukáš",14]
["2015-09-05","Moravská liga mužů - 4.kolo -  Brno","PSO","d","Pátek","Jan",null,"muži","73",5,0,2,0,10,"Pátek Jan",10]
["2015-09-05","Moravská liga mužů - 4.kolo -  Brno","PSO","d","Frydrýšek","Patrik",null,"muži","90",1,0,1,0,2,"Frydrýšek Patrik",2]
["2015-09-05","Moravská liga mužů - 4.kolo -  Brno","PSO","d","Pustějovský","Tomáš",null,"muži","90",3,0,2,0,6,"Pustějovský Tomáš",6]
["2015-09-05","Moravská liga mužů - 4.kolo -  Brno","PSO","d","Raška","Michael",null,"muži","100",4,0,3,0,8,"Raška Michael",8]
["2015-09-05","Moravská liga mužů - 4.kolo -  Brno","PSO","d","Král","Jakub",null,"muži","+100",3,0,4,0,6,"Král Jakub",6]
["2015-09-19","Český pohár -  Kvalifikační Soutěž - Brno","KT","j","Selecký","Lukáš",3,"muži","66",3,0,1,5,3,"Selecký Lukáš",8]
["2015-09-19","Český pohár -  Kvalifikační Soutěž - Brno","KT","j","Raška","Michael","bez","dorostenci","+90",1,0,2,0,1,"Raška Michael",1]
["2015-09-19","Český pohár -  Kvalifikační Soutěž - Brno","KT","j","Chwastarzová","Alena",9,"dorostenky","57",1,0,2,0,1,"Chwastarzová Alena",1]
["2015-09-19","Český pohár -  Kvalifikační Soutěž - Brno","KT","j","Polášková","Kristýna",5,"dorostenky","63",3,0,2,3,3,"Polášková Kristýna",6]
["2015-09-19","Český pohár -  Kvalifikační Soutěž - Brno","KT","j","Ondrašíková","Eva",3,"dorostenky","+70",2,0,1,5,2,"Ondrašíková Eva",7]
["2015-09-19","Český pohár -  Kvalifikační Soutěž - Brno","KT","j","Kohn","Pavel",7,"muži","66",2,0,2,2,2,"Kohn Pavel",4]
["2015-09-19","Český pohár -  Kvalifikační Soutěž - Brno","KT","j","Šmehlík","František",7,"muži","73",3,0,2,2,3,"Šmehlík František",5]
["2015-09-19","Český pohár -  Kvalifikační Soutěž - Brno","KT","j","Svoboda","Jiří","bez","muži","81",0,0,2,0,0,"Svoboda Jiří",0]
["2015-09-19","Český pohár -  Kvalifikační Soutěž - Brno","KT","j","Král","Jakub",9,"muži","+100",0,0,2,{"$f":"IF(ISNA(VLOOKUP(C386&G386,$V$3:$W$83,2,FALSE)),0,VLOOKUP(C386&G386,$V$3:$W$83,2,FALSE))","v":0},0,{"$f":"E386&\" \"&F386","v":"Král Jakub"},0]
["2015-09-27","Velká cena Ostravy","VC","j","Huvar","Jakub",3,"mláďata","36",2,0,1,3,{"$f":"IF(D387=\"d\",SUM(J387*2,K387),J387)","v":2},"Huvar Jakub",{"$f":"SUM(M387,N387)","v":5}]
["2015-09-27","Velká cena Ostravy","VC","j","Malzová","Sabrina",4,"mláďata","26",0,0,3,0,0,"Malzová Sabrina",0]
["2015-09-27","Velká cena Ostravy","VC","j","Matějíčka","Štěpán",2,"mláďata","32",0,0,2,5,0,"Matějíčka Štěpán",5]
["2015-09-27","Velká cena Ostravy","VC","j","Čebík","Filip",5,"mláďata","36",1,0,2,0,1,"Čebík Filip",1]
["2015-09-27","Velká cena Ostravy","VC","j","Beutel","David","bez","mláďata","29",0,0,3,0,0,"Beutel David",0]
["2015-09-27","Velká cena Ostravy","VC","j","Papavasilevský","Marek",2,"mláďata","27",2,0,1,5,2,"Papavasilevský Marek",7]
["2015-09-27","Velká cena Ostravy","VC","j","Tomek","David",1,"mláďata","44",3,0,0,6,3,"Tomek David",9]
["2015-09-27","Velká cena Ostravy","VC","j","Kolář","Daniel",3,"mladší žáci","42",1,0,2,3,1,"Kolář Daniel",4]
["2015-09-27","Velká cena Ostravy","VC","j","Baštinská","Adéla",3,"mladší žákyně","+57",0,0,2,3,0,"Baštinská Adéla",3]
["2015-09-27","Velká cena Ostravy","VC","j","Zabek","Matyáš",4,"mladší žáci","42",0,0,3,0,0,"Zabek Matyáš",0]
["2015-09-27","Velká cena Ostravy","VC","j","Turčínek","Tomáš",2,"mladší žáci","50",1,0,1,5,1,"Turčínek Tomáš",6]
["2015-09-27","Velká cena Ostravy","VC","j","Matýsek","Jan",5,"mladší žáci","34",0,0,4,0,0,"Matýsek Jan",0]
["2015-09-27","Velká cena Ostravy","VC","j","Seinz","Lubomír","bez","starší žáci","60",0,0,3,0,0,"Seinz Lubomír",0]
["2015-09-27","Velká cena Ostravy","VC","j","Král","Miroslav",3,"starší žáci","55",2,0,2,3,2,"Král Miroslav",5]
["2015-09-27","Velká cena Ostravy","VC","j","Havlíčková","Barbora",3,"starší žákyně","52",0,0,2,3,0,"Havlíčková Barbora",3]
["2015-09-27","Velká cena Ostravy","VC","j","Ďurinová","Kristýna",2,"starší žákyně","57",1,0,1,5,1,"Ďurinová Kristýna",6]
["2015-09-27","Velká cena Ostravy","VC","j","Obercián","Martin",2,"starší žáci","+73",0,0,2,5,0,"Obercián Martin",5]
["2015-09-27","Velká cena Ostravy","VC","j","Dušenka","Michal","bez","starší žáci","60",0,0,2,0,0,"Dušenka Michal",0]
["2015-10-04","MČR Muži a ženy - PRO Sport Teplice","MCR","j","Kohn","Pavel",9,"muži","60",0,0,2,0,0,"Kohn Pavel",0]
["2015-10-04","MČR Muži a ženy - PRO Sport Teplice","MCR","j","Selecký","Lukáš",3,"muži","66",1,0,2,{"$f":"IF(ISNA(VLOOKUP(C406&G406,$V$3:$W$83,2,FALSE)),0,VLOOKUP(C406&G406,$V$3:$W$83,2,FALSE))","v":10},{"$f":"IF(D406=\"d\",SUM(J406*2,K406),J406)","v":1},{"$f":"E406&\" \"&F406","v":"Selecký Lukáš"},11]
["2015-10-04","MČR Muži a ženy - PRO Sport Teplice","MCR","j","Šmehlík","František",7,"muži","73",1,0,2,{"$f":"IF(ISNA(VLOOKUP(C407&G407,$V$3:$W$83,2,FALSE)),0,VLOOKUP(C407&G407,$V$3:$W$83,2,FALSE))","v":5},{"$f":"IF(D407=\"d\",SUM(J407*2,K407),J407)","v":1},{"$f":"E407&\" \"&F407","v":"Šmehlík František"},6]
["2015-10-04","MČR Muži a ženy - PRO Sport Teplice","MCR","j","Svoboda","Jiří",7,"muži","81",1,0,2,{"$f":"IF(ISNA(VLOOKUP(C408&G408,$V$3:$W$83,2,FALSE)),0,VLOOKUP(C408&G408,$V$3:$W$83,2,FALSE))","v":5},{"$f":"IF(D408=\"d\",SUM(J408*2,K408),J408)","v":1},{"$f":"E408&\" \"&F408","v":"Svoboda Jiří"},6]
["2015-10-04","MČR Muži a ženy - PRO Sport Teplice","MCR","j","Raška","Michael",4,"muži","100",2,0,3,{"$f":"IF(ISNA(VLOOKUP(C409&G409,$V$3:$W$83,2,FALSE)),0,VLOOKUP(C409&G409,$V$3:$W$83,2,FALSE))","v":7},{"$f":"IF(D409=\"d\",SUM(J409*2,K409),J409)","v":2},{"$f":"E409&\" \"&F409","v":"Raška Michael"},9]
["2015-10-03","Český pohár-Kvalifikační Soutěž - Teplice","KT","j","Raška","Michael",2,"dorostenci","+90",4,0,1,7,4,"Raška Michael",11]
["2015-10-03","Český pohár-Kvalifikační Soutěž - Teplice","KT","j","Pustějovský","Tomáš",5,"dorostenci","90",1,0,2,3,1,"Pustějovský Tomáš",4]
["2015-10-03","Český pohár-Kvalifikační Soutěž - Teplice","KT","j","Janík","Tadeáš","bez","dorostenci","66",0,0,2,0,0,"Janík Tadeáš",0]
["2015-10-03","Český pohár-Kvalifikační Soutěž - Teplice","KT","j","Martínková","Adéla",3,"dorostenky","70",2,0,1,5,2,"Martínková Adéla",7]
["2015-10-03","Český pohár-Kvalifikační Soutěž - Teplice","KT","j","Ondrašíková","Eva",5,"dorostenky","+70",1,0,2,3,1,"Ondrašíková Eva",4]
["2015-09-19","Český pohár -  Kvalifikační Soutěž - Brno","KT","j","Šeděnka","Richard","bez","muži","73",0,0,1,0,0,"Šeděnka Richard",0]
["2015-09-19","Český pohár -  Kvalifikační Soutěž - Brno","KT","j","Kocman","Petr","bez","dorostenci","55",0,0,2,0,0,"Kocman Petr",0]
["2015-09-19","Český pohár -  Kvalifikační Soutěž - Brno","KT","j","Martínková","Adéla",5,"dorostenky","70",2,0,2,3,2,"Martínková Adéla",5]
["2015-10-11","MT - Olešnica - Polsko","MT","j","Selecký","Lukáš",1,"junioři","66",5,0,0,10,5,"Selecký Lukáš",15]
["2015-10-10","GRAND PRIX Považská Bystica","MVC","j","Čebík","Filip",5,"mláďata","38",2,0,2,0,2,"Čebík Filip",2]
["2015-10-10","GRAND PRIX Považská Bystica","MVC","j","Huvar","Jakub","bez","mláďata","38",0,0,2,0,0,"Huvar Jakub",0]
["2015-10-10","GRAND PRIX Považská Bystica","MVC","j","Tomek","David",5,"mláďata","46",2,0,2,0,2,"Tomek David",2]
["2015-10-10","GRAND PRIX Považská Bystica","MVC","j","Václavková","Tereza",1,"mladší žákyně","40",4,0,0,6,4,"Václavková Tereza",10]
["2015-10-10","GRAND PRIX Považská Bystica","MVC","j","Zabek","Matyáš","bez","mladší žáci","42",1,0,2,0,1,"Zabek Matyáš",1]
["2015-10-10","GRAND PRIX Považská Bystica","MVC","j","Křížek","Šimon",7,"mladší žáci","46",2,0,2,0,2,"Křížek Šimon",2]
["2015-10-10","GRAND PRIX Považská Bystica","MVC","j","Meixner","Tomáš",1,"mladší žáci","34",4,0,0,6,4,"Meixner Tomáš",10]
["2015-10-10","GRAND PRIX Považská Bystica","MVC","j","Kunc","Matěj",2,"mladší žáci","34",4,0,1,5,4,"Kunc Matěj",9]
["2015-10-10","GRAND PRIX Považská Bystica","MVC","j","Malaczynski","Filip",7,"mladší žáci","34",2,0,2,0,2,"Malaczynski Filip",2]
["2015-10-10","GRAND PRIX Považská Bystica","MVC","j","Tycar","Štěpán",3,"mladší žáci","38",4,0,1,3,4,"Tycar Štěpán",7]
["2015-10-10","GRAND PRIX Považská Bystica","MVC","j","Kuncová","Viktorie",4,"starší žákyně","44",0,0,3,0,0,"Kuncová Viktorie",0]
["2015-10-10","GRAND PRIX Považská Bystica","MVC","j","Brzusková","Marie",5,"starší žákyně","48",0,0,4,0,0,"Brzusková Marie",0]
["2015-10-10","Velká cena Karviné","VC","j","Krčmář","Jakub",2,"mláďata","33",3,0,1,5,3,"Krčmář Jakub",8]
["2015-10-10","Velká cena Karviné","VC","j","Kolář","Daniel",4,"mláďata","32",0,0,4,0,0,"Kolář Daniel",0]
["2015-10-10","Velká cena Karviné","VC","j","Malcová","Sabrina",2,"mláďata","26",0,0,2,5,0,"Malcová Sabrina",5]
["2015-10-10","Velká cena Karviné","VC","j","Kožušník","Vojtěch",4,"mláďata","33",1,0,3,0,1,"Kožušník Vojtěch",1]
["2015-10-10","Velká cena Karviné","VC","j","Král","Miroslav",1,"starší žáci","55",2,0,1,6,2,"Král Miroslav",8]
["2015-10-10","Velká cena Karviné","VC","j","Blažej","Jan",2,"starší žáci","60",0,0,2,5,0,"Blažej Jan",5]
["2015-10-10","Velká cena Karviné","VC","j","Mojžíšek","Lukáš",1,"starší žáci","60",2,0,0,6,2,"Mojžíšek Lukáš",8]
["2015-10-10","MT - Olešnica - Polsko","MT","j","Martínková","Adéla","bez","dorostenky","70",0,0,1,0,0,"Martínková Adéla",0]
["2015-09-20","Český pohár -  Kvalifikační Soutěž - Brno","KT","j","Václavková","Tereza",3,"mladší žákyně","40",3,0,1,5,3,"Václavková Tereza",8]
["2015-09-20","Český pohár -  Kvalifikační Soutěž - Brno","KT","j","Kokešová","Alexandra",3,"mladší žákyně","44",3,0,1,5,3,"Kokešová Alexandra",8]
["2015-09-20","Český pohár -  Kvalifikační Soutěž - Brno","KT","j","Kuncová","Viktorie","bez","starší žákyně","44",0,0,1,0,0,"Kuncová Viktorie",0]
["2015-09-20","Český pohár -  Kvalifikační Soutěž - Brno","KT","j","Havlíčková","Barbora","bez","starší žákyně","52",1,0,2,0,1,"Havlíčková Barbora",1]
["2015-09-20","Český pohár -  Kvalifikační Soutěž - Brno","KT","j","Ďurinová","Kristýna","bez","starší žákyně","63",0,0,1,0,0,"Ďurinová Kristýna",0]
["2015-09-20","Český pohár -  Kvalifikační Soutěž - Brno","KT","j","Meixner","Tomáš","bez","mladší žáci","34",2,0,2,0,2,"Meixner Tomáš",2]
["2015-09-20","Český pohár -  Kvalifikační Soutěž - Brno","KT","j","Malaczynski","Filip",5,"mladší žáci","34",3,0,2,3,3,"Malaczynski Filip",6]
["2015-09-20","Český pohár -  Kvalifikační Soutěž - Brno","KT","j","Kunc","Matěj","bez","mladší žáci","34",0,0,1,0,0,"Kunc Matěj",0]
["2015-09-20","Český pohár -  Kvalifikační Soutěž - Brno","KT","j","Tycar","Štěpán",3,"mladší žáci","38",6,0,1,5,6,"Tycar Štěpán",11]
["2015-09-20","Český pohár -  Kvalifikační Soutěž - Brno","KT","j","Bulka","Vojtěch","bez","mladší žáci","38",1,0,2,0,1,"Bulka Vojtěch",1]
["2015-09-20","Český pohár -  Kvalifikační Soutěž - Brno","KT","j","Křížek","Šimon","bez","mladší žáci","46",0,0,2,0,0,"Křížek Šimon",0]
["2015-09-20","Český pohár -  Kvalifikační Soutěž - Brno","KT","j","Turčínek","Tomáš","bez","mladší žáci","55",0,0,2,{"$f":"IF(ISNA(VLOOKUP(C450&G450,$V$3:$W$83,2,FALSE)),0,VLOOKUP(C450&G450,$V$3:$W$83,2,FALSE))","v":0},0,{"$f":"E450&\" \"&F450","v":"Turčínek Tomáš"},0]
["2015-09-20","Český pohár -  Kvalifikační Soutěž - Brno","KT","j","Motyka","Dominik","bez","mladší žáci","+60",2,0,2,0,{"$f":"IF(D451=\"d\",SUM(J451*2,K451),J451)","v":2},"Motyka Dominik",{"$f":"SUM(M451,N451)","v":2}]
["2015-09-20","Český pohár -  Kvalifikační Soutěž - Brno","KT","j","Pavlica","Lukáš","bez","starší žáci","55",0,0,1,0,0,"Pavlica Lukáš",0]
["2015-09-20","Český pohár -  Kvalifikační Soutěž - Brno","KT","j","Blažej","Jan","bez","starší žáci","60",0,0,1,0,0,"Blažej Jan",0]
["2015-09-20","Český pohár -  Kvalifikační Soutěž - Brno","KT","j","Mojžíšek","Lukáš","bez","starší žáci","60",0,0,1,0,0,"Mojžíšek Lukáš",0]
["2015-09-20","Český pohár -  Kvalifikační Soutěž - Brno","KT","j","Moravec","Jan","bez","starší žáci","73",0,0,2,0,0,"Moravec Jan",0]
["2015-09-20","Český pohár -  Kvalifikační Soutěž - Brno","KT","j","Král","Jan",7,"starší žáci","73",2,0,2,2,2,"Král Jan",4]
["2015-09-20","Český pohár -  Kvalifikační Soutěž - Brno","KT","j","Pavlica","Tomáš","bez","starší žáci","+73",1,0,1,0,1,"Pavlica Tomáš",1]
["2015-09-20","Český pohár -  Kvalifikační Soutěž - Brno","KT","j","Brzusková","Marie","bez","starší žákyně","48",0,0,1,0,0,"Brzusková Marie",0]
["2015-10-03","ČP -  Kvalifikační Soutěž - Teplice","KT","j","Václavková","Tereza",2,"mladší žákyně","40",2,0,1,{"$f":"IF(ISNA(VLOOKUP(C459&G459,$V$3:$W$83,2,FALSE)),0,VLOOKUP(C459&G459,$V$3:$W$83,2,FALSE))","v":7},{"$f":"IF(D459=\"d\",SUM(J459*2,K459),J459)","v":2},{"$f":"E459&\" \"&F459","v":"Václavková Tereza"},9]
["2015-10-03","ČP -  Kvalifikační Soutěž - Teplice","KT","j","Havlíčková","Barbora",5,"starší žákyně","52",1,0,2,3,1,"Havlíčková Barbora",4]
["2015-10-03","ČP -  Kvalifikační Soutěž - Teplice","KT","j","Ďurinová","Kristýna",3,"starší žákyně","63",2,0,1,5,2,"Ďurinová Kristýna",7]
["2015-10-03","ČP -  Kvalifikační Soutěž - Teplice","KT","j","Tycar","Štěpán",1,"mladší žáci","38",5,0,0,10,5,"Tycar Štěpán",15]
["2015-10-03","ČP -  Kvalifikační Soutěž - Teplice","KT","j","Malaczynski","Filip","bez","mladší žáci","34",0,0,1,0,0,"Malaczynski Filip",0]
["2015-10-03","ČP -  Kvalifikační Soutěž - Teplice","KT","j","Kunc","Matěj",3,"mladší žáci","34",5,0,1,5,5,"Kunc Matěj",10]
["2015-10-03","ČP -  Kvalifikační Soutěž - Teplice","KT","j","Moravec","Jan","bez","starší žáci","73",0,0,2,0,0,"Moravec Jan",0]
["2015-10-03","ČP -  Kvalifikační Soutěž - Teplice","KT","j","Král","Jan",7,"starší žáci","73",2,0,2,2,2,"Král Jan",4]
["2015-10-03","ČP -  Kvalifikační Soutěž - Teplice","KT","j","Meixner","Tomáš",5,"mladší žáci","34",4,0,2,3,4,"Meixner Tomáš",7]
["2015-10-17","Dorostenecká liga III. Kolo - Hranice","DL","d","Franek","Patrik",null,"dorostenci","55",3,0,1,0,6,"Franek Patrik",6]
["2015-10-17","Dorostenecká liga III. Kolo - Hranice","DL","d","Kocman","Petr",null,"dorostenci","55",0,0,1,0,0,"Kocman Petr",0]
["2015-10-17","Dorostenecká liga III. Kolo - Hranice","DL","d","Kresta","Matěj",null,"dorostenci","60",0,0,2,0,0,"Kresta Matěj",0]
["2015-10-17","Dorostenecká liga III. Kolo - Hranice","DL","d","Šmatelka","Ondřej",null,"dorostenci","73",0,0,0,0,0,"Šmatelka Ondřej",0]
["2015-10-17","Dorostenecká liga III. Kolo - Hranice","DL","d","Pátek","Jan",null,"dorostenci","81",3,0,2,{"$f":"IF(ISNA(VLOOKUP(C472&G472,$V$3:$W$83,2,FALSE)),0,VLOOKUP(C472&G472,$V$3:$W$83,2,FALSE))","v":0},{"$f":"IF(D472=\"d\",SUM(J472*2,K472),J472)","v":6},{"$f":"E472&\" \"&F472","v":"Pátek Jan"},6]
["2015-10-17","Dorostenecká liga III. Kolo - Hranice","DL","d","Pustějovský","Tomáš",null,"dorostenci","90",2,0,3,0,4,"Pustějovský Tomáš",4]
["2015-10-17","Dorostenecká liga III. Kolo - Hranice","DL","d","Raška","Michael",null,"dorostenci","+90",3,0,2,0,6,"Raška Michael",6]
["2015-10-18","Sosnowiec – Polsko ","MVC","j","Fulneček","Šimon",1,"mláďata","54",2,0,0,6,2,"Fulneček Šimon",8]
["2015-10-17","Turnaj benjamínků – Štramberk","MC","j","Boháček","Jan",1,"mláďata","35",4,0,0,4,4,"Boháček Jan",8]
["2015-10-24","Přebor České Republiky - Jičín","PCR","j","Brzusková","Marie","bez","starší žákyně","48",0,0,1,0,0,"Brzusková Marie",0]
["2015-10-24","Přebor České Republiky - Jičín","PCR","j","Havlíčková","Barbora","bez","starší žákyně","52",0,0,1,0,0,"Havlíčková Barbora",0]
["2015-10-24","Přebor České Republiky - Jičín","PCR","j","Ďurinová","Kristýna",5,"starší žákyně","57",2,0,1,3,2,"Ďurinová Kristýna",5]
["2015-10-24","Přebor České Republiky - Jičín","PCR","j","Mojžíšek","Lukáš","bez","starší žáci","60",1,0,2,0,1,"Mojžíšek Lukáš",1]
["2015-10-24","Přebor České Republiky - Jičín","PCR","j","Kresta","Matěj",5,"starší žáci","60",3,0,2,3,3,"Kresta Matěj",6]
["2015-10-24","Přebor České Republiky - Jičín","PCR","j","Král","Jan",5,"starší žáci","73",2,0,2,3,2,"Král Jan",5]
["2015-10-24","Extraliga mužů - III.kolo - SKKP Brno","EXL","d","Kohn","Tomáš",null,"muži","66",0,0,2,0,0,"Kohn Tomáš",0]
["2015-10-24","Extraliga mužů - III.kolo - SKKP Brno","EXL","d","Selecký","Lukáš",null,"muži","66",0,0,1,0,0,"Selecký Lukáš",0]
["2015-10-24","Extraliga mužů - III.kolo - SKKP Brno","EXL","d","Otto","Matyáš",null,"muži","73",0,0,2,0,0,"Otto Matyáš",0]
["2015-10-24","Extraliga mužů - III.kolo - SKKP Brno","EXL","d","Pátek","Jan",null,"muži","73",0,0,1,0,0,"Pátek Jan",0]
["2015-10-24","Extraliga mužů - III.kolo - SKKP Brno","EXL","d","Svoboda","Jiří",null,"muži","81",0,0,3,0,0,"Svoboda Jiří",0]
["2015-11-07","Memoriál Josefa Wisniewskiego - Bytom","MVC","j","Franek","Patrik","bez","dorostenci","55",1,0,1,0,1,"Franek Patrik",1]
["2015-11-07","Memoriál Josefa Wisniewskiego - Bytom","MVC","j","Kresta","Matěj","bez","dorostenci","66",0,0,1,0,0,"Kresta Matěj",0]
["2015-11-07","Memoriál Josefa Wisniewskiego - Bytom","MVC","j","Kocman","Petr","bez","dorostenci","55",1,0,1,0,1,"Kocman Petr",1]
["2015-11-07","MČR - Dorostu - Litoměřice","MCR","j","Raška","Michael",2,"dorostenci","+90",2,0,1,15,2,"Raška Michael",17]
["2015-11-07","MČR - Dorostu - Litoměřice","MCR","j","Pátek","Jan",3,"dorostenci","73",4,0,1,10,4,"Pátek Jan",14]
["2015-11-07","MČR - Dorostu - Litoměřice","MCR","j","Pustějovský","Tomáš",3,"dorostenci","81",3,0,2,10,3,"Pustějovský Tomáš",13]
["2015-11-07","MČR - Dorostu - Litoměřice","MCR","j","Martínková","Adéla",3,"dorostenky","70",3,0,1,10,3,"Martínková Adéla",13]
["2015-11-07","MČR - Dorostu - Litoměřice","MCR","j","Chwastarzová","Alena",5,"dorostenky","57",3,0,2,7,3,"Chwastarzová Alena",10]
["2015-11-07","MČR - Dorostu - Litoměřice","MCR","j","Polášková","Kristýna",5,"dorostenky","63",2,0,2,7,2,"Polášková Kristýna",9]
["2015-11-07","MČR - Dorostu - Litoměřice","MCR","j","Ondrašíková","Eva",5,"dorostenky","+70",2,0,2,7,2,"Ondrašíková Eva",9]
["2015-11-14","MČR - Veteránů - Praha","MCR","j","Moravec","Vlastimil",4,"veteráni","81",1,0,3,7,1,"Moravec Vlastimil",8]
["2015-11-14","MČR - Veteránů - Praha","MCR","j","Frydrýšek","Patrik",2,"veteráni","81",2,0,1,15,2,"Frydrýšek Patrik",17]
["2015-11-14","MČR - Veteránů - Praha","MCR","j","Pravda","Pavel",7,"veteráni","81",0,0,2,5,0,"Pravda Pavel",5]
["2015-11-14","MČR - Veteránů - Praha","MCR","j","Chlebový","Arnold",3,"veteráni","90",2,0,1,10,2,"Chlebový Arnold",12]
["2015-11-14","MČR - Veteránů - Praha","MCR","j","Heczko","Tomáš",3,"veteráni","81",3,0,2,10,3,"Heczko Tomáš",13]
["2015-11-14","MČR - Veteránů - Praha","MCR","j","Černota","Jiří",3,"veteráni","81",0,0,3,10,0,"Černota Jiří",10]
["2015-11-14","MČR - Veteránů - Praha","MCR","j","Morav","Dominik",5,"veteráni","81",1,0,2,7,1,"Morav Dominik",8]
["2015-11-14","MČR - Veteránů - Praha","MCR","j","Schöffer","Radim",1,"veteráni","100",4,0,0,20,4,"Schöffer Radim",24]
["2015-11-14","MČR - Veteránů - Praha","MCR","j","Škurlová","Lada",1,"veteráni","70",2,0,1,20,2,"Škurlová Lada",22]
["2015-11-14","Krajský - Přebor - Benjamínků - Opava","PK","j","Huvar","Jakub",1,"mláďata","38",4,0,0,6,4,"Huvar Jakub",10]
["2015-11-14","Krajský - Přebor - Benjamínků - Opava","PK","j","Tomek","David",1,"mláďata","46",5,0,0,6,5,"Tomek David",11]
["2015-11-14","Krajský - Přebor - Benjamínků - Opava","PK","j","Papavasilevský","Marek",2,"mláďata","27",4,0,1,5,4,"Papavasilevský Marek",9]
["2015-11-14","Krajský - Přebor - Benjamínků - Opava","PK","j","Chmela","Tomáš",2,"mláďata","30",3,0,1,5,3,"Chmela Tomáš",8]
["2015-11-14","Krajský - Přebor - Benjamínků - Opava","PK","j","Neuwirt","Petr",2,"mláďata","24",1,0,2,5,1,"Neuwirt Petr",6]
["2015-11-14","Krajský - Přebor - Benjamínků - Opava","PK","j","Mikendová","Tereza",2,"mláďata","42",2,0,2,5,2,"Mikendová Tereza",7]
["2015-11-14","Krajský - Přebor - Benjamínků - Opava","PK","j","Meixner","Michal",3,"mláďata","27",1,0,2,3,1,"Meixner Michal",4]
["2015-11-14","Krajský - Přebor - Benjamínků - Opava","PK","j","Jeřábek","Jan",3,"mláďata","27",1,0,2,{"$f":"IF(ISNA(VLOOKUP(C514&G514,$V$3:$W$83,2,FALSE)),0,VLOOKUP(C514&G514,$V$3:$W$83,2,FALSE))","v":3},1,{"$f":"E514&\" \"&F514","v":"Jeřábek Jan"},4]
["2015-11-14","Krajský - Přebor - Benjamínků - Opava","PK","j","Čebík","Filip",3,"mláďata","38",2,0,1,3,{"$f":"IF(D515=\"d\",SUM(J515*2,K515),J515)","v":2},"Čebík Filip",{"$f":"SUM(M515,N515)","v":5}]
["2015-11-14","Krajský - Přebor - Benjamínků - Opava","PK","j","Malcová","Sabrina",3,"mláďata","27",2,0,1,3,2,"Malcová Sabrina",5]
["2015-11-14","Krajský - Přebor - Benjamínků - Opava","PK","j","Seibert","Marian",4,"mláďata","34",1,0,3,0,1,"Seibert Marian",1]
["2015-11-14","Krajský - Přebor - Benjamínků - Opava","PK","j","Cagala","Šimon",4,"mláďata","27",0,0,3,0,0,"Cagala Šimon",0]
["2015-11-14","Krajský - Přebor - Benjamínků - Opava","PK","j","Kolář","Daniel","bez","mláďata","34",1,0,2,0,1,"Kolář Daniel",1]
["2015-11-14","Krajský - Přebor - Benjamínků - Opava","PK","j","Zach","Matyáš",7,"mláďata","34",0,0,2,0,0,"Zach Matyáš",0]
["2015-11-14","Krajský - Přebor - Benjamínků - Opava","PK","j","Papaj","Tobiáš",5,"mláďata","38",1,0,1,0,1,"Papaj Tobiáš",1]
["2015-11-14","Krajský - Přebor - Benjamínků - Opava","PK","j","Přibil","Jakub",7,"mláďata","38",0,0,2,0,0,"Přibil Jakub",0]
["2015-11-22","Dorostenecká liga IV. Kolo - Praha","DL","d","Raška","Michael",2,"dorostenci","+90",4,0,1,15,8,"Raška Michael",23]
["2015-11-22","Dorostenecká liga IV. Kolo - Praha","DL","d","Pustějovský","Tomáš",2,"dorostenci","90",2,0,3,15,4,"Pustějovský Tomáš",19]
["2015-11-22","Dorostenecká liga IV. Kolo - Praha","DL","d","Franek","Patrik",2,"dorostenci","55",4,0,0,15,8,"Franek Patrik",23]
["2015-11-22","Dorostenecká liga IV. Kolo - Praha","DL","d","Kocman","Petr",2,"dorostenci","55",1,0,0,15,2,"Kocman Petr",17]
["2015-11-22","Dorostenecká liga IV. Kolo - Praha","DL","d","Kresta","Matěj",2,"dorostenci","60",0,0,2,15,0,"Kresta Matěj",15]
["2015-11-22","Dorostenecká liga IV. Kolo - Praha","DL","d","Pátek","Jan",2,"dorostenci","81",4,0,1,15,8,"Pátek Jan",23]
["2015-11-22","Dorostenecká liga IV. Kolo - Praha","DL","d","Šmatelka","Ondřej",2,"dorostenci","73",1,0,0,15,2,"Šmatelka Ondřej",17]
["2015-11-28","MT - Las Palmas - Gran Canaria","MT","j","Selecký","Lukáš",2,"junioři","66",3,0,1,7,3,"Selecký Lukáš",10]
["2015-11-21","Přebor České Republiky - Ostrava","PCR","j","Václavková","Tereza",2,"mladší žákyně","40",2,0,1,7,2,"Václavková Tereza",9]
["2015-11-21","Přebor České Republiky - Ostrava","PCR","j","Malaczynski","Filip",3,"mladší žáci","30",2,0,1,5,2,"Malaczynski Filip",7]
["2015-11-21","Přebor České Republiky - Ostrava","PCR","j","Kokešová","Alexandra",3,"mladší žákyně","48",3,0,1,5,3,"Kokešová Alexandra",8]
["2015-11-21","Přebor České Republiky - Ostrava","PCR","j","Kunc","Matěj",5,"mladší žáci","34",3,0,1,3,3,"Kunc Matěj",6]
["2015-11-21","Přebor České Republiky - Ostrava","PCR","j","Motyka","Dominik",5,"mladší žáci","+60",2,0,2,3,2,"Motyka Dominik",5]
["2015-11-21","Přebor České Republiky - Ostrava","PCR","j","Tycar","Štěpán",9,"mladší žáci","38",2,0,2,0,2,"Tycar Štěpán",2]
["2015-11-21","Přebor České Republiky - Ostrava","PCR","j","Bulka","Vojtěch","bez","mladší žáci","38",1,0,1,0,1,"Bulka Vojtěch",1]
["2015-11-21","Přebor České Republiky - Ostrava","PCR","j","Meixner","Tomáš","bez","mladší žáci","34",0,0,1,0,0,"Meixner Tomáš",0]
["2015-11-21","Přebor České Republiky - Ostrava","PCR","j","Turčínek","Tomáš","bez","mladší žáci","50",0,0,1,0,0,"Turčínek Tomáš",0]
["2015-11-21","Přebor České Republiky - Ostrava","PCR","j","Hrtus","Rostislav","bez","mladší žáci","55",0,0,1,0,0,"Hrtus Rostislav",0]
["2015-12-05","Vánoční Turnaj -  Mohelnice","VC","j","Boháček","Jan",1,"mláďata","34",4,0,0,6,4,"Boháček Jan",10]
["2015-11-28","Mistrovství Moravy Benjamínků","VC","j","Papavasilevský","Marek",3,"mláďata","27",1,0,3,3,1,"Papavasilevský Marek",4]
["2015-11-28","Mistrovství Moravy Benjamínků","VC","j","Chmela","Tomáš",3,"mláďata","30",2,0,2,3,2,"Chmela Tomáš",5]
["2015-11-28","Mistrovství Moravy Benjamínků","VC","j","Meixner","Michal",4,"mláďata","27",1,0,3,0,1,"Meixner Michal",1]
["2015-11-28","Mistrovství Moravy Benjamínků","VC","j","Boháček","Jan",3,"mláďata","34",5,0,1,3,5,"Boháček Jan",8]
["2015-11-28","Mistrovství Moravy Benjamínků","VC","j","Huvar","Jakub",2,"mláďata","37",4,0,1,5,4,"Huvar Jakub",9]
["2015-11-28","Mistrovství Moravy Benjamínků","VC","j","Čebík","Filip",3,"mláďata","37",4,0,1,3,4,"Čebík Filip",7]
["2015-11-07","Halloween Mač - družstva - Hranice","VC","d","Václavková","Tereza",4,"mladší žákyně","38",4,0,1,0,8,"Václavková Tereza",8]
["2015-11-07","Halloween Mač - družstva - Hranice","VC","d","Kokešová","Alexandra",4,"mladší žákyně","46",3,0,2,0,6,"Kokešová Alexandra",6]
["2015-11-07","Halloween Mač - družstva - Hranice","VC","d","Kunc","Matěj",4,"mladší žáci","34",5,0,0,0,10,"Kunc Matěj",10]
["2015-11-07","Halloween Mač - družstva - Hranice","VC","d","Meixner","Tomáš",2,"mladší žáci","34",3,0,3,5,6,"Meixner Tomáš",11]
["2015-11-07","Halloween Mač - družstva - Hranice","VC","d","Tycar","Štěpán",2,"mladší žáci","42",5,0,1,5,10,"Tycar Štěpán",15]
["2015-11-07","Halloween Mač - družstva - Hranice","VC","d","Bulka","Vojtěch",2,"mladší žáci","38",6,0,0,5,12,"Bulka Vojtěch",17]
["2015-11-07","Halloween Mač - družstva - Hranice","VC","d","Křížek","Šimon",2,"mladší žáci","46",5,0,1,5,10,"Křížek Šimon",15]
["2015-11-07","Halloween Mač - družstva - Hranice","VC","d","Kolář","Daniel",4,"mladší žáci","42",0,0,5,0,0,"Kolář Daniel",0]
["2015-11-07","Halloween Mač - družstva - Hranice","VC","d","Turčínek","Tomáš",4,"mladší žáci","50",1,0,4,0,2,"Turčínek Tomáš",2]
["2015-11-07","Halloween Mač - družstva - Hranice","VC","d","Zabek","Matyáš",3,"mladší žáci","42",2,0,4,3,4,"Zabek Matyáš",7]
["2015-11-07","Halloween Mač - družstva - Hranice","VC","d","Motyka","Dominik",2,"mladší žáci","+55",2,0,4,5,4,"Motyka Dominik",9]
["2015-03-14","Kvalifikační turnaj - Jablonec nad Nisou","KT","j","Václavková","Tereza",1,"mladší žákyně","36",4,0,0,10,4,"Václavková Tereza",14]
["2015-03-14","Kvalifikační turnaj - Jablonec nad Nisou","KT","j","Kokešová","Alexandra",5,"mladší žákyně","44",2,0,2,3,2,"Kokešová Alexandra",5]
["2015-03-14","Kvalifikační turnaj - Jablonec nad Nisou","KT","j","Turčínek","Tomáš","bez","mladší žáci","50",0,0,2,0,0,"Turčínek Tomáš",0]
["2015-03-14","Kvalifikační turnaj - Jablonec nad Nisou","KT","j","Franek","Adam",2,"mladší žáci","55",3,0,1,7,3,"Franek Adam",10]
["2015-03-14","Kvalifikační turnaj - Jablonec nad Nisou","KT","j","Meixner","Tomáš","bez","mladší žáci","34",1,0,1,0,1,"Meixner Tomáš",1]
["2015-03-14","Kvalifikační turnaj - Jablonec nad Nisou","KT","j","Motyka","Dominik",3,"mladší žáci","60",1,0,1,5,1,"Motyka Dominik",6]
["2015-03-14","Kvalifikační turnaj - Jablonec nad Nisou","KT","j","Havlíčková","Barbora","bez","starší žákyně","48",0,0,2,0,0,"Havlíčková Barbora",0]
["2015-03-14","Kvalifikační turnaj - Jablonec nad Nisou","KT","j","Bulka","Vojtěch",7,"mladší žáci","38",3,0,2,2,3,"Bulka Vojtěch",5]
["2015-03-14","Kvalifikační turnaj - Jablonec nad Nisou","KT","j","Kunc","Matěj",7,"mladší žáci","34",4,0,2,2,4,"Kunc Matěj",6]
["2015-03-14","Kvalifikační turnaj - Jablonec nad Nisou","KT","j","Hrtus","Rostislav","bez","mladší žáci","55",0,0,1,0,0,"Hrtus Rostislav",0]
["2015-03-14","Kvalifikační turnaj - Jablonec nad Nisou","KT","j","Malaczynski","Filip",7,"mladší žáci","30",2,0,2,2,2,"Malaczynski Filip",4]
["2015-03-14","Kvalifikační turnaj - Jablonec nad Nisou","KT","j","Kresta","Matěj","bez","starší žáci","60",0,0,1,0,0,"Kresta Matěj",0]
["2015-03-14","Kvalifikační turnaj - Jablonec nad Nisou","KT","j","Pavlica","Tomáš","bez","starší žáci","73",1,0,2,0,1,"Pavlica Tomáš",1]
["2015-06-28","MT  -  GRAZ CUP 2015","MT","j","Václavková","Tereza",5,"mladší žákyně","40",0,0,2,3,0,"Václavková Tereza",3]
["2015-06-28","MT  -  GRAZ CUP 2015","MT","j","Meixner","Tomáš","bez","mladší žáci","34",2,0,2,0,2,"Meixner Tomáš",2]
["2015-06-28","MT  -  GRAZ CUP 2015","MT","j","Kunc","Matěj","bez","mladší žáci","34",0,0,1,0,0,"Kunc Matěj",0]
["2015-06-28","MT  -  GRAZ CUP 2015","MT","j","Tycar","Štěpán",2,"mladší žáci","38",4,0,1,7,4,"Tycar Štěpán",11]
["2015-06-28","MT  -  GRAZ CUP 2015","MT","j","Havlíčková","Barbora","bez","starší žákyně","52",0,0,2,0,0,"Havlíčková Barbora",0]
["2015-06-28","MT  -  GRAZ CUP 2015","MT","j","Malaczynski","Filip",1,"mladší žáci","34",4,0,0,10,4,"Malaczynski Filip",14]
["2015-06-28","MT  -  GRAZ CUP 2015","MT","j","Mojžíšek","Lukáš","bez","starší žáci","60",1,0,2,{"$f":"IF(ISNA(VLOOKUP(C578&G578,$V$3:$W$83,2,FALSE)),0,VLOOKUP(C578&G578,$V$3:$W$83,2,FALSE))","v":0},1,{"$f":"E578&\" \"&F578","v":"Mojžíšek Lukáš"},1]
["2015-06-28","MT  -  GRAZ CUP 2015","MT","j","Franek","Adam","bez","starší žáci","55",0,0,2,0,{"$f":"IF(D579=\"d\",SUM(J579*2,K579),J579)","v":0},"Franek Adam",{"$f":"SUM(M579,N579)","v":0}]
["2015-06-28","MT  -  GRAZ CUP 2015","MT","j","Bulka","Vojtěch","bez","mladší žáci","38",1,0,2,0,1,"Bulka Vojtěch",1]
["2015-12-12","Pohár starostky obce  Dobrá","VC","j","Bulka","Vojtěch",1,"mladší žáci","38",3,0,0,6,3,"Bulka Vojtěch",9]
["2015-12-12","Pohár starostky obce  Dobrá","VC","j","Václavková","Tereza",1,"mladší žákyně","44",2,0,0,6,2,"Václavková Tereza",8]
["2015-12-12","Pohár starostky obce  Dobrá","VC","j","Kokešová","Alexandra",1,"mladší žákyně","52",2,0,0,6,2,"Kokešová Alexandra",8]
["2015-12-12","Pohár starostky obce  Dobrá","VC","j","Mikendová","Tereza",1,"mláďata","46",4,0,0,6,4,"Mikendová Tereza",10]
["2015-12-12","Pohár starostky obce  Dobrá","VC","j","Neuwirt","Petr",1,"mláďata","24",2,0,0,6,2,"Neuwirt Petr",8]
["2015-12-12","Pohár starostky obce  Dobrá","VC","j","Král","Miroslav",1,"starší žáci","55",5,0,0,6,5,"Král Miroslav",11]
["2015-12-12","Pohár starostky obce  Dobrá","VC","j","Meixner","Tomáš",2,"mladší žáci","30",3,0,1,5,3,"Meixner Tomáš",8]
["2015-12-12","Pohár starostky obce  Dobrá","VC","j","Hráček","Jakub",2,"starší žáci","55",4,0,1,5,4,"Hráček Jakub",9]
["2015-12-12","Pohár starostky obce  Dobrá","VC","j","Motyka","Dominik",2,"mladší žáci","+60",4,0,1,5,4,"Motyka Dominik",9]
["2015-12-12","Pohár starostky obce  Dobrá","VC","j","Ďurinová","Kristýna",2,"starší žákyně","63",1,0,1,5,1,"Ďurinová Kristýna",6]
["2015-12-12","Pohár starostky obce  Dobrá","VC","j","Otáhalová","Magda",2,"mladší žákyně","44",1,0,1,5,1,"Otáhalová Magda",6]
["2015-12-12","Pohár starostky obce  Dobrá","VC","j","Křenková","Marie",2,"starší žákyně","+63",0,0,2,5,0,"Křenková Marie",5]
["2015-12-12","Pohár starostky obce  Dobrá","VC","j","Kuncová","Viktorie",2,"starší žákyně","44",1,0,1,5,1,"Kuncová Viktorie",6]
["2015-12-12","Pohár starostky obce  Dobrá","VC","j","Tomek","David",2,"mláďata","53",3,0,1,5,3,"Tomek David",8]
["2015-12-12","Pohár starostky obce  Dobrá","VC","j","Král","Jan",2,"starší žáci","73",2,0,1,5,2,"Král Jan",7]
["2015-12-12","Pohár starostky obce  Dobrá","VC","j","Tycar","Štěpán",2,"mladší žáci","38",2,0,1,5,2,"Tycar Štěpán",7]
["2015-12-12","Pohár starostky obce  Dobrá","VC","j","Čerchlová","Markéta",2,"mladší žákyně","+70",1,0,1,5,1,"Čerchlová Markéta",6]
["2015-12-12","Pohár starostky obce  Dobrá","VC","j","Turčínek","Tomáš",2,"mladší žáci","50",3,0,1,5,3,"Turčínek Tomáš",8]
["2015-12-12","Pohár starostky obce  Dobrá","VC","j","Papavasilevský","Marek",2,"mláďata","30",2,0,1,5,2,"Papavasilevský Marek",7]
["2015-12-12","Pohár starostky obce  Dobrá","VC","j","Kresta","Matěj",3,"starší žáci","60",3,0,1,3,3,"Kresta Matěj",6]
["2015-12-12","Pohár starostky obce  Dobrá","VC","j","Moravec","Jan",3,"starší žáci","73",1,0,2,3,1,"Moravec Jan",4]
["2015-12-12","Pohár starostky obce  Dobrá","VC","j","Mojžíšek","Lukáš",3,"starší žáci","66",3,0,1,3,3,"Mojžíšek Lukáš",6]
["2015-12-12","Pohár starostky obce  Dobrá","VC","j","Huvar","Jakub",3,"mláďata","38",3,0,1,3,3,"Huvar Jakub",6]
["2015-12-12","Pohár starostky obce  Dobrá","VC","j","Martináková","Stela",3,"mláďata","30",2,0,1,3,2,"Martináková Stela",5]
["2015-12-12","Pohár starostky obce  Dobrá","VC","j","Havlíčková","Barbora",3,"starší žákyně","63",0,0,2,3,0,"Havlíčková Barbora",3]
["2015-12-12","Pohár starostky obce  Dobrá","VC","j","Kunc","Matěj",3,"mladší žáci","38",2,0,1,3,2,"Kunc Matěj",5]
["2015-12-12","Pohár starostky obce  Dobrá","VC","j","Částečka","Filip",3,"mladší žáci","+60",1,0,2,3,1,"Částečka Filip",4]
["2015-12-12","Pohár starostky obce  Dobrá","VC","j","Čebík","Filip",3,"mláďata","38",4,0,1,3,4,"Čebík Filip",7]
["2015-12-12","Pohár starostky obce  Dobrá","VC","j","Křížek","Šimon",3,"mladší žáci","46",2,0,2,3,2,"Křížek Šimon",5]
["2015-12-12","Pohár starostky obce  Dobrá","VC","j","Zabek","Matyáš",3,"mladší žáci","42",1,0,2,{"$f":"IF(ISNA(VLOOKUP(C610&G610,$V$3:$W$83,2,FALSE)),0,VLOOKUP(C610&G610,$V$3:$W$83,2,FALSE))","v":3},1,{"$f":"E610&\" \"&F610","v":"Zabek Matyáš"},4]
["2015-12-12","Pohár starostky obce  Dobrá","VC","j","Baštinská","Adéla",3,"mladší žákyně","+57",0,0,2,3,0,"Baštinská Adéla",3]
["2015-12-12","Pohár starostky obce  Dobrá","VC","j","Seibert","Marian",3,"mláďata","34",3,0,1,3,3,"Seibert Marian",6]
["2015-12-12","Pohár starostky obce  Dobrá","VC","j","Čerchla","Michal",3,"mláďata","53",2,0,2,3,2,"Čerchla Michal",5]
["2015-12-12","Pohár starostky obce  Dobrá","VC","j","Chmela","Tomáš",3,"mláďata","30",3,0,1,3,{"$f":"IF(D614=\"d\",SUM(J614*2,K614),J614)","v":3},"Chmela Tomáš",6]
["2015-12-12","Pohár starostky obce  Dobrá","VC","j","Blažej","Jan",4,"starší žáci","60",1,0,3,0,1,"Blažej Jan",1]
["2015-12-12","Pohár starostky obce  Dobrá","VC","j","Novotný","Kryštof",4,"mláďata","42",1,0,3,0,1,"Novotný Kryštof",1]
["2015-12-12","Pohár starostky obce  Dobrá","VC","j","Meixner","Michal",5,"mláďata","34",2,0,2,0,2,"Meixner Michal",2]
["2015-12-12","Pohár starostky obce  Dobrá","VC","j","Buranyč","Filip",5,"mláďata","30",1,0,2,0,1,"Buranyč Filip",1]
["2015-12-12","Pohár starostky obce  Dobrá","VC","j","Křenek","Jakub",5,"mláďata","38",2,0,2,0,2,"Křenek Jakub",2]
["2015-12-12","Pohár starostky obce  Dobrá","VC","j","Krčmář","Jakub",5,"mláďata","34",2,0,2,0,2,"Krčmář Jakub",2]
["2015-12-12","Pohár starostky obce  Dobrá","VC","j","Kolář","Vojtěch",7,"mláďata","34",1,0,2,0,1,"Kolář Vojtěch",1]
["2015-12-12","Pohár starostky obce  Dobrá","VC","j","Pelikán","Dominik","bez","mladší žáci","46",0,0,3,0,0,"Pelikán Dominik",0]
["2015-12-12","Pohár starostky obce  Dobrá","VC","j","Martináková","Ema","bez","mláďata","34",0,0,4,0,0,"Martináková Ema",0]
["2015-12-12","Pohár starostky obce  Dobrá","VC","j","Hisem","Matěj","bez","mladší žáci","38",0,0,2,0,0,"Hisem Matěj",0]
["2015-12-12","Pohár starostky obce  Dobrá","VC","j","Dušenka","Michal","bez","starší žáci","55",0,0,2,0,0,"Dušenka Michal",0]
["2015-12-12","Pohár starostky obce  Dobrá","VC","j","Kolář","Daniel","bez","mladší žáci","42",0,0,2,0,0,"Kolář Daniel",0]
["2015-12-12","Pohár starostky obce  Dobrá","VC","j","Horák","Adam","bez","mláďata","+50",0,0,2,0,0,"Horák Adam",0]
["2015-12-12","Pohár starostky obce  Dobrá","VC","j","Přibyl","Jan","bez","mladší žáci","38",0,0,2,0,0,"Přibyl Jan",0]
["2015-12-12","Pohár starostky obce  Dobrá","VC","j","Freiwald","Richard","bez","mladší žáci","42",0,0,2,0,0,"Freiwald Richard",0]
["2015-12-12","Pohár starostky obce  Dobrá","VC","j","Matýsek","Jan","bez","mladší žáci","38",0,0,2,0,0,"Matýsek Jan",0]
["2015-12-12","Pohár starostky obce  Dobrá - družstva","VC","d","Neuwirt","Petr",2,"mláďata","25",1,1,2,5,3,"Neuwirt Petr",8]
["2015-12-12","Pohár starostky obce  Dobrá - družstva","VC","d","Papavasilevský","Marek",2,"mláďata","30",1,0,3,5,2,"Papavasilevský Marek",7]
["2015-12-12","Pohár starostky obce  Dobrá - družstva","VC","d","Boháček","Jan",2,"mláďata","35",3,1,0,5,7,"Boháček Jan",12]
["2015-12-12","Pohár starostky obce  Dobrá - družstva","VC","d","Bulka","Vojtěch",2,"mladší žáci","40",3,0,0,5,6,"Bulka Vojtěch",11]
["2015-12-12","Pohár starostky obce  Dobrá - družstva","VC","d","Tycar","Štěpán",2,"mladší žáci","45",3,0,0,5,6,"Tycar Štěpán",11]
["2015-12-12","Pohár starostky obce  Dobrá - družstva","VC","d","Křížek","Šimon",2,"mladší žáci","50",1,0,1,5,2,"Křížek Šimon",7]
["2015-12-12","Pohár starostky obce  Dobrá - družstva","VC","d","Kokešová","Alexandra",2,"mladší žákyně","55",1,0,3,5,2,"Kokešová Alexandra",7]
["2015-12-12","Pohár starostky obce  Dobrá - družstva","VC","d","Pelikán","Dominik",2,"starší žáci","50",1,0,3,5,2,"Pelikán Dominik",7]
["2015-12-12","Pohár starostky obce  Dobrá - družstva","VC","d","Turčínek","Tomáš",2,"starší žáci","55",0,0,4,5,0,"Turčínek Tomáš",5]
["2015-12-12","Pohár starostky obce  Dobrá - družstva","VC","d","Kresta","Matěj",2,"starší žáci","60",4,0,0,5,8,"Kresta Matěj",13]
["2015-12-12","Pohár starostky obce  Dobrá - družstva","VC","d","Král","Jan",2,"starší žáci","+60",2,0,2,5,4,"Král Jan",9]
[null,"MM Maďarsko Sazhalombatta","MT","j","Černota","Jiří",1,"veteráni","81",0,0,0,{"$f":"IF(ISNA(VLOOKUP(C642&G642,$V$3:$W$83,2,FALSE)),0,VLOOKUP(C642&G642,$V$3:$W$83,2,FALSE))","v":10},0,{"$f":"E642&\" \"&F642","v":"Černota Jiří"},10]
[null,"MM Slovensko Galanta","MT","j","Černota","Jiří",2,"veteráni","81",1,0,1,7,{"$f":"IF(D643=\"d\",SUM(J643*2,K643),J643)","v":1},"Černota Jiří",{"$f":"SUM(M643,N643)","v":8}]
[null,"MM Polsko Sobotka","MT","j","Černota","Jiří",1,"veteráni","81",1,0,0,10,1,"Černota Jiří",11]
[null,"MS Holandsko Amsterodam","MS","j","Černota","Jiří",5,"veteráni","81",1,0,2,60,1,"Černota Jiří",61]
[null,"MM Rakousko Linz","MT","j","Černota","Jiří",1,"veteráni","81",2,0,0,10,2,"Černota Jiří",12]
[null,"MM Maďarsko Sazhalombatta","MT","j","Škurlová","Lada",5,"veteráni","63",0,0,2,3,0,"Škurlová Lada",3]
[null,"MM Slovensko Galanta","MT","j","Škurlová","Lada",2,"veteráni","63",0,0,1,7,0,"Škurlová Lada",7]
[null,"Karviná Masters","MT","j","Chlebový","Arnold",3,"veteráni","90",null,null,null,5,0,"Chlebový Arnold",5]
[null,"Karviná Masters","MT","j","Moravec","Vlastimil",1,"veteráni","73",null,null,null,10,0,"Moravec Vlastimil",10]
[null,"Karviná Masters","MT","j","Pravda","Pavel",2,"veteráni","81",null,null,null,7,0,"Pravda Pavel",7]
[null,"Karviná Masters","MT","j","Mikenda","Tomáš",4,"veteráni","73",null,null,null,3,0,"Mikenda Tomáš",3]
["2015-11-28","Baráž - EXL - I.liga - Mohelnice","EXL","d","Kohn","Tomáš",null,"muži","66",1,0,1,0,2,"Kohn Tomáš",2]
["2015-11-28","Baráž - EXL - I.liga - Mohelnice","EXL","d","Otto","Matyáš",null,"muži","81",0,0,1,0,0,"Otto Matyáš",0]
["2015-11-28","Baráž - EXL - I.liga - Mohelnice","EXL","d","Svoboda","Jiří",null,"muži","81-90",1,0,1,0,2,"Svoboda Jiří",2]
["2015-11-28","Baráž - EXL - I.liga - Mohelnice","EXL","d","Koza","Dušan",null,"muži","90",0,0,1,0,0,"Koza Dušan",0]
[null,null,null,null,null,null,null,null,null,null,null,null,0,0," ",0]
[null,null,null,null,null,null,null,null,null,null,null,null,0,0," ",0]
[null,null,null,null,null,null,null,null,null,null,null,null,0,0," ",0]
[null,null,null,null,null,null,null,null,null,null,null,null,0,0," ",0]
[null,null,null,null,null,null,null,null,null,null,null,null,0,0," ",0]
[null,null,null,null,null,null,null,null,null,null,null,null,0,0," ",0]
[null,null,null,null,null,null,null,null,null,null,null,null,0,0," ",0]
[null,null,null,null,null,null,null,null,null,null,null,null,0,0," ",0]
[null,null,null,null,null,null,null,null,null,null,null,null,0,0," ",0]
[null,null,null,null,null,null,null,null,null,null,null,null,0,0," ",0]
[null,null,null,null,null,null,null,null,null,null,null,null,0,0," ",0]
[null,null,null,null,null,null,null,null,null,null,null,null,0,0," ",0]
[null,null,null,null,null,null,null,null,null,null,null,null,0,0," ",0]
[null,null,null,null,null,null,null,null,null,null,null,null,0,0," ",0]
[null,null,null,null,null,null,null,null,null,null,null,null,0,0," ",0]
[null,null,null,null,null,null,null,null,null,null,null,null,0,0," ",0]
[null,null,null,null,null,null,null,null,null,null,null,null,0,0," ",0]
[null,null,null,null,null,null,null,null,null,null,null,null,0,0," ",0]
[null,null,null,null,null,null,null,null,null,null,null,null,0,0," ",0]
[null,null,null,null,null,null,null,null,null,null,null,null,0,0," ",0]
[null,null,null,null,null,null,null,null,null,null,null,null,0,0," ",0]
[null,null,null,null,null,null,null,null,null,null,null,null,0,0," ",0]
[null,null,null,null,null,null,null,null,null,null,null,null,0,0," ",0]
[null,null,null,null,null,null,null,null,null,null,null,null,0,0," ",0]
[null,null,null,null,null,null,null,null,null,null,null,null,0,0," ",0]
[null,null,null,null,null,null,null,null,null,null,null,null,0,0," ",0]
[null,null,null,null,null,null,null,null,null,null,null,null,0,0," ",0]
[null,null,null,null,null,null,null,null,null,null,null,null,0,0," ",0]
[null,null,null,null,null,null,null,null,null,null,null,null,0,0," ",0]
[null,null,null,null,null,null,null,null,null,null,null,null,0,0," ",0]
[null,null,null,null,null,null,null,null,null,null,null,null,0,0," ",0]
[null,null,null,null,null,null,null,null,null,null,null,null,0,0," ",0]
[null,null,null,null,null,null,null,null,null,null,null,null,0,0," ",0]
[null,null,null,null,null,null,null,null,null,null,null,null,0,0," ",0]
[null,null,null,null,null,null,null,null,null,null,null,null,0,0," ",0]
[null,null,null,null,null,null,null,null,null,null,null,null,0,0," ",0]
[null,null,null,null,null,null,null,null,null,null,null,null,0,0," ",0]
[null,null,null,null,null,null,null,null,null,null,null,null,0,0," ",0]
[null,null,null,null,null,null,null,null,null,null,null,null,0,0," ",0]
[null,null,null,null,null,null,null,null,null,null,null,null,0,0," ",0]
[null,null,null,null,null,null,null,null,null,null,null,null,0,0," ",0]
[null,null,null,null,null,null,null,null,null,null,null,null,0,0," ",0]
[null,null,null,null,null,null,null,null,null,null,null,null,0,0," ",0]
[null,null,null,null,null,null,null,null,null,null,null,null,0,0," ",0]
[null,null,null,null,null,null,null,null,null,null,null,null,0,0," ",0]
[null,null,null,null,null,null,null,null,null,null,null,null,0,0," ",0]
[null,null,null,null,null,null,null,null,null,null,null,null,0,0," ",0]
[null,null,null,null,null,null,null,null,null,null,null,null,0,0," ",0]
[null,null,null,null,null,null,null,null,null,null,null,null,0,0," ",0]
[null,null,null,null,null,null,null,null,null,null,null,null,{"$f":"IF(ISNA(VLOOKUP(C706&G706,$V$3:$W$83,2,FALSE)),0,VLOOKUP(C706&G706,$V$3:$W$83,2,FALSE))","v":0},0,{"$f":"E706&\" \"&F706","v":" "},0]
[null,null,null,null,null,null,null,null,null,null,null,null,0,{"$f":"IF(D707=\"d\",SUM(J707*2,K707),J707)","v":0}," ",{"$f":"SUM(M707,N707)","v":0}]
[null,null,null,null,null,null,null,null,null,null,null,null,0,0," ",0]
[null,null,null,null,null,null,null,null,null,null,null,null,0,0," ",0]
[null,null,null,null,null,null,null,null,null,null,null,null,0,0," ",0]
[null,null,null,null,null,null,null,null,null,null,null,null,0,0," ",0]
[null,null,null,null,null,null,null,null,null,null,null,null,0,0," ",0]
[null,null,null,null,null,null,null,null,null,null,null,null,0,0," ",0]
[null,null,null,null,null,null,null,null,null,null,null,null,0,0," ",0]
[null,null,null,null,null,null,null,null,null,null,null,null,0,0," ",0]
[null,null,null,null,null,null,null,null,null,null,null,null,0,0," ",0]
[null,null,null,null,null,null,null,null,null,null,null,null,0,0," ",0]
[null,null,null,null,null,null,null,null,null,null,null,null,0,0," ",0]
[null,null,null,null,null,null,null,null,null,null,null,null,0,0," ",0]
[null,null,null,null,null,null,null,null,null,null,null,null,0,0," ",0]
[null,null,null,null,null,null,null,null,null,null,null,null,0,0," ",0]
[null,null,null,null,null,null,null,null,null,null,null,null,0,0," ",0]
[null,null,null,null,null,null,null,null,null,null,null,null,0,0," ",0]
[null,null,null,null,null,null,null,null,null,null,null,null,0,0," ",0]
[null,null,null,null,null,null,null,null,null,null,null,null,0,0," ",0]
[null,null,null,null,null,null,null,null,null,null,null,null,0,0," ",0]
[null,null,null,null,null,null,null,null,null,null,null,null,0,0," ",0]
[null,null,null,null,null,null,null,null,null,null,null,null,0,0," ",0]
[null,null,null,null,null,null,null,null,null,null,null,null,0,0," ",0]
[null,null,null,null,null,null,null,null,null,null,null,null,0,0," ",0]
[null,null,null,null,null,null,null,null,null,null,null,null,0,0," ",0]
[null,null,null,null,null,null,null,null,null,null,null,null,0,0," ",0]
[null,null,null,null,null,null,null,null,null,null,null,null,0,0," ",0]
[null,null,null,null,null,null,null,null,null,null,null,null,0,0," ",0]
[null,null,null,null,null,null,null,null,null,null,null,null,0,0," ",0]
[null,null,null,null,null,null,null,null,null,null,null,null,0,0," ",0]
[null,null,null,null,null,null,null,null,null,null,null,null,0,0," ",0]
[null,null,null,null,null,null,null,null,null,null,null,null,0,0," ",0]
[null,null,null,null,null,null,null,null,null,null,null,null,0,0," ",0]
[null,null,null,null,null,null,null,null,null,null,null,null,0,0," ",0]
[null,null,null,null,null,null,null,null,null,null,null,null,0,0," ",0]
[null,null,null,null,null,null,null,null,null,null,null,null,0,0," ",0]
[null,null,null,null,null,null,null,null,null,null,null,null,0,0," ",0]
[null,null,null,null,null,null,null,null,null,null,null,null,0,0," ",0]
[null,null,null,null,null,null,null,null,null,null,null,null,0,0," ",0]
[null,null,null,null,null,null,null,null,null,null,null,null,0,0," ",0]
[null,null,null,null,null,null,null,null,null,null,null,null,0,0," ",0]
[null,null,null,null,null,null,null,null,null,null,null,null,0,0," ",0]
[null,null,null,null,null,null,null,null,null,null,null,null,0,0," ",0]
[null,null,null,null,null,null,null,null,null,null,null,null,0,0," ",0]
[null,null,null,null,null,null,null,null,null,null,null,null,0,0," ",0]
[null,null,null,null,null,null,null,null,null,null,null,null,0,0," ",0]
[null,null,null,null,null,null,null,null,null,null,null,null,0,0," ",0]
[null,null,null,null,null,null,null,null,null,null,null,null,0,0," ",0]
[null,null,null,null,null,null,null,null,null,null,null,null,0,0," ",0]
[null,null,null,null,null,null,null,null,null,null,null,null,0,0," ",0]
[null,null,null,null,null,null,null,null,null,null,null,null,0,0," ",0]
[null,null,null,null,null,null,null,null,null,null,null,null,0,0," ",0]
[null,null,null,null,null,null,null,null,null,null,null,null,0,0," ",0]
[null,null,null,null,null,null,null,null,null,null,null,null,0,0," ",0]
[null,null,null,null,null,null,null,null,null,null,null,null,0,0," ",0]
[null,null,null,null,null,null,null,null,null,null,null,null,0,0," ",0]
[null,null,null,null,null,null,null,null,null,null,null,null,0,0," ",0]
[null,null,null,null,null,null,null,null,null,null,null,null,0,0," ",0]
[null,null,null,null,null,null,null,null,null,null,null,null,0,0," ",0]
[null,null,null,null,null,null,null,null,null,null,null,null,0,0," ",0]
[null,null,null,null,null,null,null,null,null,null,null,null,0,0," ",0]
[null,null,null,null,null,null,null,null,null,null,null,null,0,0," ",0]
[null,null,null,null,null,null,null,null,null,null,null,null,0,0," ",0]
[null,null,null,null,null,null,null,null,null,null,null,null,{"$f":"IF(ISNA(VLOOKUP(C770&G770,$V$3:$W$83,2,FALSE)),0,VLOOKUP(C770&G770,$V$3:$W$83,2,FALSE))","v":0},0,{"$f":"E770&\" \"&F770","v":" "},0]
[null,null,null,null,null,null,null,null,null,null,null,null,0,{"$f":"IF(D771=\"d\",SUM(J771*2,K771),J771)","v":0}," ",{"$f":"SUM(M771,N771)","v":0}]
[null,null,null,null,null,null,null,null,null,null,null,null,0,0," ",0]
[null,null,null,null,null,null,null,null,null,null,null,null,0,0," ",0]
[null,null,null,null,null,null,null,null,null,null,null,null,0,0," ",0]
[null,null,null,null,null,null,null,null,null,null,null,null,0,0," ",0]
[null,null,null,null,null,null,null,null,null,null,null,null,0,0," ",0]
[null,null,null,null,null,null,null,null,null,null,null,null,0,0," ",0]
[null,null,null,null,null,null,null,null,null,null,null,null,0,0," ",0]
[null,null,null,null,null,null,null,null,null,null,null,null,0,0," ",0]
[null,null,null,null,null,null,null,null,null,null,null,null,0,0," ",0]
[null,null,null,null,null,null,null,null,null,null,null,null,0,0," ",0]
[null,null,null,null,null,null,null,null,null,null,null,null,0,0," ",0]
[null,null,null,null,null,null,null,null,null,null,null,null,0,0," ",0]
[null,null,null,null,null,null,null,null,null,null,null,null,0,0," ",0]
[null,null,null,null,null,null,null,null,null,null,null,null,0,0," ",0]
[null,null,null,null,null,null,null,null,null,null,null,null,0,0," ",0]
[null,null,null,null,null,null,null,null,null,null,null,null,0,0," ",0]
[null,null,null,null,null,null,null,null,null,null,null,null,0,0," ",0]
[null,null,null,null,null,null,null,null,null,null,null,null,0,0," ",0]
[null,null,null,null,null,null,null,null,null,null,null,null,0,0," ",0]
[null,null,null,null,null,null,null,null,null,null,null,null,0,0," ",0]
[null,null,null,null,null,null,null,null,null,null,null,null,0,0," ",0]
[null,null,null,null,null,null,null,null,null,null,null,null,0,0," ",0]
[null,null,null,null,null,null,null,null,null,null,null,null,0,0," ",0]
[null,null,null,null,null,null,null,null,null,null,null,null,0,0," ",0]
[null,null,null,null,null,null,null,null,null,null,null,null,0,0," ",0]
[null,null,null,null,null,null,null,null,null,null,null,null,0,0," ",0]
[null,null,null,null,null,null,null,null,null,null,null,null,0,0," ",0]
[null,null,null,null,null,null,null,null,null,null,null,null,0,0," ",0]
[null,null,null,null,null,null,null,null,null,null,null,null,0,0," ",0]
[null,null,null,null,null,null,null,null,null,null,null,null,0,0," ",0]
[null,null,null,null,null,null,null,null,null,null,null,null,0,0," ",0]
[null,null,null,null,null,null,null,null,null,null,null,null,0,0," ",0]
[null,null,null,null,null,null,null,null,null,null,null,null,0,0," ",0]
[null,null,null,null,null,null,null,null,null,null,null,null,0,0," ",0]
[null,null,null,null,null,null,null,null,null,null,null,null,0,0," ",0]
[null,null,null,null,null,null,null,null,null,null,null,null,0,0," ",0]
[null,null,null,null,null,null,null,null,null,null,null,null,0,0," ",0]
[null,null,null,null,null,null,null,null,null,null,null,null,0,0," ",0]
[null,null,null,null,null,null,null,null,null,null,null,null,0,0," ",0]
[null,null,null,null,null,null,null,null,null,null,null,null,0,0," ",0]
[null,null,null,null,null,null,null,null,null,null,null,null,0,0," ",0]
[null,null,null,null,null,null,null,null,null,null,null,null,0,0," ",0]
[null,null,null,null,null,null,null,null,null,null,null,null,0,0," ",0]
[null,null,null,null,null,null,null,null,null,null,null,null,0,0," ",0]
[null,null,null,null,null,null,null,null,null,null,null,null,0,0," ",0]
[null,null,null,null,null,null,null,null,null,null,null,null,0,0," ",0]
[null,null,null,null,null,null,null,null,null,null,null,null,0,0," ",0]
[null,null,null,null,null,null,null,null,null,null,null,null,0,0," ",0]
[null,null,null,null,null,null,null,null,null,null,null,null,0,0," ",0]
[null,null,null,null,null,null,null,null,null,null,null,null,0,0," ",0]
[null,null,null,null,null,null,null,null,null,null,null,null,0,0," ",0]
[null,null,null,null,null,null,null,null,null,null,null,null,0,0," ",0]
[null,null,null,null,null,null,null,null,null,null,null,null,0,0," ",0]
[null,null,null,null,null,null,null,null,null,null,null,null,0,0," ",0]
[null,null,null,null,null,null,null,null,null,null,null,null,0,0," ",0]
[null,null,null,null,null,null,null,null,null,null,null,null,0,0," ",0]
[null,null,null,null,null,null,null,null,null,null,null,null,0,0," ",0]
[null,null,null,null,null,null,null,null,null,null,null,null,0,0," ",0]
[null,null,null,null,null,null,null,null,null,null,null,null,0,0," ",0]
[null,null,null,null,null,null,null,null,null,null,null,null,0,0," ",0]
[null,null,null,null,null,null,null,null,null,null,null,null,0,0," ",0]
[null,null,null,null,null,null,null,null,null,null,null,null,0,0," ",0]
[null,null,null,null,null,null,null,null,null,null,null,null,{"$f":"IF(ISNA(VLOOKUP(C834&G834,$V$3:$W$83,2,FALSE)),0,VLOOKUP(C834&G834,$V$3:$W$83,2,FALSE))","v":0},0,{"$f":"E834&\" \"&F834","v":" "},0]
[null,null,null,null,null,null,null,null,null,null,null,null,0,{"$f":"IF(D835=\"d\",SUM(J835*2,K835),J835)","v":0}," ",{"$f":"SUM(M835,N835)","v":0}]
[null,null,null,null,null,null,null,null,null,null,null,null,0,0," ",0]
[null,null,null,null,null,null,null,null,null,null,null,null,0,0," ",0]
[null,null,null,null,null,null,null,null,null,null,null,null,0,0," ",0]
[null,null,null,null,null,null,null,null,null,null,null,null,0,0," ",0]
[null,null,null,null,null,null,null,null,null,null,null,null,0,0," ",0]
[null,null,null,null,null,null,null,null,null,null,null,null,0,0," ",0]
[null,null,null,null,null,null,null,null,null,null,null,null,0,0," ",0]
[null,null,null,null,null,null,null,null,null,null,null,null,0,0," ",0]
[null,null,null,null,null,null,null,null,null,null,null,null,0,0," ",0]
[null,null,null,null,null,null,null,null,null,null,null,null,0,0," ",0]
[null,null,null,null,null,null,null,null,null,null,null,null,0,0," ",0]
[null,null,null,null,null,null,null,null,null,null,null,null,0,0," ",0]
[null,null,null,null,null,null,null,null,null,null,null,null,0,0," ",0]
[null,null,null,null,null,null,null,null,null,null,null,null,0,0," ",0]
[null,null,null,null,null,null,null,null,null,null,null,null,0,0," ",0]
[null,null,null,null,null,null,null,null,null,null,null,null,0,0," ",0]
[null,null,null,null,null,null,null,null,null,null,null,null,0,0," ",0]
[null,null,null,null,null,null,null,null,null,null,null,null,0,0," ",0]
[null,null,null,null,null,null,null,null,null,null,null,null,0,0," ",0]
[null,null,null,null,null,null,null,null,null,null,null,null,0,0," ",0]
[null,null,null,null,null,null,null,null,null,null,null,null,0,0," ",0]
[null,null,null,null,null,null,null,null,null,null,null,null,0,0," ",0]
[null,null,null,null,null,null,null,null,null,null,null,null,0,0," ",0]
[null,null,null,null,null,null,null,null,null,null,null,null,0,0," ",0]
[null,null,null,null,null,null,null,null,null,null,null,null,0,0," ",0]
[null,null,null,null,null,null,null,null,null,null,null,null,0,0," ",0]
[null,null,null,null,null,null,null,null,null,null,null,null,0,0," ",0]
[null,null,null,null,null,null,null,null,null,null,null,null,0,0," ",0]
[null,null,null,null,null,null,null,null,null,null,null,null,0,0," ",0]
[null,null,null,null,null,null,null,null,null,null,null,null,0,0," ",0]
[null,null,null,null,null,null,null,null,null,null,null,null,0,0," ",0]
[null,null,null,null,null,null,null,null,null,null,null,null,0,0," ",0]
[null,null,null,null,null,null,null,null,null,null,null,null,0,0," ",0]
[null,null,null,null,null,null,null,null,null,null,null,null,0,0," ",0]
[null,null,null,null,null,null,null,null,null,null,null,null,0,0," ",0]
[null,null,null,null,null,null,null,null,null,null,null,null,0,0," ",0]
[null,null,null,null,null,null,null,null,null,null,null,null,0,0," ",0]
[null,null,null,null,null,null,null,null,null,null,null,null,0,0," ",0]
[null,null,null,null,null,null,null,null,null,null,null,null,0,0," ",0]
[null,null,null,null,null,null,null,null,null,null,null,null,0,0," ",0]
[null,null,null,null,null,null,null,null,null,null,null,null,0,0," ",0]
[null,null,null,null,null,null,null,null,null,null,null,null,0,0," ",0]
[null,null,null,null,null,null,null,null,null,null,null,null,0,0," ",0]
[null,null,null,null,null,null,null,null,null,null,null,null,0,0," ",0]
[null,null,null,null,null,null,null,null,null,null,null,null,0,0," ",0]
[null,null,null,null,null,null,null,null,null,null,null,null,0,0," ",0]
[null,null,null,null,null,null,null,null,null,null,null,null,0,0," ",0]
[null,null,null,null,null,null,null,null,null,null,null,null,0,0," ",0]
[null,null,null,null,null,null,null,null,null,null,null,null,0,0," ",0]
[null,null,null,null,null,null,null,null,null,null,null,null,0,0," ",0]
[null,null,null,null,null,null,null,null,null,null,null,null,0,0," ",0]
[null,null,null,null,null,null,null,null,null,null,null,null,0,0," ",0]
[null,null,null,null,null,null,null,null,null,null,null,null,0,0," ",0]
[null,null,null,null,null,null,null,null,null,null,null,null,0,0," ",0]
[null,null,null,null,null,null,null,null,null,null,null,null,0,0," ",0]
[null,null,null,null,null,null,null,null,null,null,null,null,0,0," ",0]
[null,null,null,null,null,null,null,null,null,null,null,null,0,0," ",0]
[null,null,null,null,null,null,null,null,null,null,null,null,0,0," ",0]
[null,null,null,null,null,null,null,null,null,null,null,null,0,0," ",0]
[null,null,null,null,null,null,null,null,null,null,null,null,0,0," ",0]
[null,null,null,null,null,null,null,null,null,null,null,null,0,0," ",0]
[null,null,null,null,null,null,null,null,null,null,null,null,0,0," ",0]
[null,null,null,null,null,null,null,null,null,null,null,null,{"$f":"IF(ISNA(VLOOKUP(C898&G898,$V$3:$W$83,2,FALSE)),0,VLOOKUP(C898&G898,$V$3:$W$83,2,FALSE))","v":0},0,{"$f":"E898&\" \"&F898","v":" "},0]
[null,null,null,null,null,null,null,null,null,null,null,null,0,{"$f":"IF(D899=\"d\",SUM(J899*2,K899),J899)","v":0}," ",{"$f":"SUM(M899,N899)","v":0}]
[null,null,null,null,null,null,null,null,null,null,null,null,0,0," ",0]
[null,null,null,null,null,null,null,null,null,null,null,null,0,0," ",0]
[null,null,null,null,null,null,null,null,null,null,null,null,0,0," ",0]
[null,null,null,null,null,null,null,null,null,null,null,null,0,0," ",0]
[null,null,null,null,null,null,null,null,null,null,null,null,0,0," ",0]
[null,null,null,null,null,null,null,null,null,null,null,null,0,0," ",0]
[null,null,null,null,null,null,null,null,null,null,null,null,0,0," ",0]
[null,null,null,null,null,null,null,null,null,null,null,null,0,0," ",0]
[null,null,null,null,null,null,null,null,null,null,null,null,0,0," ",0]
[null,null,null,null,null,null,null,null,null,null,null,null,0,0," ",0]
[null,null,null,null,null,null,null,null,null,null,null,null,0,0," ",0]
[null,null,null,null,null,null,null,null,null,null,null,null,0,0," ",0]
[null,null,null,null,null,null,null,null,null,null,null,null,0,0," ",0]
[null,null,null,null,null,null,null,null,null,null,null,null,0,0," ",0]
[null,null,null,null,null,null,null,null,null,null,null,null,0,0," ",0]
[null,null,null,null,null,null,null,null,null,null,null,null,0,0," ",0]
[null,null,null,null,null,null,null,null,null,null,null,null,0,0," ",0]
[null,null,null,null,null,null,null,null,null,null,null,null,0,0," ",0]
[null,null,null,null,null,null,null,null,null,null,null,null,0,0," ",0]
[null,null,null,null,null,null,null,null,null,null,null,null,0,0," ",0]
[null,null,null,null,null,null,null,null,null,null,null,null,0,0," ",0]
[null,null,null,null,null,null,null,null,null,null,null,null,0,0," ",0]
[null,null,null,null,null,null,null,null,null,null,null,null,0,0," ",0]
[null,null,null,null,null,null,null,null,null,null,null,null,0,0," ",0]
[null,null,null,null,null,null,null,null,null,null,null,null,0,0," ",0]
[null,null,null,null,null,null,null,null,null,null,null,null,0,0," ",0]
[null,null,null,null,null,null,null,null,null,null,null,null,0,0," ",0]
[null,null,null,null,null,null,null,null,null,null,null,null,0,0," ",0]
[null,null,null,null,null,null,null,null,null,null,null,null,0,0," ",0]
[null,null,null,null,null,null,null,null,null,null,null,null,0,0," ",0]
[null,null,null,null,null,null,null,null,null,null,null,null,0,0," ",0]
[null,null,null,null,null,null,null,null,null,null,null,null,0,0," ",0]
[null,null,null,null,null,null,null,null,null,null,null,null,0,0," ",0]
[null,null,null,null,null,null,null,null,null,null,null,null,0,0," ",0]
[null,null,null,null,null,null,null,null,null,null,null,null,0,0," ",0]
[null,null,null,null,null,null,null,null,null,null,null,null,0,0," ",0]
[null,null,null,null,null,null,null,null,null,null,null,null,0,0," ",0]
[null,null,null,null,null,null,null,null,null,null,null,null,0,0," ",0]
[null,null,null,null,null,null,null,null,null,null,null,null,0,0," ",0]
[null,null,null,null,null,null,null,null,null,null,null,null,0,0," ",0]
[null,null,null,null,null,null,null,null,null,null,null,null,0,0," ",0]
[null,null,null,null,null,null,null,null,null,null,null,null,0,0," ",0]
[null,null,null,null,null,null,null,null,null,null,null,null,0,0," ",0]
[null,null,null,null,null,null,null,null,null,null,null,null,0,0," ",0]
[null,null,null,null,null,null,null,null,null,null,null,null,0,0," ",0]
[null,null,null,null,null,null,null,null,null,null,null,null,0,0," ",0]
[null,null,null,null,null,null,null,null,null,null,null,null,0,0," ",0]
[null,null,null,null,null,null,null,null,null,null,null,null,0,0," ",0]
[null,null,null,null,null,null,null,null,null,null,null,null,0,0," ",0]
[null,null,null,null,null,null,null,null,null,null,null,null,0,0," ",0]
[null,null,null,null,null,null,null,null,null,null,null,null,0,0," ",0]
[null,null,null,null,null,null,null,null,null,null,null,null,0,0," ",0]
[null,null,null,null,null,null,null,null,null,null,null,null,0,0," ",0]
[null,null,null,null,null,null,null,null,null,null,null,null,0,0," ",0]
[null,null,null,null,null,null,null,null,null,null,null,null,0,0," ",0]
[null,null,null,null,null,null,null,null,null,null,null,null,0,0," ",0]
[null,null,null,null,null,null,null,null,null,null,null,null,0,0," ",0]
[null,null,null,null,null,null,null,null,null,null,null,null,0,0," ",0]
[null,null,null,null,null,null,null,null,null,null,null,null,0,0," ",0]
[null,null,null,null,null,null,null,null,null,null,null,null,0,0," ",0]
[null,null,null,null,null,null,null,null,null,null,null,null,0,0," ",0]
[null,null,null,null,null,null,null,null,null,null,null,null,0,0," ",0]
[null,null,null,null,null,null,null,null,null,null,null,null,{"$f":"IF(ISNA(VLOOKUP(C962&G962,$V$3:$W$83,2,FALSE)),0,VLOOKUP(C962&G962,$V$3:$W$83,2,FALSE))","v":0},0,{"$f":"E962&\" \"&F962","v":" "},0]
[null,null,null,null,null,null,null,null,null,null,null,null,0,{"$f":"IF(D963=\"d\",SUM(J963*2,K963),J963)","v":0}," ",{"$f":"SUM(M963,N963)","v":0}]
[null,null,null,null,null,null,null,null,null,null,null,null,0,0," ",0]
[null,null,null,null,null,null,null,null,null,null,null,null,0,0," ",0]
[null,null,null,null,null,null,null,null,null,null,null,null,0,0," ",0]
[null,null,null,null,null,null,null,null,null,null,null,null,0,0," ",0]
[null,null,null,null,null,null,null,null,null,null,null,null,0,0," ",0]
[null,null,null,null,null,null,null,null,null,null,null,null,0,0," ",0]
[null,null,null,null,null,null,null,null,null,null,null,null,0,0," ",0]
[null,null,null,null,null,null,null,null,null,null,null,null,0,0," ",0]
[null,null,null,null,null,null,null,null,null,null,null,null,0,0," ",0]
[null,null,null,null,null,null,null,null,null,null,null,null,0,0," ",0]
[null,null,null,null,null,null,null,null,null,null,null,null,0,0," ",0]
[null,null,null,null,null,null,null,null,null,null,null,null,0,0," ",0]
[null,null,null,null,null,null,null,null,null,null,null,null,0,0," ",0]
[null,null,null,null,null,null,null,null,null,null,null,null,0,0," ",0]
[null,null,null,null,null,null,null,null,null,null,null,null,0,0," ",0]
[null,null,null,null,null,null,null,null,null,null,null,null,0,0," ",0]
[null,null,null,null,null,null,null,null,null,null,null,null,0,0," ",0]
[null,null,null,null,null,null,null,null,null,null,null,null,0,0," ",0]
[null,null,null,null,null,null,null,null,null,null,null,null,0,0," ",0]
[null,null,null,null,null,null,null,null,null,null,null,null,0,0," ",0]
[null,null,null,null,null,null,null,"mláďata",null,null,null,null,0,0," ",0]
[null,null,null,null,null,null,null,"mladší žákyně",null,null,null,null,0,0," ",0]
[null,null,null,null,null,null,null,"mladší žáci",null,null,null,null,0,0," ",0]
[null,null,null,null,null,null,null,"starší žákyně",null,null,null,null,0,0," ",0]
[null,null,null,null,null,null,null,"starší žáci",null,null,null,null,0,0," ",0]
[null,null,null,null,null,null,null,"dorostenky",null,null,null,null,0,0," ",0]
[null,null,null,null,null,null,null,"dorostenci",null,null,null,null,0,0," ",0]
[null,null,null,null,null,null,null,"juniorky",null,null,null,null,0,0," ",0]
[null,null,null,null,null,null,null,"junioři",null,null,null,null,0,0," ",0]
[null,null,null,null,null,null,null,"ženy",null,null,null,null,0,0," ",0]
[null,null,null,null,null,null,null,"muži",null,null,null,null,0,0," ",0]
[null,null,null,null,null,null,null,"veteráni",null,null,null,null,0,0," ",0]
[null,null,null,null,null,null,null,"kata",null,null,null,null,0,0," ",0]

{"sheet":"knt_tab","index":2,"n_rows":127,"n_cols":41,"rows_kept":127,"cut":false,"hidden":true,"merged":[]}
["kategorie","(Vše)",null,"kategorie","mláďata",null,"kategorie","mladší žáci",null,"kategorie","mladší žákyně",null,"kategorie","starší žáci",null,"kategorie","starší žákyně",null,"kategorie","dorostenci",null,"kategorie","dorostenky",null,"kategorie","junioři",null,"kategorie","juniorky",null,"kategorie","muži",null,"kategorie","ženy",null,"kategorie","veteráni",null,"kategorie","kata"]
[]
["Součet z body",null,null,"Součet z body",null,null,"Součet z body",null,null,"Součet z body",null,null,"Součet z body",null,null,"Součet z body",null,null,"Součet z body",null,null,"Součet z body",null,null,"Součet z body",null,null,"Součet z body",null,null,"Součet z body",null,null,"Součet z body",null,null,"Součet z body",null,null,"Součet z body"]
["zavodnik","Celkem",null,"zavodnik","Celkem",null,"zavodnik","Celkem",null,"zavodnik","Celkem",null,"zavodnik","Celkem",null,"zavodnik","Celkem",null,"zavodnik","Celkem",null,"zavodnik","Celkem",null,"zavodnik","Celkem",null,"zavodnik","Celkem",null,"zavodnik","Celkem",null,"zavodnik","Celkem",null,"zavodnik","Celkem",null,"zavodnik","Celkem"]
["Raška Michael",179,null,"Boháček Jan",71,null,"Tycar Štěpán",100,null,"Václavková Tereza",108,null,"Král Jan",97,null,"Ďurinová Kristýna",48,null,"Raška Michael",114,null,"Martínková Adéla",72,null,"Šmehlík František",65,null,"Chwastarzová Alena",13,null,"Raška Michael",52,null," ",0,null,"Černota Jiří",147,null," ",0]
["Černota Jiří",147,null,"Čebík Filip",54,null,"Kunc Matěj",91,null,"Kokešová Alexandra",81,null,"Kresta Matěj",69,null,"Brzusková Marie",28,null,"Pustějovský Tomáš",85,null,"Chwastarzová Alena",63,null,"Selecký Lukáš",60,null," ",0,null,"Král Jakub",47,null,null,null,null,"Škurlová Lada",32]
["Václavková Tereza",108,null,"Tomek David",50,null,"Bulka Vojtěch",85,null,"Otáhalová Magda",12,null,"Mojžíšek Lukáš",46,null,"Havlíčková Barbora",24,null,"Pátek Jan",69,null,"Polášková Kristýna",62,null,"Král Jakub",46,null,null,null,null,"Kohn Tomáš",45,null,null,null,null,"Schöffer Radim",24]
["Tycar Štěpán",100,null,"Huvar Jakub",38,null,"Meixner Tomáš",83,null,"Čerchlová Markéta",9,null,"Moravec Jan",44,null,"Kuncová Viktorie",20,null,"Franek Patrik",53,null,"Ondrašíková Eva",48,null,"Svoboda Jiří",26,null,null,null,null,"Selecký Lukáš",39,null,null,null,null,"Moravec Vlastimil",18]
["Selecký Lukáš",99,null,"Papavasilevský Marek",34,null,"Malaczynski Filip",58,null,"Baštinská Adéla",6,null,"Král Miroslav",31,null,"Křenková Marie",8,null,"Kresta Matěj",27,null,"Kuncová Viktorie",14,null,"Raška Michael",13,null,null,null,null,"Svoboda Jiří",37,null,null,null,null,"Chlebový Arnold",17]
["Král Jan",97,null,"Mikendová Tereza",31,null,"Motyka Dominik",51,null," ",0,null,"Pelikán Dominik",25,null," ",0,null,"Kocman Petr",26,null,"Ševčíková Sabina",0,null,"Ochman Martin",0,null,null,null,null,"Šeděnka Richard",31,null,null,null,null,"Frydrýšek Patrik",17]
["Pustějovský Tomáš",97,null,"Meixner Michal",27,null,"Křížek Šimon",43,null,null,null,null,"Pavlica Lukáš",13,null,null,null,null,"Šmatelka Ondřej",17,null," ",0,null,"Pustějovský Tomáš",0,null,null,null,null,"Kohn Pavel",29,null,null,null,null,"Heczko Tomáš",13]
["Kresta Matěj",96,null,"Neuwirt Petr",24,null,"Turčínek Tomáš",40,null,null,null,null,"Hráček Jakub",9,null,null,null,null,"Pupakis Sotirios",7,null,null,null,null,"Ochman Marek",0,null,null,null,null,"Martínek Roman",20,null,null,null,null,"Pravda Pavel",12]
["Král Jakub",93,null,"Čerchla Michal",23,null,"Franek Adam",38,null,null,null,null,"Blažej Jan",7,null,null,null,null,"Koval Nikolas",5,null,null,null,null," ",0,null,null,null,null,"Otto Matyáš",19,null,null,null,null,"Morav Dominik",8]
["Kunc Matěj",91,null,"Seibert Marian",20,null,"Zabek Matyáš",22,null,null,null,null,"Pavlica Tomáš",6,null,null,null,null,"Rovenský Ondřej",2,null,null,null,null,null,null,null,null,null,null,"Ochman Marek",14,null,null,null,null,"Mikenda Tomáš",3]
["Bulka Vojtěch",85,null,"Chmela Tomáš",19,null,"Hrtus Rostislav",14,null,null,null,null,"Obercián Martin",5,null,null,null,null,"Janík Tadeáš",1,null,null,null,null,null,null,null,null,null,null,"Koza Dušan",13,null,null,null,null," ",0]
["Meixner Tomáš",83,null,"Krčmář Jakub",16,null,"Kolář Daniel",13,null,null,null,null,"Turčínek Tomáš",5,null,null,null,null,"Huvar Jan",0,null,null,null,null,null,null,null,null,null,null,"Pustějovský Tomáš",12]
["Kokešová Alexandra",81,null,"Malcová Sabrina",15,null,"Jakubec Lukáš",5,null,null,null,null,"Janečka Jakub",0,null,null,null,null,"Nikolas Koval",0,null,null,null,null,null,null,null,null,null,null,"Šmehlík František",11]
["Pátek Jan",79,null,"Horák Adam",8,null,"Částečka Filip",4,null,null,null,null," ",0,null,null,null,null," ",0,null,null,null,null,null,null,null,null,null,null,"Pátek Jan",10]
["Šmehlík František",76,null,"Fulneček Šimon",8,null,"Pelikán Dominik",4,null,null,null,null,"Dušenka Michael",0,null,null,null,null,"Bittner Michael",0,null,null,null,null,null,null,null,null,null,null,"Novák Pavel",10]
["Chwastarzová Alena",76,null,"Konvičný Dominik",6,null,"Tomek David",1,null,null,null,null,"Dušenka Michal",0,null,null,null,null,"Rajna Adam",0,null,null,null,null,null,null,null,null,null,null,"Janiš Lukáš",10]
["Martínková Adéla",72,null,"Bortlíček Adam",6,null,"Matýsek Jan",1,null,null,null,null,"Seinz Lubomír",0,null,null,null,null,null,null,null,null,null,null,null,null,null,null,null,null,"Schöffer Radim",6]
["Boháček Jan",71,null,"Přibil Jakub",5,null,"Přibyl Jan",0,null,null,null,null,"Franek Adam",0,null,null,null,null,null,null,null,null,null,null,null,null,null,null,null,null,"Holý Martin",4]
["Svoboda Jiří",63,null,"Matějíčka Štěpán",5,null,"Hisem Matěj",0,null,null,null,null,"Kubis Jiří",0,null,null,null,null,null,null,null,null,null,null,null,null,null,null,null,null,"Frydrýšek Patrik",2]
["Polášková Kristýna",62,null,"Martináková Stela",5,null,"Freiwald Richard",0,null,null,null,null,null,null,null,null,null,null,null,null,null,null,null,null,null,null,null,null,null,null," ",0]
["Malaczynski Filip",58,null,"Jeřábek Jan",4,null," ",0]
["Čebík Filip",54,null,"Cagala Šimon",3]
["Franek Patrik",53,null,"Křenek Jakub",2]
["Motyka Dominik",51,null,"Kožušník Vojtěch",1]
["Tomek David",51,null,"Novotný Kryštof",1]
["Ondrašíková Eva",48,null,"Válek Matěj",1]
["Ďurinová Kristýna",48,null,"Papaj Tobiáš",1]
["Mojžíšek Lukáš",46,null,"Kolář Vojtěch",1]
["Kohn Tomáš",45,null,"Buranyč Filip",1]
["Turčínek Tomáš",45,null,"Rajna Alexandr",1]
["Moravec Jan",44,null,"Kolář Daniel",1]
["Křížek Šimon",43,null,"Zach Matyáš",1]
["Huvar Jakub",38,null,"Beutel David",0]
["Franek Adam",38,null,"Martináková Ema",0]
["Kuncová Viktorie",34,null,"Matýsek Jan",0]
["Papavasilevský Marek",34,null,"Malzová Sabrina",0]
["Škurlová Lada",32,null,"Turčínek Tomáš",0]
["Šeděnka Richard",31,null," ",0]
["Král Miroslav",31]
["Mikendová Tereza",31]
["Schöffer Radim",30]
["Pelikán Dominik",29]
["Kohn Pavel",29]
["Brzusková Marie",28]
["Meixner Michal",27]
["Kocman Petr",26]
["Havlíčková Barbora",24]
["Neuwirt Petr",24]
["Čerchla Michal",23]
["Zabek Matyáš",22]
["Seibert Marian",20]
["Martínek Roman",20]
["Frydrýšek Patrik",19]
["Chmela Tomáš",19]
["Otto Matyáš",19]
["Moravec Vlastimil",18]
["Šmatelka Ondřej",17]
["Chlebový Arnold",17]
["Krčmář Jakub",16]
["Malcová Sabrina",15]
["Kolář Daniel",14]
["Hrtus Rostislav",14]
["Ochman Marek",14]
["Heczko Tomáš",13]
["Pavlica Lukáš",13]
["Koza Dušan",13]
["Otáhalová Magda",12]
["Pravda Pavel",12]
["Janiš Lukáš",10]
["Novák Pavel",10]
["Hráček Jakub",9]
["Čerchlová Markéta",9]
["Horák Adam",8]
["Morav Dominik",8]
["Křenková Marie",8]
["Fulneček Šimon",8]
["Pupakis Sotirios",7]
["Blažej Jan",7]
["Baštinská Adéla",6]
["Konvičný Dominik",6]
["Pavlica Tomáš",6]
["Bortlíček Adam",6]
["Obercián Martin",5]
["Matějíčka Štěpán",5]
["Jakubec Lukáš",5]
["Martináková Stela",5]
["Přibil Jakub",5]
["Koval Nikolas",5]
["Jeřábek Jan",4]
["Částečka Filip",4]
["Holý Martin",4]
["Mikenda Tomáš",3]
["Cagala Šimon",3]
["Křenek Jakub",2]
["Rovenský Ondřej",2]
["Novotný Kryštof",1]
["Rajna Alexandr",1]
["Janík Tadeáš",1]
["Válek Matěj",1]
["Matýsek Jan",1]
["Kolář Vojtěch",1]
["Buranyč Filip",1]
["Zach Matyáš",1]
["Papaj Tobiáš",1]
["Kožušník Vojtěch",1]
["Martináková Ema",0]
["Dušenka Michael",0]
["Přibyl Jan",0]
["Beutel David",0]
["Rajna Adam",0]
["Kubis Jiří",0]
["Hisem Matěj",0]
["Freiwald Richard",0]
["Janečka Jakub",0]
["Ochman Martin",0]
["Seinz Lubomír",0]
["Bittner Michael",0]
["Malzová Sabrina",0]
["Dušenka Michal",0]
["Huvar Jan",0]
["Nikolas Koval",0]
[" ",0]
["Ševčíková Sabina",0]

{"sheet":"ranking","index":3,"n_rows":63,"n_cols":23,"rows_kept":63,"cut":false,"hidden":false,"merged":[[0,0,0,22]]}
["Pořadí úspěšnosti závodníků v r. 2015"]
["celkem oddíl",null,null,null,"celkem oddíl - pokračování",null,null,null,"kata",null,null,null,"Junioři",null,null,null,"starší žáci",null,null,null,"mláďata"]
["Pořadí","Příjmení","body",null,{"$f":"IF(F3=\"\",\"\",IF(G3=C63,A63,61))","v":61},{"$f":"IF(ISERR(GETPIVOTDATA(\"body\",knt_tab!$A$3,\"zavodnik\",knt_tab!A65)),\"\",IF(GETPIVOTDATA(\"body\",knt_tab!$A$3,\"zavodnik\",knt_tab!A65)=0,\"\",knt_tab!A65))","v":"Kolář Daniel"},{"$f":"IF(F3=\"\",\"\",GETPIVOTDATA(\"body\",knt_tab!$A$3,\"zavodnik\",F3))","v":14},null,"Pořadí","Příjmení","body",null,"Pořadí","Příjmení","body",null,"Pořadí","Příjmení","body",null,"Pořadí","Příjmení","body"]
[1,{"$f":"IF(ISERR(GETPIVOTDATA(\"body\",knt_tab!$A$3,\"zavodnik\",knt_tab!A5)),\"\",IF(GETPIVOTDATA(\"body\",knt_tab!$A$3,\"zavodnik\",knt_tab!A5)=0,\"\",knt_tab!A5))","v":"Raška Michael"},{"$f":"IF(B4=\"\",\"\",GETPIVOTDATA(\"body\",knt_tab!$A$3,\"zavodnik\",B4))","v":179},null,{"$f":"IF(F4=\"\",\"\",IF(G4=G3,E3,ROW(E4)-ROW($E$3)+61))","v":61},{"$f":"IF(ISERR(GETPIVOTDATA(\"body\",knt_tab!$A$3,\"zavodnik\",knt_tab!A66)),\"\",IF(GETPIVOTDATA(\"body\",knt_tab!$A$3,\"zavodnik\",knt_tab!A66)=0,\"\",knt_tab!A66))","v":"Hrtus Rostislav"},{"$f":"IF(F4=\"\",\"\",GETPIVOTDATA(\"body\",knt_tab!$A$3,\"zavodnik\",F4))","v":14},null,1,{"$f":"IF(ISERR(GETPIVOTDATA(\"body\",knt_tab!$AN$3,\"zavodnik\",knt_tab!AN5)),\"\",IF(GETPIVOTDATA(\"body\",knt_tab!$AN$3,\"zavodnik\",knt_tab!AN5)=0,\"\",knt_tab!AN5))","v":""},{"$f":"IF(J4=\"\",\"\",GETPIVOTDATA(\"body\",knt_tab!$AN$3,\"zavodnik\",J4))","v":""},null,1,{"$f":"IF(ISERR(GETPIVOTDATA(\"body\",knt_tab!$Y$3,\"zavodnik\",knt_tab!Y5)),\"\",IF(GETPIVOTDATA(\"body\",knt_tab!$Y$3,\"zavodnik\",knt_tab!Y5)=0,\"\",knt_tab!Y5))","v":"Šmehlík František"},{"$f":"IF(N4=\"\",\"\",GETPIVOTDATA(\"body\",knt_tab!$Y$3,\"zavodnik\",N4))","v":65},null,1,{"$f":"IF(ISERR(GETPIVOTDATA(\"body\",knt_tab!$M$3,\"zavodnik\",knt_tab!M5)),\"\",IF(GETPIVOTDATA(\"body\",knt_tab!$M$3,\"zavodnik\",knt_tab!M5)=0,\"\",knt_tab!M5))","v":"Král Jan"},{"$f":"IF(R4=\"\",\"\",GETPIVOTDATA(\"body\",knt_tab!$M$3,\"zavodnik\",R4))","v":97},null,1,{"$f":"IF(ISERR(GETPIVOTDATA(\"body\",knt_tab!$D$3,\"zavodnik\",knt_tab!D5)),\"\",IF(GETPIVOTDATA(\"body\",knt_tab!$D$3,\"zavodnik\",knt_tab!D5)=0,\"\",knt_tab!D5))","v":"Boháček Jan"},{"$f":"IF(V4=\"\",\"\",GETPIVOTDATA(\"body\",knt_tab!$D$3,\"zavodnik\",V4))","v":71}]
[{"$f":"IF(B5=\"\",\"\",IF(C5=C4,A4,ROW(A5)-ROW($A$3)))","v":2},{"$f":"IF(ISERR(GETPIVOTDATA(\"body\",knt_tab!$A$3,\"zavodnik\",knt_tab!A6)),\"\",IF(GETPIVOTDATA(\"body\",knt_tab!$A$3,\"zavodnik\",knt_tab!A6)=0,\"\",knt_tab!A6))","v":"Černota Jiří"},{"$f":"IF(B5=\"\",\"\",GETPIVOTDATA(\"body\",knt_tab!$A$3,\"zavodnik\",B5))","v":147},null,{"$f":"IF(F5=\"\",\"\",IF(G5=G4,E4,ROW(E5)-ROW($E$3)+61))","v":61},{"$f":"IF(ISERR(GETPIVOTDATA(\"body\",knt_tab!$A$3,\"zavodnik\",knt_tab!A67)),\"\",IF(GETPIVOTDATA(\"body\",knt_tab!$A$3,\"zavodnik\",knt_tab!A67)=0,\"\",knt_tab!A67))","v":"Ochman Marek"},{"$f":"IF(F5=\"\",\"\",GETPIVOTDATA(\"body\",knt_tab!$A$3,\"zavodnik\",F5))","v":14},null,{"$f":"IF(J5=\"\",\"\",IF(K5=K4,I4,ROW(I5)-ROW($I$3)))","v":""},{"$f":"IF(ISERR(GETPIVOTDATA(\"body\",knt_tab!$AN$3,\"zavodnik\",knt_tab!AN6)),\"\",IF(GETPIVOTDATA(\"body\",knt_tab!$AN$3,\"zavodnik\",knt_tab!AN6)=0,\"\",knt_tab!AN6))","v":""},{"$f":"IF(J5=\"\",\"\",GETPIVOTDATA(\"body\",knt_tab!$AN$3,\"zavodnik\",J5))","v":""},null,{"$f":"IF(N5=\"\",\"\",IF(O5=O4,M4,ROW(M5)-ROW($M$3)))","v":2},{"$f":"IF(ISERR(GETPIVOTDATA(\"body\",knt_tab!$Y$3,\"zavodnik\",knt_tab!Y6)),\"\",IF(GETPIVOTDATA(\"body\",knt_tab!$Y$3,\"zavodnik\",knt_tab!Y6)=0,\"\",knt_tab!Y6))","v":"Selecký Lukáš"},{"$f":"IF(N5=\"\",\"\",GETPIVOTDATA(\"body\",knt_tab!$Y$3,\"zavodnik\",N5))","v":60},null,{"$f":"IF(R5=\"\",\"\",IF(S5=S4,Q4,ROW(Q5)-ROW($Q$3)))","v":2},{"$f":"IF(ISERR(GETPIVOTDATA(\"body\",knt_tab!$M$3,\"zavodnik\",knt_tab!M6)),\"\",IF(GETPIVOTDATA(\"body\",knt_tab!$M$3,\"zavodnik\",knt_tab!M6)=0,\"\",knt_tab!M6))","v":"Kresta Matěj"},{"$f":"IF(R5=\"\",\"\",GETPIVOTDATA(\"body\",knt_tab!$M$3,\"zavodnik\",R5))","v":69},null,{"$f":"IF(V5=\"\",\"\",IF(W5=W4,U4,ROW(U5)-ROW($U$3)))","v":2},{"$f":"IF(ISERR(GETPIVOTDATA(\"body\",knt_tab!$D$3,\"zavodnik\",knt_tab!D6)),\"\",IF(GETPIVOTDATA(\"body\",knt_tab!$D$3,\"zavodnik\",knt_tab!D6)=0,\"\",knt_tab!D6))","v":"Čebík Filip"},{"$f":"IF(V5=\"\",\"\",GETPIVOTDATA(\"body\",knt_tab!$D$3,\"zavodnik\",V5))","v":54}]
[3,{"$f":"IF(ISERR(GETPIVOTDATA(\"body\",knt_tab!$A$3,\"zavodnik\",knt_tab!A7)),\"\",IF(GETPIVOTDATA(\"body\",knt_tab!$A$3,\"zavodnik\",knt_tab!A7)=0,\"\",knt_tab!A7))","v":"Václavková Tereza"},{"$f":"IF(B6=\"\",\"\",GETPIVOTDATA(\"body\",knt_tab!$A$3,\"zavodnik\",B6))","v":108},null,64,{"$f":"IF(ISERR(GETPIVOTDATA(\"body\",knt_tab!$A$3,\"zavodnik\",knt_tab!A68)),\"\",IF(GETPIVOTDATA(\"body\",knt_tab!$A$3,\"zavodnik\",knt_tab!A68)=0,\"\",knt_tab!A68))","v":"Heczko Tomáš"},{"$f":"IF(F6=\"\",\"\",GETPIVOTDATA(\"body\",knt_tab!$A$3,\"zavodnik\",F6))","v":13},null,{"$f":"IF(J6=\"\",\"\",IF(K6=K5,I5,ROW(I6)-ROW($I$3)))","v":""},{"$f":"IF(ISERR(GETPIVOTDATA(\"body\",knt_tab!$AN$3,\"zavodnik\",knt_tab!AN7)),\"\",IF(GETPIVOTDATA(\"body\",knt_tab!$AN$3,\"zavodnik\",knt_tab!AN7)=0,\"\",knt_tab!AN7))","v":""},{"$f":"IF(J6=\"\",\"\",GETPIVOTDATA(\"body\",knt_tab!$AN$3,\"zavodnik\",J6))","v":""},null,3,{"$f":"IF(ISERR(GETPIVOTDATA(\"body\",knt_tab!$Y$3,\"zavodnik\",knt_tab!Y7)),\"\",IF(GETPIVOTDATA(\"body\",knt_tab!$Y$3,\"zavodnik\",knt_tab!Y7)=0,\"\",knt_tab!Y7))","v":"Král Jakub"},{"$f":"IF(N6=\"\",\"\",GETPIVOTDATA(\"body\",knt_tab!$Y$3,\"zavodnik\",N6))","v":46},null,3,{"$f":"IF(ISERR(GETPIVOTDATA(\"body\",knt_tab!$M$3,\"zavodnik\",knt_tab!M7)),\"\",IF(GETPIVOTDATA(\"body\",knt_tab!$M$3,\"zavodnik\",knt_tab!M7)=0,\"\",knt_tab!M7))","v":"Mojžíšek Lukáš"},{"$f":"IF(R6=\"\",\"\",GETPIVOTDATA(\"body\",knt_tab!$M$3,\"zavodnik\",R6))","v":46},null,3,{"$f":"IF(ISERR(GETPIVOTDATA(\"body\",knt_tab!$D$3,\"zavodnik\",knt_tab!D7)),\"\",IF(GETPIVOTDATA(\"body\",knt_tab!$D$3,\"zavodnik\",knt_tab!D7)=0,\"\",knt_tab!D7))","v":"Tomek David"},{"$f":"IF(V6=\"\",\"\",GETPIVOTDATA(\"body\",knt_tab!$D$3,\"zavodnik\",V6))","v":50}]
[4,{"$f":"IF(ISERR(GETPIVOTDATA(\"body\",knt_tab!$A$3,\"zavodnik\",knt_tab!A8)),\"\",IF(GETPIVOTDATA(\"body\",knt_tab!$A$3,\"zavodnik\",knt_tab!A8)=0,\"\",knt_tab!A8))","v":"Tycar Štěpán"},{"$f":"IF(B7=\"\",\"\",GETPIVOTDATA(\"body\",knt_tab!$A$3,\"zavodnik\",B7))","v":100},null,64,{"$f":"IF(ISERR(GETPIVOTDATA(\"body\",knt_tab!$A$3,\"zavodnik\",knt_tab!A69)),\"\",IF(GETPIVOTDATA(\"body\",knt_tab!$A$3,\"zavodnik\",knt_tab!A69)=0,\"\",knt_tab!A69))","v":"Pavlica Lukáš"},{"$f":"IF(F7=\"\",\"\",GETPIVOTDATA(\"body\",knt_tab!$A$3,\"zavodnik\",F7))","v":13},null,{"$f":"IF(J7=\"\",\"\",IF(K7=K6,I6,ROW(I7)-ROW($I$3)))","v":""},{"$f":"IF(ISERR(GETPIVOTDATA(\"body\",knt_tab!$AN$3,\"zavodnik\",knt_tab!AN8)),\"\",IF(GETPIVOTDATA(\"body\",knt_tab!$AN$3,\"zavodnik\",knt_tab!AN8)=0,\"\",knt_tab!AN8))","v":""},{"$f":"IF(J7=\"\",\"\",GETPIVOTDATA(\"body\",knt_tab!$AN$3,\"zavodnik\",J7))","v":""},null,4,{"$f":"IF(ISERR(GETPIVOTDATA(\"body\",knt_tab!$Y$3,\"zavodnik\",knt_tab!Y8)),\"\",IF(GETPIVOTDATA(\"body\",knt_tab!$Y$3,\"zavodnik\",knt_tab!Y8)=0,\"\",knt_tab!Y8))","v":"Svoboda Jiří"},{"$f":"IF(N7=\"\",\"\",GETPIVOTDATA(\"body\",knt_tab!$Y$3,\"zavodnik\",N7))","v":26},null,4,{"$f":"IF(ISERR(GETPIVOTDATA(\"body\",knt_tab!$M$3,\"zavodnik\",knt_tab!M8)),\"\",IF(GETPIVOTDATA(\"body\",knt_tab!$M$3,\"zavodnik\",knt_tab!M8)=0,\"\",knt_tab!M8))","v":"Moravec Jan"},{"$f":"IF(R7=\"\",\"\",GETPIVOTDATA(\"body\",knt_tab!$M$3,\"zavodnik\",R7))","v":44},null,4,{"$f":"IF(ISERR(GETPIVOTDATA(\"body\",knt_tab!$D$3,\"zavodnik\",knt_tab!D8)),\"\",IF(GETPIVOTDATA(\"body\",knt_tab!$D$3,\"zavodnik\",knt_tab!D8)=0,\"\",knt_tab!D8))","v":"Huvar Jakub"},{"$f":"IF(V7=\"\",\"\",GETPIVOTDATA(\"body\",knt_tab!$D$3,\"zavodnik\",V7))","v":38}]
[5,{"$f":"IF(ISERR(GETPIVOTDATA(\"body\",knt_tab!$A$3,\"zavodnik\",knt_tab!A9)),\"\",IF(GETPIVOTDATA(\"body\",knt_tab!$A$3,\"zavodnik\",knt_tab!A9)=0,\"\",knt_tab!A9))","v":"Selecký Lukáš"},{"$f":"IF(B8=\"\",\"\",GETPIVOTDATA(\"body\",knt_tab!$A$3,\"zavodnik\",B8))","v":99},null,64,{"$f":"IF(ISERR(GETPIVOTDATA(\"body\",knt_tab!$A$3,\"zavodnik\",knt_tab!A70)),\"\",IF(GETPIVOTDATA(\"body\",knt_tab!$A$3,\"zavodnik\",knt_tab!A70)=0,\"\",knt_tab!A70))","v":"Koza Dušan"},{"$f":"IF(F8=\"\",\"\",GETPIVOTDATA(\"body\",knt_tab!$A$3,\"zavodnik\",F8))","v":13},null,{"$f":"IF(J8=\"\",\"\",IF(K8=K7,I7,ROW(I8)-ROW($I$3)))","v":""},{"$f":"IF(ISERR(GETPIVOTDATA(\"body\",knt_tab!$AN$3,\"zavodnik\",knt_tab!AN9)),\"\",IF(GETPIVOTDATA(\"body\",knt_tab!$AN$3,\"zavodnik\",knt_tab!AN9)=0,\"\",knt_tab!AN9))","v":""},{"$f":"IF(J8=\"\",\"\",GETPIVOTDATA(\"body\",knt_tab!$AN$3,\"zavodnik\",J8))","v":""},null,5,{"$f":"IF(ISERR(GETPIVOTDATA(\"body\",knt_tab!$Y$3,\"zavodnik\",knt_tab!Y9)),\"\",IF(GETPIVOTDATA(\"body\",knt_tab!$Y$3,\"zavodnik\",knt_tab!Y9)=0,\"\",knt_tab!Y9))","v":"Raška Michael"},{"$f":"IF(N8=\"\",\"\",GETPIVOTDATA(\"body\",knt_tab!$Y$3,\"zavodnik\",N8))","v":13},null,5,{"$f":"IF(ISERR(GETPIVOTDATA(\"body\",knt_tab!$M$3,\"zavodnik\",knt_tab!M9)),\"\",IF(GETPIVOTDATA(\"body\",knt_tab!$M$3,\"zavodnik\",knt_tab!M9)=0,\"\",knt_tab!M9))","v":"Král Miroslav"},{"$f":"IF(R8=\"\",\"\",GETPIVOTDATA(\"body\",knt_tab!$M$3,\"zavodnik\",R8))","v":31},null,5,{"$f":"IF(ISERR(GETPIVOTDATA(\"body\",knt_tab!$D$3,\"zavodnik\",knt_tab!D9)),\"\",IF(GETPIVOTDATA(\"body\",knt_tab!$D$3,\"zavodnik\",knt_tab!D9)=0,\"\",knt_tab!D9))","v":"Papavasilevský Marek"},{"$f":"IF(V8=\"\",\"\",GETPIVOTDATA(\"body\",knt_tab!$D$3,\"zavodnik\",V8))","v":34}]
[6,{"$f":"IF(ISERR(GETPIVOTDATA(\"body\",knt_tab!$A$3,\"zavodnik\",knt_tab!A10)),\"\",IF(GETPIVOTDATA(\"body\",knt_tab!$A$3,\"zavodnik\",knt_tab!A10)=0,\"\",knt_tab!A10))","v":"Král Jan"},{"$f":"IF(B9=\"\",\"\",GETPIVOTDATA(\"body\",knt_tab!$A$3,\"zavodnik\",B9))","v":97},null,67,{"$f":"IF(ISERR(GETPIVOTDATA(\"body\",knt_tab!$A$3,\"zavodnik\",knt_tab!A71)),\"\",IF(GETPIVOTDATA(\"body\",knt_tab!$A$3,\"zavodnik\",knt_tab!A71)=0,\"\",knt_tab!A71))","v":"Otáhalová Magda"},{"$f":"IF(F9=\"\",\"\",GETPIVOTDATA(\"body\",knt_tab!$A$3,\"zavodnik\",F9))","v":12},null,null,null,null,null,"",{"$f":"IF(ISERR(GETPIVOTDATA(\"body\",knt_tab!$Y$3,\"zavodnik\",knt_tab!Y10)),\"\",IF(GETPIVOTDATA(\"body\",knt_tab!$Y$3,\"zavodnik\",knt_tab!Y10)=0,\"\",knt_tab!Y10))","v":""},{"$f":"IF(N9=\"\",\"\",GETPIVOTDATA(\"body\",knt_tab!$Y$3,\"zavodnik\",N9))","v":""},null,6,{"$f":"IF(ISERR(GETPIVOTDATA(\"body\",knt_tab!$M$3,\"zavodnik\",knt_tab!M10)),\"\",IF(GETPIVOTDATA(\"body\",knt_tab!$M$3,\"zavodnik\",knt_tab!M10)=0,\"\",knt_tab!M10))","v":"Pelikán Dominik"},{"$f":"IF(R9=\"\",\"\",GETPIVOTDATA(\"body\",knt_tab!$M$3,\"zavodnik\",R9))","v":25},null,6,{"$f":"IF(ISERR(GETPIVOTDATA(\"body\",knt_tab!$D$3,\"zavodnik\",knt_tab!D10)),\"\",IF(GETPIVOTDATA(\"body\",knt_tab!$D$3,\"zavodnik\",knt_tab!D10)=0,\"\",knt_tab!D10))","v":"Mikendová Tereza"},{"$f":"IF(V9=\"\",\"\",GETPIVOTDATA(\"body\",knt_tab!$D$3,\"zavodnik\",V9))","v":31}]
[6,{"$f":"IF(ISERR(GETPIVOTDATA(\"body\",knt_tab!$A$3,\"zavodnik\",knt_tab!A11)),\"\",IF(GETPIVOTDATA(\"body\",knt_tab!$A$3,\"zavodnik\",knt_tab!A11)=0,\"\",knt_tab!A11))","v":"Pustějovský Tomáš"},{"$f":"IF(B10=\"\",\"\",GETPIVOTDATA(\"body\",knt_tab!$A$3,\"zavodnik\",B10))","v":97},null,67,{"$f":"IF(ISERR(GETPIVOTDATA(\"body\",knt_tab!$A$3,\"zavodnik\",knt_tab!A72)),\"\",IF(GETPIVOTDATA(\"body\",knt_tab!$A$3,\"zavodnik\",knt_tab!A72)=0,\"\",knt_tab!A72))","v":"Pravda Pavel"},{"$f":"IF(F10=\"\",\"\",GETPIVOTDATA(\"body\",knt_tab!$A$3,\"zavodnik\",F10))","v":12},null,"veteráni",null,null,null,"",{"$f":"IF(ISERR(GETPIVOTDATA(\"body\",knt_tab!$Y$3,\"zavodnik\",knt_tab!Y11)),\"\",IF(GETPIVOTDATA(\"body\",knt_tab!$Y$3,\"zavodnik\",knt_tab!Y11)=0,\"\",knt_tab!Y11))","v":""},{"$f":"IF(N10=\"\",\"\",GETPIVOTDATA(\"body\",knt_tab!$Y$3,\"zavodnik\",N10))","v":""},null,7,{"$f":"IF(ISERR(GETPIVOTDATA(\"body\",knt_tab!$M$3,\"zavodnik\",knt_tab!M11)),\"\",IF(GETPIVOTDATA(\"body\",knt_tab!$M$3,\"zavodnik\",knt_tab!M11)=0,\"\",knt_tab!M11))","v":"Pavlica Lukáš"},{"$f":"IF(R10=\"\",\"\",GETPIVOTDATA(\"body\",knt_tab!$M$3,\"zavodnik\",R10))","v":13},null,7,{"$f":"IF(ISERR(GETPIVOTDATA(\"body\",knt_tab!$D$3,\"zavodnik\",knt_tab!D11)),\"\",IF(GETPIVOTDATA(\"body\",knt_tab!$D$3,\"zavodnik\",knt_tab!D11)=0,\"\",knt_tab!D11))","v":"Meixner Michal"},{"$f":"IF(V10=\"\",\"\",GETPIVOTDATA(\"body\",knt_tab!$D$3,\"zavodnik\",V10))","v":27}]
[8,{"$f":"IF(ISERR(GETPIVOTDATA(\"body\",knt_tab!$A$3,\"zavodnik\",knt_tab!A12)),\"\",IF(GETPIVOTDATA(\"body\",knt_tab!$A$3,\"zavodnik\",knt_tab!A12)=0,\"\",knt_tab!A12))","v":"Kresta Matěj"},{"$f":"IF(B11=\"\",\"\",GETPIVOTDATA(\"body\",knt_tab!$A$3,\"zavodnik\",B11))","v":96},null,69,{"$f":"IF(ISERR(GETPIVOTDATA(\"body\",knt_tab!$A$3,\"zavodnik\",knt_tab!A73)),\"\",IF(GETPIVOTDATA(\"body\",knt_tab!$A$3,\"zavodnik\",knt_tab!A73)=0,\"\",knt_tab!A73))","v":"Janiš Lukáš"},{"$f":"IF(F11=\"\",\"\",GETPIVOTDATA(\"body\",knt_tab!$A$3,\"zavodnik\",F11))","v":10},null,"Pořadí","Příjmení","body",null,"",{"$f":"IF(ISERR(GETPIVOTDATA(\"body\",knt_tab!$Y$3,\"zavodnik\",knt_tab!Y12)),\"\",IF(GETPIVOTDATA(\"body\",knt_tab!$Y$3,\"zavodnik\",knt_tab!Y12)=0,\"\",knt_tab!Y12))","v":""},{"$f":"IF(N11=\"\",\"\",GETPIVOTDATA(\"body\",knt_tab!$Y$3,\"zavodnik\",N11))","v":""},null,8,{"$f":"IF(ISERR(GETPIVOTDATA(\"body\",knt_tab!$M$3,\"zavodnik\",knt_tab!M12)),\"\",IF(GETPIVOTDATA(\"body\",knt_tab!$M$3,\"zavodnik\",knt_tab!M12)=0,\"\",knt_tab!M12))","v":"Hráček Jakub"},{"$f":"IF(R11=\"\",\"\",GETPIVOTDATA(\"body\",knt_tab!$M$3,\"zavodnik\",R11))","v":9},null,8,{"$f":"IF(ISERR(GETPIVOTDATA(\"body\",knt_tab!$D$3,\"zavodnik\",knt_tab!D12)),\"\",IF(GETPIVOTDATA(\"body\",knt_tab!$D$3,\"zavodnik\",knt_tab!D12)=0,\"\",knt_tab!D12))","v":"Neuwirt Petr"},{"$f":"IF(V11=\"\",\"\",GETPIVOTDATA(\"body\",knt_tab!$D$3,\"zavodnik\",V11))","v":24}]
[9,{"$f":"IF(ISERR(GETPIVOTDATA(\"body\",knt_tab!$A$3,\"zavodnik\",knt_tab!A13)),\"\",IF(GETPIVOTDATA(\"body\",knt_tab!$A$3,\"zavodnik\",knt_tab!A13)=0,\"\",knt_tab!A13))","v":"Král Jakub"},{"$f":"IF(B12=\"\",\"\",GETPIVOTDATA(\"body\",knt_tab!$A$3,\"zavodnik\",B12))","v":93},null,69,{"$f":"IF(ISERR(GETPIVOTDATA(\"body\",knt_tab!$A$3,\"zavodnik\",knt_tab!A74)),\"\",IF(GETPIVOTDATA(\"body\",knt_tab!$A$3,\"zavodnik\",knt_tab!A74)=0,\"\",knt_tab!A74))","v":"Novák Pavel"},{"$f":"IF(F12=\"\",\"\",GETPIVOTDATA(\"body\",knt_tab!$A$3,\"zavodnik\",F12))","v":10},null,1,{"$f":"IF(ISERR(GETPIVOTDATA(\"body\",knt_tab!$AK$3,\"zavodnik\",knt_tab!AK5)),\"\",IF(GETPIVOTDATA(\"body\",knt_tab!$AK$3,\"zavodnik\",knt_tab!AK5)=0,\"\",knt_tab!AK5))","v":"Černota Jiří"},{"$f":"IF(J12=\"\",\"\",GETPIVOTDATA(\"body\",knt_tab!$AK$3,\"zavodnik\",J12))","v":147},null,"",{"$f":"IF(ISERR(GETPIVOTDATA(\"body\",knt_tab!$Y$3,\"zavodnik\",knt_tab!Y13)),\"\",IF(GETPIVOTDATA(\"body\",knt_tab!$Y$3,\"zavodnik\",knt_tab!Y13)=0,\"\",knt_tab!Y13))","v":""},{"$f":"IF(N12=\"\",\"\",GETPIVOTDATA(\"body\",knt_tab!$Y$3,\"zavodnik\",N12))","v":""},null,9,{"$f":"IF(ISERR(GETPIVOTDATA(\"body\",knt_tab!$M$3,\"zavodnik\",knt_tab!M13)),\"\",IF(GETPIVOTDATA(\"body\",knt_tab!$M$3,\"zavodnik\",knt_tab!M13)=0,\"\",knt_tab!M13))","v":"Blažej Jan"},{"$f":"IF(R12=\"\",\"\",GETPIVOTDATA(\"body\",knt_tab!$M$3,\"zavodnik\",R12))","v":7},null,9,{"$f":"IF(ISERR(GETPIVOTDATA(\"body\",knt_tab!$D$3,\"zavodnik\",knt_tab!D13)),\"\",IF(GETPIVOTDATA(\"body\",knt_tab!$D$3,\"zavodnik\",knt_tab!D13)=0,\"\",knt_tab!D13))","v":"Čerchla Michal"},{"$f":"IF(V12=\"\",\"\",GETPIVOTDATA(\"body\",knt_tab!$D$3,\"zavodnik\",V12))","v":23}]
[10,{"$f":"IF(ISERR(GETPIVOTDATA(\"body\",knt_tab!$A$3,\"zavodnik\",knt_tab!A14)),\"\",IF(GETPIVOTDATA(\"body\",knt_tab!$A$3,\"zavodnik\",knt_tab!A14)=0,\"\",knt_tab!A14))","v":"Kunc Matěj"},{"$f":"IF(B13=\"\",\"\",GETPIVOTDATA(\"body\",knt_tab!$A$3,\"zavodnik\",B13))","v":91},null,71,{"$f":"IF(ISERR(GETPIVOTDATA(\"body\",knt_tab!$A$3,\"zavodnik\",knt_tab!A75)),\"\",IF(GETPIVOTDATA(\"body\",knt_tab!$A$3,\"zavodnik\",knt_tab!A75)=0,\"\",knt_tab!A75))","v":"Hráček Jakub"},{"$f":"IF(F13=\"\",\"\",GETPIVOTDATA(\"body\",knt_tab!$A$3,\"zavodnik\",F13))","v":9},null,{"$f":"IF(J13=\"\",\"\",IF(K13=K12,I12,ROW(I13)-ROW($I$11)))","v":2},{"$f":"IF(ISERR(GETPIVOTDATA(\"body\",knt_tab!$AK$3,\"zavodnik\",knt_tab!AK6)),\"\",IF(GETPIVOTDATA(\"body\",knt_tab!$AK$3,\"zavodnik\",knt_tab!AK6)=0,\"\",knt_tab!AK6))","v":"Škurlová Lada"},{"$f":"IF(J13=\"\",\"\",GETPIVOTDATA(\"body\",knt_tab!$AK$3,\"zavodnik\",J13))","v":32},null,"",{"$f":"IF(ISERR(GETPIVOTDATA(\"body\",knt_tab!$Y$3,\"zavodnik\",knt_tab!Y14)),\"\",IF(GETPIVOTDATA(\"body\",knt_tab!$Y$3,\"zavodnik\",knt_tab!Y14)=0,\"\",knt_tab!Y14))","v":""},{"$f":"IF(N13=\"\",\"\",GETPIVOTDATA(\"body\",knt_tab!$Y$3,\"zavodnik\",N13))","v":""},null,10,{"$f":"IF(ISERR(GETPIVOTDATA(\"body\",knt_tab!$M$3,\"zavodnik\",knt_tab!M14)),\"\",IF(GETPIVOTDATA(\"body\",knt_tab!$M$3,\"zavodnik\",knt_tab!M14)=0,\"\",knt_tab!M14))","v":"Pavlica Tomáš"},{"$f":"IF(R13=\"\",\"\",GETPIVOTDATA(\"body\",knt_tab!$M$3,\"zavodnik\",R13))","v":6},null,10,{"$f":"IF(ISERR(GETPIVOTDATA(\"body\",knt_tab!$D$3,\"zavodnik\",knt_tab!D14)),\"\",IF(GETPIVOTDATA(\"body\",knt_tab!$D$3,\"zavodnik\",knt_tab!D14)=0,\"\",knt_tab!D14))","v":"Seibert Marian"},{"$f":"IF(V13=\"\",\"\",GETPIVOTDATA(\"body\",knt_tab!$D$3,\"zavodnik\",V13))","v":20}]
[11,{"$f":"IF(ISERR(GETPIVOTDATA(\"body\",knt_tab!$A$3,\"zavodnik\",knt_tab!A15)),\"\",IF(GETPIVOTDATA(\"body\",knt_tab!$A$3,\"zavodnik\",knt_tab!A15)=0,\"\",knt_tab!A15))","v":"Bulka Vojtěch"},{"$f":"IF(B14=\"\",\"\",GETPIVOTDATA(\"body\",knt_tab!$A$3,\"zavodnik\",B14))","v":85},null,71,{"$f":"IF(ISERR(GETPIVOTDATA(\"body\",knt_tab!$A$3,\"zavodnik\",knt_tab!A76)),\"\",IF(GETPIVOTDATA(\"body\",knt_tab!$A$3,\"zavodnik\",knt_tab!A76)=0,\"\",knt_tab!A76))","v":"Čerchlová Markéta"},{"$f":"IF(F14=\"\",\"\",GETPIVOTDATA(\"body\",knt_tab!$A$3,\"zavodnik\",F14))","v":9},null,3,{"$f":"IF(ISERR(GETPIVOTDATA(\"body\",knt_tab!$AK$3,\"zavodnik\",knt_tab!AK7)),\"\",IF(GETPIVOTDATA(\"body\",knt_tab!$AK$3,\"zavodnik\",knt_tab!AK7)=0,\"\",knt_tab!AK7))","v":"Schöffer Radim"},{"$f":"IF(J14=\"\",\"\",GETPIVOTDATA(\"body\",knt_tab!$AK$3,\"zavodnik\",J14))","v":24},null,"",{"$f":"IF(ISERR(GETPIVOTDATA(\"body\",knt_tab!$Y$3,\"zavodnik\",knt_tab!Y15)),\"\",IF(GETPIVOTDATA(\"body\",knt_tab!$Y$3,\"zavodnik\",knt_tab!Y15)=0,\"\",knt_tab!Y15))","v":""},{"$f":"IF(N14=\"\",\"\",GETPIVOTDATA(\"body\",knt_tab!$Y$3,\"zavodnik\",N14))","v":""},null,11,{"$f":"IF(ISERR(GETPIVOTDATA(\"body\",knt_tab!$M$3,\"zavodnik\",knt_tab!M15)),\"\",IF(GETPIVOTDATA(\"body\",knt_tab!$M$3,\"zavodnik\",knt_tab!M15)=0,\"\",knt_tab!M15))","v":"Obercián Martin"},{"$f":"IF(R14=\"\",\"\",GETPIVOTDATA(\"body\",knt_tab!$M$3,\"zavodnik\",R14))","v":5},null,11,{"$f":"IF(ISERR(GETPIVOTDATA(\"body\",knt_tab!$D$3,\"zavodnik\",knt_tab!D15)),\"\",IF(GETPIVOTDATA(\"body\",knt_tab!$D$3,\"zavodnik\",knt_tab!D15)=0,\"\",knt_tab!D15))","v":"Chmela Tomáš"},{"$f":"IF(V14=\"\",\"\",GETPIVOTDATA(\"body\",knt_tab!$D$3,\"zavodnik\",V14))","v":19}]
[12,{"$f":"IF(ISERR(GETPIVOTDATA(\"body\",knt_tab!$A$3,\"zavodnik\",knt_tab!A16)),\"\",IF(GETPIVOTDATA(\"body\",knt_tab!$A$3,\"zavodnik\",knt_tab!A16)=0,\"\",knt_tab!A16))","v":"Meixner Tomáš"},{"$f":"IF(B15=\"\",\"\",GETPIVOTDATA(\"body\",knt_tab!$A$3,\"zavodnik\",B15))","v":83},null,73,{"$f":"IF(ISERR(GETPIVOTDATA(\"body\",knt_tab!$A$3,\"zavodnik\",knt_tab!A77)),\"\",IF(GETPIVOTDATA(\"body\",knt_tab!$A$3,\"zavodnik\",knt_tab!A77)=0,\"\",knt_tab!A77))","v":"Horák Adam"},{"$f":"IF(F15=\"\",\"\",GETPIVOTDATA(\"body\",knt_tab!$A$3,\"zavodnik\",F15))","v":8},null,4,{"$f":"IF(ISERR(GETPIVOTDATA(\"body\",knt_tab!$AK$3,\"zavodnik\",knt_tab!AK8)),\"\",IF(GETPIVOTDATA(\"body\",knt_tab!$AK$3,\"zavodnik\",knt_tab!AK8)=0,\"\",knt_tab!AK8))","v":"Moravec Vlastimil"},{"$f":"IF(J15=\"\",\"\",GETPIVOTDATA(\"body\",knt_tab!$AK$3,\"zavodnik\",J15))","v":18},null,"",{"$f":"IF(ISERR(GETPIVOTDATA(\"body\",knt_tab!$Y$3,\"zavodnik\",knt_tab!Y16)),\"\",IF(GETPIVOTDATA(\"body\",knt_tab!$Y$3,\"zavodnik\",knt_tab!Y16)=0,\"\",knt_tab!Y16))","v":""},{"$f":"IF(N15=\"\",\"\",GETPIVOTDATA(\"body\",knt_tab!$Y$3,\"zavodnik\",N15))","v":""},null,11,{"$f":"IF(ISERR(GETPIVOTDATA(\"body\",knt_tab!$M$3,\"zavodnik\",knt_tab!M16)),\"\",IF(GETPIVOTDATA(\"body\",knt_tab!$M$3,\"zavodnik\",knt_tab!M16)=0,\"\",knt_tab!M16))","v":"Turčínek Tomáš"},{"$f":"IF(R15=\"\",\"\",GETPIVOTDATA(\"body\",knt_tab!$M$3,\"zavodnik\",R15))","v":5},null,12,{"$f":"IF(ISERR(GETPIVOTDATA(\"body\",knt_tab!$D$3,\"zavodnik\",knt_tab!D16)),\"\",IF(GETPIVOTDATA(\"body\",knt_tab!$D$3,\"zavodnik\",knt_tab!D16)=0,\"\",knt_tab!D16))","v":"Krčmář Jakub"},{"$f":"IF(V15=\"\",\"\",GETPIVOTDATA(\"body\",knt_tab!$D$3,\"zavodnik\",V15))","v":16}]
[13,{"$f":"IF(ISERR(GETPIVOTDATA(\"body\",knt_tab!$A$3,\"zavodnik\",knt_tab!A17)),\"\",IF(GETPIVOTDATA(\"body\",knt_tab!$A$3,\"zavodnik\",knt_tab!A17)=0,\"\",knt_tab!A17))","v":"Kokešová Alexandra"},{"$f":"IF(B16=\"\",\"\",GETPIVOTDATA(\"body\",knt_tab!$A$3,\"zavodnik\",B16))","v":81},null,73,{"$f":"IF(ISERR(GETPIVOTDATA(\"body\",knt_tab!$A$3,\"zavodnik\",knt_tab!A78)),\"\",IF(GETPIVOTDATA(\"body\",knt_tab!$A$3,\"zavodnik\",knt_tab!A78)=0,\"\",knt_tab!A78))","v":"Morav Dominik"},{"$f":"IF(F16=\"\",\"\",GETPIVOTDATA(\"body\",knt_tab!$A$3,\"zavodnik\",F16))","v":8},null,5,{"$f":"IF(ISERR(GETPIVOTDATA(\"body\",knt_tab!$AK$3,\"zavodnik\",knt_tab!AK9)),\"\",IF(GETPIVOTDATA(\"body\",knt_tab!$AK$3,\"zavodnik\",knt_tab!AK9)=0,\"\",knt_tab!AK9))","v":"Chlebový Arnold"},{"$f":"IF(J16=\"\",\"\",GETPIVOTDATA(\"body\",knt_tab!$AK$3,\"zavodnik\",J16))","v":17},null,null,null,null,null,{"$f":"IF(R16=\"\",\"\",IF(S16=S15,Q15,ROW(Q16)-ROW($Q$3)))","v":""},{"$f":"IF(ISERR(GETPIVOTDATA(\"body\",knt_tab!$M$3,\"zavodnik\",knt_tab!M17)),\"\",IF(GETPIVOTDATA(\"body\",knt_tab!$M$3,\"zavodnik\",knt_tab!M17)=0,\"\",knt_tab!M17))","v":""},{"$f":"IF(R16=\"\",\"\",GETPIVOTDATA(\"body\",knt_tab!$M$3,\"zavodnik\",R16))","v":""},null,13,{"$f":"IF(ISERR(GETPIVOTDATA(\"body\",knt_tab!$D$3,\"zavodnik\",knt_tab!D17)),\"\",IF(GETPIVOTDATA(\"body\",knt_tab!$D$3,\"zavodnik\",knt_tab!D17)=0,\"\",knt_tab!D17))","v":"Malcová Sabrina"},{"$f":"IF(V16=\"\",\"\",GETPIVOTDATA(\"body\",knt_tab!$D$3,\"zavodnik\",V16))","v":15}]
[14,{"$f":"IF(ISERR(GETPIVOTDATA(\"body\",knt_tab!$A$3,\"zavodnik\",knt_tab!A18)),\"\",IF(GETPIVOTDATA(\"body\",knt_tab!$A$3,\"zavodnik\",knt_tab!A18)=0,\"\",knt_tab!A18))","v":"Pátek Jan"},{"$f":"IF(B17=\"\",\"\",GETPIVOTDATA(\"body\",knt_tab!$A$3,\"zavodnik\",B17))","v":79},null,73,{"$f":"IF(ISERR(GETPIVOTDATA(\"body\",knt_tab!$A$3,\"zavodnik\",knt_tab!A79)),\"\",IF(GETPIVOTDATA(\"body\",knt_tab!$A$3,\"zavodnik\",knt_tab!A79)=0,\"\",knt_tab!A79))","v":"Křenková Marie"},{"$f":"IF(F17=\"\",\"\",GETPIVOTDATA(\"body\",knt_tab!$A$3,\"zavodnik\",F17))","v":8},null,5,{"$f":"IF(ISERR(GETPIVOTDATA(\"body\",knt_tab!$AK$3,\"zavodnik\",knt_tab!AK10)),\"\",IF(GETPIVOTDATA(\"body\",knt_tab!$AK$3,\"zavodnik\",knt_tab!AK10)=0,\"\",knt_tab!AK10))","v":"Frydrýšek Patrik"},{"$f":"IF(J17=\"\",\"\",GETPIVOTDATA(\"body\",knt_tab!$AK$3,\"zavodnik\",J17))","v":17},null,"Dorostenky",null,null,null,"",{"$f":"IF(ISERR(GETPIVOTDATA(\"body\",knt_tab!$M$3,\"zavodnik\",knt_tab!M18)),\"\",IF(GETPIVOTDATA(\"body\",knt_tab!$M$3,\"zavodnik\",knt_tab!M18)=0,\"\",knt_tab!M18))","v":""},{"$f":"IF(R17=\"\",\"\",GETPIVOTDATA(\"body\",knt_tab!$M$3,\"zavodnik\",R17))","v":""},null,14,{"$f":"IF(ISERR(GETPIVOTDATA(\"body\",knt_tab!$D$3,\"zavodnik\",knt_tab!D18)),\"\",IF(GETPIVOTDATA(\"body\",knt_tab!$D$3,\"zavodnik\",knt_tab!D18)=0,\"\",knt_tab!D18))","v":"Horák Adam"},{"$f":"IF(V17=\"\",\"\",GETPIVOTDATA(\"body\",knt_tab!$D$3,\"zavodnik\",V17))","v":8}]
[15,{"$f":"IF(ISERR(GETPIVOTDATA(\"body\",knt_tab!$A$3,\"zavodnik\",knt_tab!A19)),\"\",IF(GETPIVOTDATA(\"body\",knt_tab!$A$3,\"zavodnik\",knt_tab!A19)=0,\"\",knt_tab!A19))","v":"Šmehlík František"},{"$f":"IF(B18=\"\",\"\",GETPIVOTDATA(\"body\",knt_tab!$A$3,\"zavodnik\",B18))","v":76},null,73,{"$f":"IF(ISERR(GETPIVOTDATA(\"body\",knt_tab!$A$3,\"zavodnik\",knt_tab!A80)),\"\",IF(GETPIVOTDATA(\"body\",knt_tab!$A$3,\"zavodnik\",knt_tab!A80)=0,\"\",knt_tab!A80))","v":"Fulneček Šimon"},{"$f":"IF(F18=\"\",\"\",GETPIVOTDATA(\"body\",knt_tab!$A$3,\"zavodnik\",F18))","v":8},null,7,{"$f":"IF(ISERR(GETPIVOTDATA(\"body\",knt_tab!$AK$3,\"zavodnik\",knt_tab!AK11)),\"\",IF(GETPIVOTDATA(\"body\",knt_tab!$AK$3,\"zavodnik\",knt_tab!AK11)=0,\"\",knt_tab!AK11))","v":"Heczko Tomáš"},{"$f":"IF(J18=\"\",\"\",GETPIVOTDATA(\"body\",knt_tab!$AK$3,\"zavodnik\",J18))","v":13},null,"Pořadí","Příjmení","body",null,"",{"$f":"IF(ISERR(GETPIVOTDATA(\"body\",knt_tab!$M$3,\"zavodnik\",knt_tab!M19)),\"\",IF(GETPIVOTDATA(\"body\",knt_tab!$M$3,\"zavodnik\",knt_tab!M19)=0,\"\",knt_tab!M19))","v":""},{"$f":"IF(R18=\"\",\"\",GETPIVOTDATA(\"body\",knt_tab!$M$3,\"zavodnik\",R18))","v":""},null,14,{"$f":"IF(ISERR(GETPIVOTDATA(\"body\",knt_tab!$D$3,\"zavodnik\",knt_tab!D19)),\"\",IF(GETPIVOTDATA(\"body\",knt_tab!$D$3,\"zavodnik\",knt_tab!D19)=0,\"\",knt_tab!D19))","v":"Fulneček Šimon"},{"$f":"IF(V18=\"\",\"\",GETPIVOTDATA(\"body\",knt_tab!$D$3,\"zavodnik\",V18))","v":8}]
[15,{"$f":"IF(ISERR(GETPIVOTDATA(\"body\",knt_tab!$A$3,\"zavodnik\",knt_tab!A20)),\"\",IF(GETPIVOTDATA(\"body\",knt_tab!$A$3,\"zavodnik\",knt_tab!A20)=0,\"\",knt_tab!A20))","v":"Chwastarzová Alena"},{"$f":"IF(B19=\"\",\"\",GETPIVOTDATA(\"body\",knt_tab!$A$3,\"zavodnik\",B19))","v":76},null,77,{"$f":"IF(ISERR(GETPIVOTDATA(\"body\",knt_tab!$A$3,\"zavodnik\",knt_tab!A81)),\"\",IF(GETPIVOTDATA(\"body\",knt_tab!$A$3,\"zavodnik\",knt_tab!A81)=0,\"\",knt_tab!A81))","v":"Pupakis Sotirios"},{"$f":"IF(F19=\"\",\"\",GETPIVOTDATA(\"body\",knt_tab!$A$3,\"zavodnik\",F19))","v":7},null,8,{"$f":"IF(ISERR(GETPIVOTDATA(\"body\",knt_tab!$AK$3,\"zavodnik\",knt_tab!AK12)),\"\",IF(GETPIVOTDATA(\"body\",knt_tab!$AK$3,\"zavodnik\",knt_tab!AK12)=0,\"\",knt_tab!AK12))","v":"Pravda Pavel"},{"$f":"IF(J19=\"\",\"\",GETPIVOTDATA(\"body\",knt_tab!$AK$3,\"zavodnik\",J19))","v":12},null,1,{"$f":"IF(ISERR(GETPIVOTDATA(\"body\",knt_tab!$V$3,\"zavodnik\",knt_tab!V5)),\"\",IF(GETPIVOTDATA(\"body\",knt_tab!$V$3,\"zavodnik\",knt_tab!V5)=0,\"\",knt_tab!V5))","v":"Martínková Adéla"},{"$f":"IF(N19=\"\",\"\",GETPIVOTDATA(\"body\",knt_tab!$V$3,\"zavodnik\",N19))","v":72},null,"",{"$f":"IF(ISERR(GETPIVOTDATA(\"body\",knt_tab!$M$3,\"zavodnik\",knt_tab!M20)),\"\",IF(GETPIVOTDATA(\"body\",knt_tab!$M$3,\"zavodnik\",knt_tab!M20)=0,\"\",knt_tab!M20))","v":""},{"$f":"IF(R19=\"\",\"\",GETPIVOTDATA(\"body\",knt_tab!$M$3,\"zavodnik\",R19))","v":""},null,16,{"$f":"IF(ISERR(GETPIVOTDATA(\"body\",knt_tab!$D$3,\"zavodnik\",knt_tab!D20)),\"\",IF(GETPIVOTDATA(\"body\",knt_tab!$D$3,\"zavodnik\",knt_tab!D20)=0,\"\",knt_tab!D20))","v":"Konvičný Dominik"},{"$f":"IF(V19=\"\",\"\",GETPIVOTDATA(\"body\",knt_tab!$D$3,\"zavodnik\",V19))","v":6}]
[17,{"$f":"IF(ISERR(GETPIVOTDATA(\"body\",knt_tab!$A$3,\"zavodnik\",knt_tab!A21)),\"\",IF(GETPIVOTDATA(\"body\",knt_tab!$A$3,\"zavodnik\",knt_tab!A21)=0,\"\",knt_tab!A21))","v":"Martínková Adéla"},{"$f":"IF(B20=\"\",\"\",GETPIVOTDATA(\"body\",knt_tab!$A$3,\"zavodnik\",B20))","v":72},null,77,{"$f":"IF(ISERR(GETPIVOTDATA(\"body\",knt_tab!$A$3,\"zavodnik\",knt_tab!A82)),\"\",IF(GETPIVOTDATA(\"body\",knt_tab!$A$3,\"zavodnik\",knt_tab!A82)=0,\"\",knt_tab!A82))","v":"Blažej Jan"},{"$f":"IF(F20=\"\",\"\",GETPIVOTDATA(\"body\",knt_tab!$A$3,\"zavodnik\",F20))","v":7},null,9,{"$f":"IF(ISERR(GETPIVOTDATA(\"body\",knt_tab!$AK$3,\"zavodnik\",knt_tab!AK13)),\"\",IF(GETPIVOTDATA(\"body\",knt_tab!$AK$3,\"zavodnik\",knt_tab!AK13)=0,\"\",knt_tab!AK13))","v":"Morav Dominik"},{"$f":"IF(J20=\"\",\"\",GETPIVOTDATA(\"body\",knt_tab!$AK$3,\"zavodnik\",J20))","v":8},null,{"$f":"IF(N20=\"\",\"\",IF(O20=O19,M19,ROW(M20)-ROW($M$18)))","v":2},{"$f":"IF(ISERR(GETPIVOTDATA(\"body\",knt_tab!$V$3,\"zavodnik\",knt_tab!V6)),\"\",IF(GETPIVOTDATA(\"body\",knt_tab!$V$3,\"zavodnik\",knt_tab!V6)=0,\"\",knt_tab!V6))","v":"Chwastarzová Alena"},{"$f":"IF(N20=\"\",\"\",GETPIVOTDATA(\"body\",knt_tab!$V$3,\"zavodnik\",N20))","v":63},null,"",{"$f":"IF(ISERR(GETPIVOTDATA(\"body\",knt_tab!$M$3,\"zavodnik\",knt_tab!M21)),\"\",IF(GETPIVOTDATA(\"body\",knt_tab!$M$3,\"zavodnik\",knt_tab!M21)=0,\"\",knt_tab!M21))","v":""},{"$f":"IF(R20=\"\",\"\",GETPIVOTDATA(\"body\",knt_tab!$M$3,\"zavodnik\",R20))","v":""},null,16,{"$f":"IF(ISERR(GETPIVOTDATA(\"body\",knt_tab!$D$3,\"zavodnik\",knt_tab!D21)),\"\",IF(GETPIVOTDATA(\"body\",knt_tab!$D$3,\"zavodnik\",knt_tab!D21)=0,\"\",knt_tab!D21))","v":"Bortlíček Adam"},{"$f":"IF(V20=\"\",\"\",GETPIVOTDATA(\"body\",knt_tab!$D$3,\"zavodnik\",V20))","v":6}]
[18,{"$f":"IF(ISERR(GETPIVOTDATA(\"body\",knt_tab!$A$3,\"zavodnik\",knt_tab!A22)),\"\",IF(GETPIVOTDATA(\"body\",knt_tab!$A$3,\"zavodnik\",knt_tab!A22)=0,\"\",knt_tab!A22))","v":"Boháček Jan"},{"$f":"IF(B21=\"\",\"\",GETPIVOTDATA(\"body\",knt_tab!$A$3,\"zavodnik\",B21))","v":71},null,79,{"$f":"IF(ISERR(GETPIVOTDATA(\"body\",knt_tab!$A$3,\"zavodnik\",knt_tab!A83)),\"\",IF(GETPIVOTDATA(\"body\",knt_tab!$A$3,\"zavodnik\",knt_tab!A83)=0,\"\",knt_tab!A83))","v":"Baštinská Adéla"},{"$f":"IF(F21=\"\",\"\",GETPIVOTDATA(\"body\",knt_tab!$A$3,\"zavodnik\",F21))","v":6},null,10,{"$f":"IF(ISERR(GETPIVOTDATA(\"body\",knt_tab!$AK$3,\"zavodnik\",knt_tab!AK14)),\"\",IF(GETPIVOTDATA(\"body\",knt_tab!$AK$3,\"zavodnik\",knt_tab!AK14)=0,\"\",knt_tab!AK14))","v":"Mikenda Tomáš"},{"$f":"IF(J21=\"\",\"\",GETPIVOTDATA(\"body\",knt_tab!$AK$3,\"zavodnik\",J21))","v":3},null,3,{"$f":"IF(ISERR(GETPIVOTDATA(\"body\",knt_tab!$V$3,\"zavodnik\",knt_tab!V7)),\"\",IF(GETPIVOTDATA(\"body\",knt_tab!$V$3,\"zavodnik\",knt_tab!V7)=0,\"\",knt_tab!V7))","v":"Polášková Kristýna"},{"$f":"IF(N21=\"\",\"\",GETPIVOTDATA(\"body\",knt_tab!$V$3,\"zavodnik\",N21))","v":62},null,"",{"$f":"IF(ISERR(GETPIVOTDATA(\"body\",knt_tab!$M$3,\"zavodnik\",knt_tab!M22)),\"\",IF(GETPIVOTDATA(\"body\",knt_tab!$M$3,\"zavodnik\",knt_tab!M22)=0,\"\",knt_tab!M22))","v":""},{"$f":"IF(R21=\"\",\"\",GETPIVOTDATA(\"body\",knt_tab!$M$3,\"zavodnik\",R21))","v":""},null,18,{"$f":"IF(ISERR(GETPIVOTDATA(\"body\",knt_tab!$D$3,\"zavodnik\",knt_tab!D22)),\"\",IF(GETPIVOTDATA(\"body\",knt_tab!$D$3,\"zavodnik\",knt_tab!D22)=0,\"\",knt_tab!D22))","v":"Přibil Jakub"},{"$f":"IF(V21=\"\",\"\",GETPIVOTDATA(\"body\",knt_tab!$D$3,\"zavodnik\",V21))","v":5}]
[19,{"$f":"IF(ISERR(GETPIVOTDATA(\"body\",knt_tab!$A$3,\"zavodnik\",knt_tab!A23)),\"\",IF(GETPIVOTDATA(\"body\",knt_tab!$A$3,\"zavodnik\",knt_tab!A23)=0,\"\",knt_tab!A23))","v":"Svoboda Jiří"},{"$f":"IF(B22=\"\",\"\",GETPIVOTDATA(\"body\",knt_tab!$A$3,\"zavodnik\",B22))","v":63},null,79,{"$f":"IF(ISERR(GETPIVOTDATA(\"body\",knt_tab!$A$3,\"zavodnik\",knt_tab!A84)),\"\",IF(GETPIVOTDATA(\"body\",knt_tab!$A$3,\"zavodnik\",knt_tab!A84)=0,\"\",knt_tab!A84))","v":"Konvičný Dominik"},{"$f":"IF(F22=\"\",\"\",GETPIVOTDATA(\"body\",knt_tab!$A$3,\"zavodnik\",F22))","v":6},null,"",{"$f":"IF(ISERR(GETPIVOTDATA(\"body\",knt_tab!$AK$3,\"zavodnik\",knt_tab!AK15)),\"\",IF(GETPIVOTDATA(\"body\",knt_tab!$AK$3,\"zavodnik\",knt_tab!AK15)=0,\"\",knt_tab!AK15))","v":""},{"$f":"IF(J22=\"\",\"\",GETPIVOTDATA(\"body\",knt_tab!$AK$3,\"zavodnik\",J22))","v":""},null,4,{"$f":"IF(ISERR(GETPIVOTDATA(\"body\",knt_tab!$V$3,\"zavodnik\",knt_tab!V8)),\"\",IF(GETPIVOTDATA(\"body\",knt_tab!$V$3,\"zavodnik\",knt_tab!V8)=0,\"\",knt_tab!V8))","v":"Ondrašíková Eva"},{"$f":"IF(N22=\"\",\"\",GETPIVOTDATA(\"body\",knt_tab!$V$3,\"zavodnik\",N22))","v":48},null,"",{"$f":"IF(ISERR(GETPIVOTDATA(\"body\",knt_tab!$M$3,\"zavodnik\",knt_tab!M23)),\"\",IF(GETPIVOTDATA(\"body\",knt_tab!$M$3,\"zavodnik\",knt_tab!M23)=0,\"\",knt_tab!M23))","v":""},{"$f":"IF(R22=\"\",\"\",GETPIVOTDATA(\"body\",knt_tab!$M$3,\"zavodnik\",R22))","v":""},null,18,{"$f":"IF(ISERR(GETPIVOTDATA(\"body\",knt_tab!$D$3,\"zavodnik\",knt_tab!D23)),\"\",IF(GETPIVOTDATA(\"body\",knt_tab!$D$3,\"zavodnik\",knt_tab!D23)=0,\"\",knt_tab!D23))","v":"Matějíčka Štěpán"},{"$f":"IF(V22=\"\",\"\",GETPIVOTDATA(\"body\",knt_tab!$D$3,\"zavodnik\",V22))","v":5}]
[20,{"$f":"IF(ISERR(GETPIVOTDATA(\"body\",knt_tab!$A$3,\"zavodnik\",knt_tab!A24)),\"\",IF(GETPIVOTDATA(\"body\",knt_tab!$A$3,\"zavodnik\",knt_tab!A24)=0,\"\",knt_tab!A24))","v":"Polášková Kristýna"},{"$f":"IF(B23=\"\",\"\",GETPIVOTDATA(\"body\",knt_tab!$A$3,\"zavodnik\",B23))","v":62},null,79,{"$f":"IF(ISERR(GETPIVOTDATA(\"body\",knt_tab!$A$3,\"zavodnik\",knt_tab!A85)),\"\",IF(GETPIVOTDATA(\"body\",knt_tab!$A$3,\"zavodnik\",knt_tab!A85)=0,\"\",knt_tab!A85))","v":"Pavlica Tomáš"},{"$f":"IF(F23=\"\",\"\",GETPIVOTDATA(\"body\",knt_tab!$A$3,\"zavodnik\",F23))","v":6},null,"",{"$f":"IF(ISERR(GETPIVOTDATA(\"body\",knt_tab!$AK$3,\"zavodnik\",knt_tab!AK16)),\"\",IF(GETPIVOTDATA(\"body\",knt_tab!$AK$3,\"zavodnik\",knt_tab!AK16)=0,\"\",knt_tab!AK16))","v":""},{"$f":"IF(J23=\"\",\"\",GETPIVOTDATA(\"body\",knt_tab!$AK$3,\"zavodnik\",J23))","v":""},null,5,{"$f":"IF(ISERR(GETPIVOTDATA(\"body\",knt_tab!$V$3,\"zavodnik\",knt_tab!V9)),\"\",IF(GETPIVOTDATA(\"body\",knt_tab!$V$3,\"zavodnik\",knt_tab!V9)=0,\"\",knt_tab!V9))","v":"Kuncová Viktorie"},{"$f":"IF(N23=\"\",\"\",GETPIVOTDATA(\"body\",knt_tab!$V$3,\"zavodnik\",N23))","v":14},null,"",{"$f":"IF(ISERR(GETPIVOTDATA(\"body\",knt_tab!$M$3,\"zavodnik\",knt_tab!M24)),\"\",IF(GETPIVOTDATA(\"body\",knt_tab!$M$3,\"zavodnik\",knt_tab!M24)=0,\"\",knt_tab!M24))","v":""},{"$f":"IF(R23=\"\",\"\",GETPIVOTDATA(\"body\",knt_tab!$M$3,\"zavodnik\",R23))","v":""},null,18,{"$f":"IF(ISERR(GETPIVOTDATA(\"body\",knt_tab!$D$3,\"zavodnik\",knt_tab!D24)),\"\",IF(GETPIVOTDATA(\"body\",knt_tab!$D$3,\"zavodnik\",knt_tab!D24)=0,\"\",knt_tab!D24))","v":"Martináková Stela"},{"$f":"IF(V23=\"\",\"\",GETPIVOTDATA(\"body\",knt_tab!$D$3,\"zavodnik\",V23))","v":5}]
[21,{"$f":"IF(ISERR(GETPIVOTDATA(\"body\",knt_tab!$A$3,\"zavodnik\",knt_tab!A25)),\"\",IF(GETPIVOTDATA(\"body\",knt_tab!$A$3,\"zavodnik\",knt_tab!A25)=0,\"\",knt_tab!A25))","v":"Malaczynski Filip"},{"$f":"IF(B24=\"\",\"\",GETPIVOTDATA(\"body\",knt_tab!$A$3,\"zavodnik\",B24))","v":58},null,79,{"$f":"IF(ISERR(GETPIVOTDATA(\"body\",knt_tab!$A$3,\"zavodnik\",knt_tab!A86)),\"\",IF(GETPIVOTDATA(\"body\",knt_tab!$A$3,\"zavodnik\",knt_tab!A86)=0,\"\",knt_tab!A86))","v":"Bortlíček Adam"},{"$f":"IF(F24=\"\",\"\",GETPIVOTDATA(\"body\",knt_tab!$A$3,\"zavodnik\",F24))","v":6},null,null,null,null,null,"",{"$f":"IF(ISERR(GETPIVOTDATA(\"body\",knt_tab!$V$3,\"zavodnik\",knt_tab!V10)),\"\",IF(GETPIVOTDATA(\"body\",knt_tab!$V$3,\"zavodnik\",knt_tab!V10)=0,\"\",knt_tab!V10))","v":""},{"$f":"IF(N24=\"\",\"\",GETPIVOTDATA(\"body\",knt_tab!$V$3,\"zavodnik\",N24))","v":""},null,"",{"$f":"IF(ISERR(GETPIVOTDATA(\"body\",knt_tab!$M$3,\"zavodnik\",knt_tab!M25)),\"\",IF(GETPIVOTDATA(\"body\",knt_tab!$M$3,\"zavodnik\",knt_tab!M25)=0,\"\",knt_tab!M25))","v":""},{"$f":"IF(R24=\"\",\"\",GETPIVOTDATA(\"body\",knt_tab!$M$3,\"zavodnik\",R24))","v":""},null,21,{"$f":"IF(ISERR(GETPIVOTDATA(\"body\",knt_tab!$D$3,\"zavodnik\",knt_tab!D25)),\"\",IF(GETPIVOTDATA(\"body\",knt_tab!$D$3,\"zavodnik\",knt_tab!D25)=0,\"\",knt_tab!D25))","v":"Jeřábek Jan"},{"$f":"IF(V24=\"\",\"\",GETPIVOTDATA(\"body\",knt_tab!$D$3,\"zavodnik\",V24))","v":4}]
[22,{"$f":"IF(ISERR(GETPIVOTDATA(\"body\",knt_tab!$A$3,\"zavodnik\",knt_tab!A26)),\"\",IF(GETPIVOTDATA(\"body\",knt_tab!$A$3,\"zavodnik\",knt_tab!A26)=0,\"\",knt_tab!A26))","v":"Čebík Filip"},{"$f":"IF(B25=\"\",\"\",GETPIVOTDATA(\"body\",knt_tab!$A$3,\"zavodnik\",B25))","v":54},null,83,{"$f":"IF(ISERR(GETPIVOTDATA(\"body\",knt_tab!$A$3,\"zavodnik\",knt_tab!A87)),\"\",IF(GETPIVOTDATA(\"body\",knt_tab!$A$3,\"zavodnik\",knt_tab!A87)=0,\"\",knt_tab!A87))","v":"Obercián Martin"},{"$f":"IF(F25=\"\",\"\",GETPIVOTDATA(\"body\",knt_tab!$A$3,\"zavodnik\",F25))","v":5},null,"ženy",null,null,null,"",{"$f":"IF(ISERR(GETPIVOTDATA(\"body\",knt_tab!$V$3,\"zavodnik\",knt_tab!V11)),\"\",IF(GETPIVOTDATA(\"body\",knt_tab!$V$3,\"zavodnik\",knt_tab!V11)=0,\"\",knt_tab!V11))","v":""},{"$f":"IF(N25=\"\",\"\",GETPIVOTDATA(\"body\",knt_tab!$V$3,\"zavodnik\",N25))","v":""},null,{"$f":"IF(R25=\"\",\"\",IF(S25=S24,Q24,ROW(Q25)-ROW($Q$3)))","v":""},{"$f":"IF(ISERR(GETPIVOTDATA(\"body\",knt_tab!$M$3,\"zavodnik\",knt_tab!M26)),\"\",IF(GETPIVOTDATA(\"body\",knt_tab!$M$3,\"zavodnik\",knt_tab!M26)=0,\"\",knt_tab!M26))","v":""},{"$f":"IF(R25=\"\",\"\",GETPIVOTDATA(\"body\",knt_tab!$M$3,\"zavodnik\",R25))","v":""},null,22,{"$f":"IF(ISERR(GETPIVOTDATA(\"body\",knt_tab!$D$3,\"zavodnik\",knt_tab!D26)),\"\",IF(GETPIVOTDATA(\"body\",knt_tab!$D$3,\"zavodnik\",knt_tab!D26)=0,\"\",knt_tab!D26))","v":"Cagala Šimon"},{"$f":"IF(V25=\"\",\"\",GETPIVOTDATA(\"body\",knt_tab!$D$3,\"zavodnik\",V25))","v":3}]
[23,{"$f":"IF(ISERR(GETPIVOTDATA(\"body\",knt_tab!$A$3,\"zavodnik\",knt_tab!A27)),\"\",IF(GETPIVOTDATA(\"body\",knt_tab!$A$3,\"zavodnik\",knt_tab!A27)=0,\"\",knt_tab!A27))","v":"Franek Patrik"},{"$f":"IF(B26=\"\",\"\",GETPIVOTDATA(\"body\",knt_tab!$A$3,\"zavodnik\",B26))","v":53},null,83,{"$f":"IF(ISERR(GETPIVOTDATA(\"body\",knt_tab!$A$3,\"zavodnik\",knt_tab!A88)),\"\",IF(GETPIVOTDATA(\"body\",knt_tab!$A$3,\"zavodnik\",knt_tab!A88)=0,\"\",knt_tab!A88))","v":"Matějíčka Štěpán"},{"$f":"IF(F26=\"\",\"\",GETPIVOTDATA(\"body\",knt_tab!$A$3,\"zavodnik\",F26))","v":5},null,"Pořadí","Příjmení","body",null,null,null,null,null,{"$f":"IF(R26=\"\",\"\",IF(S26=S25,Q25,ROW(Q26)-ROW($Q$3)))","v":""},{"$f":"IF(ISERR(GETPIVOTDATA(\"body\",knt_tab!$M$3,\"zavodnik\",knt_tab!M27)),\"\",IF(GETPIVOTDATA(\"body\",knt_tab!$M$3,\"zavodnik\",knt_tab!M27)=0,\"\",knt_tab!M27))","v":""},{"$f":"IF(R26=\"\",\"\",GETPIVOTDATA(\"body\",knt_tab!$M$3,\"zavodnik\",R26))","v":""},null,23,{"$f":"IF(ISERR(GETPIVOTDATA(\"body\",knt_tab!$D$3,\"zavodnik\",knt_tab!D27)),\"\",IF(GETPIVOTDATA(\"body\",knt_tab!$D$3,\"zavodnik\",knt_tab!D27)=0,\"\",knt_tab!D27))","v":"Křenek Jakub"},{"$f":"IF(V26=\"\",\"\",GETPIVOTDATA(\"body\",knt_tab!$D$3,\"zavodnik\",V26))","v":2}]
[24,{"$f":"IF(ISERR(GETPIVOTDATA(\"body\",knt_tab!$A$3,\"zavodnik\",knt_tab!A28)),\"\",IF(GETPIVOTDATA(\"body\",knt_tab!$A$3,\"zavodnik\",knt_tab!A28)=0,\"\",knt_tab!A28))","v":"Motyka Dominik"},{"$f":"IF(B27=\"\",\"\",GETPIVOTDATA(\"body\",knt_tab!$A$3,\"zavodnik\",B27))","v":51},null,83,{"$f":"IF(ISERR(GETPIVOTDATA(\"body\",knt_tab!$A$3,\"zavodnik\",knt_tab!A89)),\"\",IF(GETPIVOTDATA(\"body\",knt_tab!$A$3,\"zavodnik\",knt_tab!A89)=0,\"\",knt_tab!A89))","v":"Jakubec Lukáš"},{"$f":"IF(F27=\"\",\"\",GETPIVOTDATA(\"body\",knt_tab!$A$3,\"zavodnik\",F27))","v":5},null,1,{"$f":"IF(ISERR(GETPIVOTDATA(\"body\",knt_tab!$AH$3,\"zavodnik\",knt_tab!AH5)),\"\",IF(GETPIVOTDATA(\"body\",knt_tab!$AH$3,\"zavodnik\",knt_tab!AH5)=0,\"\",knt_tab!AH5))","v":""},{"$f":"IF(J27=\"\",\"\",GETPIVOTDATA(\"body\",knt_tab!$AH$3,\"zavodnik\",J27))","v":""},null,"Dorostenci",null,null,null,null,null,null,null,{"$f":"IF(V27=\"\",\"\",IF(W27=W26,U26,ROW(U27)-ROW($U$3)))","v":24},{"$f":"IF(ISERR(GETPIVOTDATA(\"body\",knt_tab!$D$3,\"zavodnik\",knt_tab!D28)),\"\",IF(GETPIVOTDATA(\"body\",knt_tab!$D$3,\"zavodnik\",knt_tab!D28)=0,\"\",knt_tab!D28))","v":"Kožušník Vojtěch"},{"$f":"IF(V27=\"\",\"\",GETPIVOTDATA(\"body\",knt_tab!$D$3,\"zavodnik\",V27))","v":1}]
[24,{"$f":"IF(ISERR(GETPIVOTDATA(\"body\",knt_tab!$A$3,\"zavodnik\",knt_tab!A29)),\"\",IF(GETPIVOTDATA(\"body\",knt_tab!$A$3,\"zavodnik\",knt_tab!A29)=0,\"\",knt_tab!A29))","v":"Tomek David"},{"$f":"IF(B28=\"\",\"\",GETPIVOTDATA(\"body\",knt_tab!$A$3,\"zavodnik\",B28))","v":51},null,83,{"$f":"IF(ISERR(GETPIVOTDATA(\"body\",knt_tab!$A$3,\"zavodnik\",knt_tab!A90)),\"\",IF(GETPIVOTDATA(\"body\",knt_tab!$A$3,\"zavodnik\",knt_tab!A90)=0,\"\",knt_tab!A90))","v":"Martináková Stela"},{"$f":"IF(F28=\"\",\"\",GETPIVOTDATA(\"body\",knt_tab!$A$3,\"zavodnik\",F28))","v":5},null,{"$f":"IF(J28=\"\",\"\",IF(K28=K27,I27,ROW(I28)-ROW($I$26)))","v":""},{"$f":"IF(ISERR(GETPIVOTDATA(\"body\",knt_tab!$AH$3,\"zavodnik\",knt_tab!AH6)),\"\",IF(GETPIVOTDATA(\"body\",knt_tab!$AH$3,\"zavodnik\",knt_tab!AH6)=0,\"\",knt_tab!AH6))","v":""},{"$f":"IF(J28=\"\",\"\",GETPIVOTDATA(\"body\",knt_tab!$AH$3,\"zavodnik\",J28))","v":""},null,"Pořadí","Příjmení","body",null,"mladší žačky",null,null,null,24,{"$f":"IF(ISERR(GETPIVOTDATA(\"body\",knt_tab!$D$3,\"zavodnik\",knt_tab!D29)),\"\",IF(GETPIVOTDATA(\"body\",knt_tab!$D$3,\"zavodnik\",knt_tab!D29)=0,\"\",knt_tab!D29))","v":"Novotný Kryštof"},{"$f":"IF(V28=\"\",\"\",GETPIVOTDATA(\"body\",knt_tab!$D$3,\"zavodnik\",V28))","v":1}]
[26,{"$f":"IF(ISERR(GETPIVOTDATA(\"body\",knt_tab!$A$3,\"zavodnik\",knt_tab!A30)),\"\",IF(GETPIVOTDATA(\"body\",knt_tab!$A$3,\"zavodnik\",knt_tab!A30)=0,\"\",knt_tab!A30))","v":"Ondrašíková Eva"},{"$f":"IF(B29=\"\",\"\",GETPIVOTDATA(\"body\",knt_tab!$A$3,\"zavodnik\",B29))","v":48},null,83,{"$f":"IF(ISERR(GETPIVOTDATA(\"body\",knt_tab!$A$3,\"zavodnik\",knt_tab!A91)),\"\",IF(GETPIVOTDATA(\"body\",knt_tab!$A$3,\"zavodnik\",knt_tab!A91)=0,\"\",knt_tab!A91))","v":"Přibil Jakub"},{"$f":"IF(F29=\"\",\"\",GETPIVOTDATA(\"body\",knt_tab!$A$3,\"zavodnik\",F29))","v":5},null,{"$f":"IF(J29=\"\",\"\",IF(K29=K28,I28,ROW(I29)-ROW($I$26)))","v":""},{"$f":"IF(ISERR(GETPIVOTDATA(\"body\",knt_tab!$AH$3,\"zavodnik\",knt_tab!AH7)),\"\",IF(GETPIVOTDATA(\"body\",knt_tab!$AH$3,\"zavodnik\",knt_tab!AH7)=0,\"\",knt_tab!AH7))","v":""},{"$f":"IF(J29=\"\",\"\",GETPIVOTDATA(\"body\",knt_tab!$AH$3,\"zavodnik\",J29))","v":""},null,1,{"$f":"IF(ISERR(GETPIVOTDATA(\"body\",knt_tab!$S$3,\"zavodnik\",knt_tab!S5)),\"\",IF(GETPIVOTDATA(\"body\",knt_tab!$S$3,\"zavodnik\",knt_tab!S5)=0,\"\",knt_tab!S5))","v":"Raška Michael"},{"$f":"IF(N29=\"\",\"\",GETPIVOTDATA(\"body\",knt_tab!$S$3,\"zavodnik\",N29))","v":114},null,"Pořadí","Příjmení","body",null,24,{"$f":"IF(ISERR(GETPIVOTDATA(\"body\",knt_tab!$D$3,\"zavodnik\",knt_tab!D30)),\"\",IF(GETPIVOTDATA(\"body\",knt_tab!$D$3,\"zavodnik\",knt_tab!D30)=0,\"\",knt_tab!D30))","v":"Válek Matěj"},{"$f":"IF(V29=\"\",\"\",GETPIVOTDATA(\"body\",knt_tab!$D$3,\"zavodnik\",V29))","v":1}]
[26,{"$f":"IF(ISERR(GETPIVOTDATA(\"body\",knt_tab!$A$3,\"zavodnik\",knt_tab!A31)),\"\",IF(GETPIVOTDATA(\"body\",knt_tab!$A$3,\"zavodnik\",knt_tab!A31)=0,\"\",knt_tab!A31))","v":"Ďurinová Kristýna"},{"$f":"IF(B30=\"\",\"\",GETPIVOTDATA(\"body\",knt_tab!$A$3,\"zavodnik\",B30))","v":48},null,83,{"$f":"IF(ISERR(GETPIVOTDATA(\"body\",knt_tab!$A$3,\"zavodnik\",knt_tab!A92)),\"\",IF(GETPIVOTDATA(\"body\",knt_tab!$A$3,\"zavodnik\",knt_tab!A92)=0,\"\",knt_tab!A92))","v":"Koval Nikolas"},{"$f":"IF(F30=\"\",\"\",GETPIVOTDATA(\"body\",knt_tab!$A$3,\"zavodnik\",F30))","v":5},null,{"$f":"IF(J30=\"\",\"\",IF(K30=K29,I29,ROW(I30)-ROW($I$26)))","v":""},{"$f":"IF(ISERR(GETPIVOTDATA(\"body\",knt_tab!$AH$3,\"zavodnik\",knt_tab!AH8)),\"\",IF(GETPIVOTDATA(\"body\",knt_tab!$AH$3,\"zavodnik\",knt_tab!AH8)=0,\"\",knt_tab!AH8))","v":""},{"$f":"IF(J30=\"\",\"\",GETPIVOTDATA(\"body\",knt_tab!$AH$3,\"zavodnik\",J30))","v":""},null,{"$f":"IF(N30=\"\",\"\",IF(O30=O29,M29,ROW(M30)-ROW($M$28)))","v":2},{"$f":"IF(ISERR(GETPIVOTDATA(\"body\",knt_tab!$S$3,\"zavodnik\",knt_tab!S6)),\"\",IF(GETPIVOTDATA(\"body\",knt_tab!$S$3,\"zavodnik\",knt_tab!S6)=0,\"\",knt_tab!S6))","v":"Pustějovský Tomáš"},{"$f":"IF(N30=\"\",\"\",GETPIVOTDATA(\"body\",knt_tab!$S$3,\"zavodnik\",N30))","v":85},null,1,{"$f":"IF(ISERR(GETPIVOTDATA(\"body\",knt_tab!$J$3,\"zavodnik\",knt_tab!J5)),\"\",IF(GETPIVOTDATA(\"body\",knt_tab!$J$3,\"zavodnik\",knt_tab!J5)=0,\"\",knt_tab!J5))","v":"Václavková Tereza"},{"$f":"IF(R30=\"\",\"\",GETPIVOTDATA(\"body\",knt_tab!$J$3,\"zavodnik\",R30))","v":108},null,24,{"$f":"IF(ISERR(GETPIVOTDATA(\"body\",knt_tab!$D$3,\"zavodnik\",knt_tab!D31)),\"\",IF(GETPIVOTDATA(\"body\",knt_tab!$D$3,\"zavodnik\",knt_tab!D31)=0,\"\",knt_tab!D31))","v":"Papaj Tobiáš"},{"$f":"IF(V30=\"\",\"\",GETPIVOTDATA(\"body\",knt_tab!$D$3,\"zavodnik\",V30))","v":1}]
[28,{"$f":"IF(ISERR(GETPIVOTDATA(\"body\",knt_tab!$A$3,\"zavodnik\",knt_tab!A32)),\"\",IF(GETPIVOTDATA(\"body\",knt_tab!$A$3,\"zavodnik\",knt_tab!A32)=0,\"\",knt_tab!A32))","v":"Mojžíšek Lukáš"},{"$f":"IF(B31=\"\",\"\",GETPIVOTDATA(\"body\",knt_tab!$A$3,\"zavodnik\",B31))","v":46},null,89,{"$f":"IF(ISERR(GETPIVOTDATA(\"body\",knt_tab!$A$3,\"zavodnik\",knt_tab!A93)),\"\",IF(GETPIVOTDATA(\"body\",knt_tab!$A$3,\"zavodnik\",knt_tab!A93)=0,\"\",knt_tab!A93))","v":"Jeřábek Jan"},{"$f":"IF(F31=\"\",\"\",GETPIVOTDATA(\"body\",knt_tab!$A$3,\"zavodnik\",F31))","v":4},null,null,null,null,null,3,{"$f":"IF(ISERR(GETPIVOTDATA(\"body\",knt_tab!$S$3,\"zavodnik\",knt_tab!S7)),\"\",IF(GETPIVOTDATA(\"body\",knt_tab!$S$3,\"zavodnik\",knt_tab!S7)=0,\"\",knt_tab!S7))","v":"Pátek Jan"},{"$f":"IF(N31=\"\",\"\",GETPIVOTDATA(\"body\",knt_tab!$S$3,\"zavodnik\",N31))","v":69},null,{"$f":"IF(R31=\"\",\"\",IF(S31=S30,Q30,ROW(Q31)-ROW($Q$29)))","v":2},{"$f":"IF(ISERR(GETPIVOTDATA(\"body\",knt_tab!$J$3,\"zavodnik\",knt_tab!J6)),\"\",IF(GETPIVOTDATA(\"body\",knt_tab!$J$3,\"zavodnik\",knt_tab!J6)=0,\"\",knt_tab!J6))","v":"Kokešová Alexandra"},{"$f":"IF(R31=\"\",\"\",GETPIVOTDATA(\"body\",knt_tab!$J$3,\"zavodnik\",R31))","v":81},null,24,{"$f":"IF(ISERR(GETPIVOTDATA(\"body\",knt_tab!$D$3,\"zavodnik\",knt_tab!D32)),\"\",IF(GETPIVOTDATA(\"body\",knt_tab!$D$3,\"zavodnik\",knt_tab!D32)=0,\"\",knt_tab!D32))","v":"Kolář Vojtěch"},{"$f":"IF(V31=\"\",\"\",GETPIVOTDATA(\"body\",knt_tab!$D$3,\"zavodnik\",V31))","v":1}]
[29,{"$f":"IF(ISERR(GETPIVOTDATA(\"body\",knt_tab!$A$3,\"zavodnik\",knt_tab!A33)),\"\",IF(GETPIVOTDATA(\"body\",knt_tab!$A$3,\"zavodnik\",knt_tab!A33)=0,\"\",knt_tab!A33))","v":"Kohn Tomáš"},{"$f":"IF(B32=\"\",\"\",GETPIVOTDATA(\"body\",knt_tab!$A$3,\"zavodnik\",B32))","v":45},null,89,{"$f":"IF(ISERR(GETPIVOTDATA(\"body\",knt_tab!$A$3,\"zavodnik\",knt_tab!A94)),\"\",IF(GETPIVOTDATA(\"body\",knt_tab!$A$3,\"zavodnik\",knt_tab!A94)=0,\"\",knt_tab!A94))","v":"Částečka Filip"},{"$f":"IF(F32=\"\",\"\",GETPIVOTDATA(\"body\",knt_tab!$A$3,\"zavodnik\",F32))","v":4},null,"muži",null,null,null,4,{"$f":"IF(ISERR(GETPIVOTDATA(\"body\",knt_tab!$S$3,\"zavodnik\",knt_tab!S8)),\"\",IF(GETPIVOTDATA(\"body\",knt_tab!$S$3,\"zavodnik\",knt_tab!S8)=0,\"\",knt_tab!S8))","v":"Franek Patrik"},{"$f":"IF(N32=\"\",\"\",GETPIVOTDATA(\"body\",knt_tab!$S$3,\"zavodnik\",N32))","v":53},null,3,{"$f":"IF(ISERR(GETPIVOTDATA(\"body\",knt_tab!$J$3,\"zavodnik\",knt_tab!J7)),\"\",IF(GETPIVOTDATA(\"body\",knt_tab!$J$3,\"zavodnik\",knt_tab!J7)=0,\"\",knt_tab!J7))","v":"Otáhalová Magda"},{"$f":"IF(R32=\"\",\"\",GETPIVOTDATA(\"body\",knt_tab!$J$3,\"zavodnik\",R32))","v":12},null,24,{"$f":"IF(ISERR(GETPIVOTDATA(\"body\",knt_tab!$D$3,\"zavodnik\",knt_tab!D33)),\"\",IF(GETPIVOTDATA(\"body\",knt_tab!$D$3,\"zavodnik\",knt_tab!D33)=0,\"\",knt_tab!D33))","v":"Buranyč Filip"},{"$f":"IF(V32=\"\",\"\",GETPIVOTDATA(\"body\",knt_tab!$D$3,\"zavodnik\",V32))","v":1}]
[{"$f":"IF(B33=\"\",\"\",IF(C33=C32,A32,ROW(A33)-ROW($A$3)))","v":29},{"$f":"IF(ISERR(GETPIVOTDATA(\"body\",knt_tab!$A$3,\"zavodnik\",knt_tab!A34)),\"\",IF(GETPIVOTDATA(\"body\",knt_tab!$A$3,\"zavodnik\",knt_tab!A34)=0,\"\",knt_tab!A34))","v":"Turčínek Tomáš"},{"$f":"IF(B33=\"\",\"\",GETPIVOTDATA(\"body\",knt_tab!$A$3,\"zavodnik\",B33))","v":45},null,89,{"$f":"IF(ISERR(GETPIVOTDATA(\"body\",knt_tab!$A$3,\"zavodnik\",knt_tab!A95)),\"\",IF(GETPIVOTDATA(\"body\",knt_tab!$A$3,\"zavodnik\",knt_tab!A95)=0,\"\",knt_tab!A95))","v":"Holý Martin"},{"$f":"IF(F33=\"\",\"\",GETPIVOTDATA(\"body\",knt_tab!$A$3,\"zavodnik\",F33))","v":4},null,"Pořadí","Příjmení","body",null,5,{"$f":"IF(ISERR(GETPIVOTDATA(\"body\",knt_tab!$S$3,\"zavodnik\",knt_tab!S9)),\"\",IF(GETPIVOTDATA(\"body\",knt_tab!$S$3,\"zavodnik\",knt_tab!S9)=0,\"\",knt_tab!S9))","v":"Kresta Matěj"},{"$f":"IF(N33=\"\",\"\",GETPIVOTDATA(\"body\",knt_tab!$S$3,\"zavodnik\",N33))","v":27},null,4,{"$f":"IF(ISERR(GETPIVOTDATA(\"body\",knt_tab!$J$3,\"zavodnik\",knt_tab!J8)),\"\",IF(GETPIVOTDATA(\"body\",knt_tab!$J$3,\"zavodnik\",knt_tab!J8)=0,\"\",knt_tab!J8))","v":"Čerchlová Markéta"},{"$f":"IF(R33=\"\",\"\",GETPIVOTDATA(\"body\",knt_tab!$J$3,\"zavodnik\",R33))","v":9},null,24,{"$f":"IF(ISERR(GETPIVOTDATA(\"body\",knt_tab!$D$3,\"zavodnik\",knt_tab!D34)),\"\",IF(GETPIVOTDATA(\"body\",knt_tab!$D$3,\"zavodnik\",knt_tab!D34)=0,\"\",knt_tab!D34))","v":"Rajna Alexandr"},{"$f":"IF(V33=\"\",\"\",GETPIVOTDATA(\"body\",knt_tab!$D$3,\"zavodnik\",V33))","v":1}]
[{"$f":"IF(B34=\"\",\"\",IF(C34=C33,A33,ROW(A34)-ROW($A$3)))","v":31},{"$f":"IF(ISERR(GETPIVOTDATA(\"body\",knt_tab!$A$3,\"zavodnik\",knt_tab!A35)),\"\",IF(GETPIVOTDATA(\"body\",knt_tab!$A$3,\"zavodnik\",knt_tab!A35)=0,\"\",knt_tab!A35))","v":"Moravec Jan"},{"$f":"IF(B34=\"\",\"\",GETPIVOTDATA(\"body\",knt_tab!$A$3,\"zavodnik\",B34))","v":44},null,92,{"$f":"IF(ISERR(GETPIVOTDATA(\"body\",knt_tab!$A$3,\"zavodnik\",knt_tab!A96)),\"\",IF(GETPIVOTDATA(\"body\",knt_tab!$A$3,\"zavodnik\",knt_tab!A96)=0,\"\",knt_tab!A96))","v":"Mikenda Tomáš"},{"$f":"IF(F34=\"\",\"\",GETPIVOTDATA(\"body\",knt_tab!$A$3,\"zavodnik\",F34))","v":3},null,1,{"$f":"IF(ISERR(GETPIVOTDATA(\"body\",knt_tab!$AE$3,\"zavodnik\",knt_tab!AE5)),\"\",IF(GETPIVOTDATA(\"body\",knt_tab!$AE$3,\"zavodnik\",knt_tab!AE5)=0,\"\",knt_tab!AE5))","v":"Raška Michael"},{"$f":"IF(J34=\"\",\"\",GETPIVOTDATA(\"body\",knt_tab!$AE$3,\"zavodnik\",J34))","v":52},null,6,{"$f":"IF(ISERR(GETPIVOTDATA(\"body\",knt_tab!$S$3,\"zavodnik\",knt_tab!S10)),\"\",IF(GETPIVOTDATA(\"body\",knt_tab!$S$3,\"zavodnik\",knt_tab!S10)=0,\"\",knt_tab!S10))","v":"Kocman Petr"},{"$f":"IF(N34=\"\",\"\",GETPIVOTDATA(\"body\",knt_tab!$S$3,\"zavodnik\",N34))","v":26},null,5,{"$f":"IF(ISERR(GETPIVOTDATA(\"body\",knt_tab!$J$3,\"zavodnik\",knt_tab!J9)),\"\",IF(GETPIVOTDATA(\"body\",knt_tab!$J$3,\"zavodnik\",knt_tab!J9)=0,\"\",knt_tab!J9))","v":"Baštinská Adéla"},{"$f":"IF(R34=\"\",\"\",GETPIVOTDATA(\"body\",knt_tab!$J$3,\"zavodnik\",R34))","v":6},null,24,{"$f":"IF(ISERR(GETPIVOTDATA(\"body\",knt_tab!$D$3,\"zavodnik\",knt_tab!D35)),\"\",IF(GETPIVOTDATA(\"body\",knt_tab!$D$3,\"zavodnik\",knt_tab!D35)=0,\"\",knt_tab!D35))","v":"Kolář Daniel"},{"$f":"IF(V34=\"\",\"\",GETPIVOTDATA(\"body\",knt_tab!$D$3,\"zavodnik\",V34))","v":1}]
[32,{"$f":"IF(ISERR(GETPIVOTDATA(\"body\",knt_tab!$A$3,\"zavodnik\",knt_tab!A36)),\"\",IF(GETPIVOTDATA(\"body\",knt_tab!$A$3,\"zavodnik\",knt_tab!A36)=0,\"\",knt_tab!A36))","v":"Křížek Šimon"},{"$f":"IF(B35=\"\",\"\",GETPIVOTDATA(\"body\",knt_tab!$A$3,\"zavodnik\",B35))","v":43},null,92,{"$f":"IF(ISERR(GETPIVOTDATA(\"body\",knt_tab!$A$3,\"zavodnik\",knt_tab!A97)),\"\",IF(GETPIVOTDATA(\"body\",knt_tab!$A$3,\"zavodnik\",knt_tab!A97)=0,\"\",knt_tab!A97))","v":"Cagala Šimon"},{"$f":"IF(F35=\"\",\"\",GETPIVOTDATA(\"body\",knt_tab!$A$3,\"zavodnik\",F35))","v":3},null,{"$f":"IF(J35=\"\",\"\",IF(K35=K34,I34,ROW(I35)-ROW($I$33)))","v":2},{"$f":"IF(ISERR(GETPIVOTDATA(\"body\",knt_tab!$AE$3,\"zavodnik\",knt_tab!AE6)),\"\",IF(GETPIVOTDATA(\"body\",knt_tab!$AE$3,\"zavodnik\",knt_tab!AE6)=0,\"\",knt_tab!AE6))","v":"Král Jakub"},{"$f":"IF(J35=\"\",\"\",GETPIVOTDATA(\"body\",knt_tab!$AE$3,\"zavodnik\",J35))","v":47},null,7,{"$f":"IF(ISERR(GETPIVOTDATA(\"body\",knt_tab!$S$3,\"zavodnik\",knt_tab!S11)),\"\",IF(GETPIVOTDATA(\"body\",knt_tab!$S$3,\"zavodnik\",knt_tab!S11)=0,\"\",knt_tab!S11))","v":"Šmatelka Ondřej"},{"$f":"IF(N35=\"\",\"\",GETPIVOTDATA(\"body\",knt_tab!$S$3,\"zavodnik\",N35))","v":17},null,"",{"$f":"IF(ISERR(GETPIVOTDATA(\"body\",knt_tab!$J$3,\"zavodnik\",knt_tab!J10)),\"\",IF(GETPIVOTDATA(\"body\",knt_tab!$J$3,\"zavodnik\",knt_tab!J10)=0,\"\",knt_tab!J10))","v":""},{"$f":"IF(R35=\"\",\"\",GETPIVOTDATA(\"body\",knt_tab!$J$3,\"zavodnik\",R35))","v":""},null,24,{"$f":"IF(ISERR(GETPIVOTDATA(\"body\",knt_tab!$D$3,\"zavodnik\",knt_tab!D36)),\"\",IF(GETPIVOTDATA(\"body\",knt_tab!$D$3,\"zavodnik\",knt_tab!D36)=0,\"\",knt_tab!D36))","v":"Zach Matyáš"},{"$f":"IF(V35=\"\",\"\",GETPIVOTDATA(\"body\",knt_tab!$D$3,\"zavodnik\",V35))","v":1}]
[33,{"$f":"IF(ISERR(GETPIVOTDATA(\"body\",knt_tab!$A$3,\"zavodnik\",knt_tab!A37)),\"\",IF(GETPIVOTDATA(\"body\",knt_tab!$A$3,\"zavodnik\",knt_tab!A37)=0,\"\",knt_tab!A37))","v":"Huvar Jakub"},{"$f":"IF(B36=\"\",\"\",GETPIVOTDATA(\"body\",knt_tab!$A$3,\"zavodnik\",B36))","v":38},null,94,{"$f":"IF(ISERR(GETPIVOTDATA(\"body\",knt_tab!$A$3,\"zavodnik\",knt_tab!A98)),\"\",IF(GETPIVOTDATA(\"body\",knt_tab!$A$3,\"zavodnik\",knt_tab!A98)=0,\"\",knt_tab!A98))","v":"Křenek Jakub"},{"$f":"IF(F36=\"\",\"\",GETPIVOTDATA(\"body\",knt_tab!$A$3,\"zavodnik\",F36))","v":2},null,3,{"$f":"IF(ISERR(GETPIVOTDATA(\"body\",knt_tab!$AE$3,\"zavodnik\",knt_tab!AE7)),\"\",IF(GETPIVOTDATA(\"body\",knt_tab!$AE$3,\"zavodnik\",knt_tab!AE7)=0,\"\",knt_tab!AE7))","v":"Kohn Tomáš"},{"$f":"IF(J36=\"\",\"\",GETPIVOTDATA(\"body\",knt_tab!$AE$3,\"zavodnik\",J36))","v":45},null,8,{"$f":"IF(ISERR(GETPIVOTDATA(\"body\",knt_tab!$S$3,\"zavodnik\",knt_tab!S12)),\"\",IF(GETPIVOTDATA(\"body\",knt_tab!$S$3,\"zavodnik\",knt_tab!S12)=0,\"\",knt_tab!S12))","v":"Pupakis Sotirios"},{"$f":"IF(N36=\"\",\"\",GETPIVOTDATA(\"body\",knt_tab!$S$3,\"zavodnik\",N36))","v":7},null,"",{"$f":"IF(ISERR(GETPIVOTDATA(\"body\",knt_tab!$J$3,\"zavodnik\",knt_tab!J11)),\"\",IF(GETPIVOTDATA(\"body\",knt_tab!$J$3,\"zavodnik\",knt_tab!J11)=0,\"\",knt_tab!J11))","v":""},{"$f":"IF(R36=\"\",\"\",GETPIVOTDATA(\"body\",knt_tab!$J$3,\"zavodnik\",R36))","v":""},null,"",{"$f":"IF(ISERR(GETPIVOTDATA(\"body\",knt_tab!$D$3,\"zavodnik\",knt_tab!D37)),\"\",IF(GETPIVOTDATA(\"body\",knt_tab!$D$3,\"zavodnik\",knt_tab!D37)=0,\"\",knt_tab!D37))","v":""},{"$f":"IF(V36=\"\",\"\",GETPIVOTDATA(\"body\",knt_tab!$D$3,\"zavodnik\",V36))","v":""}]
[33,{"$f":"IF(ISERR(GETPIVOTDATA(\"body\",knt_tab!$A$3,\"zavodnik\",knt_tab!A38)),\"\",IF(GETPIVOTDATA(\"body\",knt_tab!$A$3,\"zavodnik\",knt_tab!A38)=0,\"\",knt_tab!A38))","v":"Franek Adam"},{"$f":"IF(B37=\"\",\"\",GETPIVOTDATA(\"body\",knt_tab!$A$3,\"zavodnik\",B37))","v":38},null,94,{"$f":"IF(ISERR(GETPIVOTDATA(\"body\",knt_tab!$A$3,\"zavodnik\",knt_tab!A99)),\"\",IF(GETPIVOTDATA(\"body\",knt_tab!$A$3,\"zavodnik\",knt_tab!A99)=0,\"\",knt_tab!A99))","v":"Rovenský Ondřej"},{"$f":"IF(F37=\"\",\"\",GETPIVOTDATA(\"body\",knt_tab!$A$3,\"zavodnik\",F37))","v":2},null,4,{"$f":"IF(ISERR(GETPIVOTDATA(\"body\",knt_tab!$AE$3,\"zavodnik\",knt_tab!AE8)),\"\",IF(GETPIVOTDATA(\"body\",knt_tab!$AE$3,\"zavodnik\",knt_tab!AE8)=0,\"\",knt_tab!AE8))","v":"Selecký Lukáš"},{"$f":"IF(J37=\"\",\"\",GETPIVOTDATA(\"body\",knt_tab!$AE$3,\"zavodnik\",J37))","v":39},null,9,{"$f":"IF(ISERR(GETPIVOTDATA(\"body\",knt_tab!$S$3,\"zavodnik\",knt_tab!S13)),\"\",IF(GETPIVOTDATA(\"body\",knt_tab!$S$3,\"zavodnik\",knt_tab!S13)=0,\"\",knt_tab!S13))","v":"Koval Nikolas"},{"$f":"IF(N37=\"\",\"\",GETPIVOTDATA(\"body\",knt_tab!$S$3,\"zavodnik\",N37))","v":5},null,"",{"$f":"IF(ISERR(GETPIVOTDATA(\"body\",knt_tab!$J$3,\"zavodnik\",knt_tab!J12)),\"\",IF(GETPIVOTDATA(\"body\",knt_tab!$J$3,\"zavodnik\",knt_tab!J12)=0,\"\",knt_tab!J12))","v":""},{"$f":"IF(R37=\"\",\"\",GETPIVOTDATA(\"body\",knt_tab!$J$3,\"zavodnik\",R37))","v":""},null,"",{"$f":"IF(ISERR(GETPIVOTDATA(\"body\",knt_tab!$D$3,\"zavodnik\",knt_tab!D38)),\"\",IF(GETPIVOTDATA(\"body\",knt_tab!$D$3,\"zavodnik\",knt_tab!D38)=0,\"\",knt_tab!D38))","v":""},{"$f":"IF(V37=\"\",\"\",GETPIVOTDATA(\"body\",knt_tab!$D$3,\"zavodnik\",V37))","v":""}]
[35,{"$f":"IF(ISERR(GETPIVOTDATA(\"body\",knt_tab!$A$3,\"zavodnik\",knt_tab!A39)),\"\",IF(GETPIVOTDATA(\"body\",knt_tab!$A$3,\"zavodnik\",knt_tab!A39)=0,\"\",knt_tab!A39))","v":"Kuncová Viktorie"},{"$f":"IF(B38=\"\",\"\",GETPIVOTDATA(\"body\",knt_tab!$A$3,\"zavodnik\",B38))","v":34},null,96,{"$f":"IF(ISERR(GETPIVOTDATA(\"body\",knt_tab!$A$3,\"zavodnik\",knt_tab!A100)),\"\",IF(GETPIVOTDATA(\"body\",knt_tab!$A$3,\"zavodnik\",knt_tab!A100)=0,\"\",knt_tab!A100))","v":"Novotný Kryštof"},{"$f":"IF(F38=\"\",\"\",GETPIVOTDATA(\"body\",knt_tab!$A$3,\"zavodnik\",F38))","v":1},null,5,{"$f":"IF(ISERR(GETPIVOTDATA(\"body\",knt_tab!$AE$3,\"zavodnik\",knt_tab!AE9)),\"\",IF(GETPIVOTDATA(\"body\",knt_tab!$AE$3,\"zavodnik\",knt_tab!AE9)=0,\"\",knt_tab!AE9))","v":"Svoboda Jiří"},{"$f":"IF(J38=\"\",\"\",GETPIVOTDATA(\"body\",knt_tab!$AE$3,\"zavodnik\",J38))","v":37},null,10,{"$f":"IF(ISERR(GETPIVOTDATA(\"body\",knt_tab!$S$3,\"zavodnik\",knt_tab!S14)),\"\",IF(GETPIVOTDATA(\"body\",knt_tab!$S$3,\"zavodnik\",knt_tab!S14)=0,\"\",knt_tab!S14))","v":"Rovenský Ondřej"},{"$f":"IF(N38=\"\",\"\",GETPIVOTDATA(\"body\",knt_tab!$S$3,\"zavodnik\",N38))","v":2},null,"",{"$f":"IF(ISERR(GETPIVOTDATA(\"body\",knt_tab!$J$3,\"zavodnik\",knt_tab!J13)),\"\",IF(GETPIVOTDATA(\"body\",knt_tab!$J$3,\"zavodnik\",knt_tab!J13)=0,\"\",knt_tab!J13))","v":""},{"$f":"IF(R38=\"\",\"\",GETPIVOTDATA(\"body\",knt_tab!$J$3,\"zavodnik\",R38))","v":""},null,"",{"$f":"IF(ISERR(GETPIVOTDATA(\"body\",knt_tab!$D$3,\"zavodnik\",knt_tab!D39)),\"\",IF(GETPIVOTDATA(\"body\",knt_tab!$D$3,\"zavodnik\",knt_tab!D39)=0,\"\",knt_tab!D39))","v":""},{"$f":"IF(V38=\"\",\"\",GETPIVOTDATA(\"body\",knt_tab!$D$3,\"zavodnik\",V38))","v":""}]
[35,{"$f":"IF(ISERR(GETPIVOTDATA(\"body\",knt_tab!$A$3,\"zavodnik\",knt_tab!A40)),\"\",IF(GETPIVOTDATA(\"body\",knt_tab!$A$3,\"zavodnik\",knt_tab!A40)=0,\"\",knt_tab!A40))","v":"Papavasilevský Marek"},{"$f":"IF(B39=\"\",\"\",GETPIVOTDATA(\"body\",knt_tab!$A$3,\"zavodnik\",B39))","v":34},null,96,{"$f":"IF(ISERR(GETPIVOTDATA(\"body\",knt_tab!$A$3,\"zavodnik\",knt_tab!A101)),\"\",IF(GETPIVOTDATA(\"body\",knt_tab!$A$3,\"zavodnik\",knt_tab!A101)=0,\"\",knt_tab!A101))","v":"Rajna Alexandr"},{"$f":"IF(F39=\"\",\"\",GETPIVOTDATA(\"body\",knt_tab!$A$3,\"zavodnik\",F39))","v":1},null,6,{"$f":"IF(ISERR(GETPIVOTDATA(\"body\",knt_tab!$AE$3,\"zavodnik\",knt_tab!AE10)),\"\",IF(GETPIVOTDATA(\"body\",knt_tab!$AE$3,\"zavodnik\",knt_tab!AE10)=0,\"\",knt_tab!AE10))","v":"Šeděnka Richard"},{"$f":"IF(J39=\"\",\"\",GETPIVOTDATA(\"body\",knt_tab!$AE$3,\"zavodnik\",J39))","v":31},null,11,{"$f":"IF(ISERR(GETPIVOTDATA(\"body\",knt_tab!$S$3,\"zavodnik\",knt_tab!S15)),\"\",IF(GETPIVOTDATA(\"body\",knt_tab!$S$3,\"zavodnik\",knt_tab!S15)=0,\"\",knt_tab!S15))","v":"Janík Tadeáš"},{"$f":"IF(N39=\"\",\"\",GETPIVOTDATA(\"body\",knt_tab!$S$3,\"zavodnik\",N39))","v":1},null,null,null,null,null,"",{"$f":"IF(ISERR(GETPIVOTDATA(\"body\",knt_tab!$D$3,\"zavodnik\",knt_tab!D40)),\"\",IF(GETPIVOTDATA(\"body\",knt_tab!$D$3,\"zavodnik\",knt_tab!D40)=0,\"\",knt_tab!D40))","v":""},{"$f":"IF(V39=\"\",\"\",GETPIVOTDATA(\"body\",knt_tab!$D$3,\"zavodnik\",V39))","v":""}]
[37,{"$f":"IF(ISERR(GETPIVOTDATA(\"body\",knt_tab!$A$3,\"zavodnik\",knt_tab!A41)),\"\",IF(GETPIVOTDATA(\"body\",knt_tab!$A$3,\"zavodnik\",knt_tab!A41)=0,\"\",knt_tab!A41))","v":"Škurlová Lada"},{"$f":"IF(B40=\"\",\"\",GETPIVOTDATA(\"body\",knt_tab!$A$3,\"zavodnik\",B40))","v":32},null,96,{"$f":"IF(ISERR(GETPIVOTDATA(\"body\",knt_tab!$A$3,\"zavodnik\",knt_tab!A102)),\"\",IF(GETPIVOTDATA(\"body\",knt_tab!$A$3,\"zavodnik\",knt_tab!A102)=0,\"\",knt_tab!A102))","v":"Janík Tadeáš"},{"$f":"IF(F40=\"\",\"\",GETPIVOTDATA(\"body\",knt_tab!$A$3,\"zavodnik\",F40))","v":1},null,7,{"$f":"IF(ISERR(GETPIVOTDATA(\"body\",knt_tab!$AE$3,\"zavodnik\",knt_tab!AE11)),\"\",IF(GETPIVOTDATA(\"body\",knt_tab!$AE$3,\"zavodnik\",knt_tab!AE11)=0,\"\",knt_tab!AE11))","v":"Kohn Pavel"},{"$f":"IF(J40=\"\",\"\",GETPIVOTDATA(\"body\",knt_tab!$AE$3,\"zavodnik\",J40))","v":29},null,"",{"$f":"IF(ISERR(GETPIVOTDATA(\"body\",knt_tab!$S$3,\"zavodnik\",knt_tab!S16)),\"\",IF(GETPIVOTDATA(\"body\",knt_tab!$S$3,\"zavodnik\",knt_tab!S16)=0,\"\",knt_tab!S16))","v":""},{"$f":"IF(N40=\"\",\"\",GETPIVOTDATA(\"body\",knt_tab!$S$3,\"zavodnik\",N40))","v":""},null,"mladší žáci",null,null,null,"",{"$f":"IF(ISERR(GETPIVOTDATA(\"body\",knt_tab!$D$3,\"zavodnik\",knt_tab!D41)),\"\",IF(GETPIVOTDATA(\"body\",knt_tab!$D$3,\"zavodnik\",knt_tab!D41)=0,\"\",knt_tab!D41))","v":""},{"$f":"IF(V40=\"\",\"\",GETPIVOTDATA(\"body\",knt_tab!$D$3,\"zavodnik\",V40))","v":""}]
[38,{"$f":"IF(ISERR(GETPIVOTDATA(\"body\",knt_tab!$A$3,\"zavodnik\",knt_tab!A42)),\"\",IF(GETPIVOTDATA(\"body\",knt_tab!$A$3,\"zavodnik\",knt_tab!A42)=0,\"\",knt_tab!A42))","v":"Šeděnka Richard"},{"$f":"IF(B41=\"\",\"\",GETPIVOTDATA(\"body\",knt_tab!$A$3,\"zavodnik\",B41))","v":31},null,96,{"$f":"IF(ISERR(GETPIVOTDATA(\"body\",knt_tab!$A$3,\"zavodnik\",knt_tab!A103)),\"\",IF(GETPIVOTDATA(\"body\",knt_tab!$A$3,\"zavodnik\",knt_tab!A103)=0,\"\",knt_tab!A103))","v":"Válek Matěj"},{"$f":"IF(F41=\"\",\"\",GETPIVOTDATA(\"body\",knt_tab!$A$3,\"zavodnik\",F41))","v":1},null,8,{"$f":"IF(ISERR(GETPIVOTDATA(\"body\",knt_tab!$AE$3,\"zavodnik\",knt_tab!AE12)),\"\",IF(GETPIVOTDATA(\"body\",knt_tab!$AE$3,\"zavodnik\",knt_tab!AE12)=0,\"\",knt_tab!AE12))","v":"Martínek Roman"},{"$f":"IF(J41=\"\",\"\",GETPIVOTDATA(\"body\",knt_tab!$AE$3,\"zavodnik\",J41))","v":20},null,"",{"$f":"IF(ISERR(GETPIVOTDATA(\"body\",knt_tab!$S$3,\"zavodnik\",knt_tab!S17)),\"\",IF(GETPIVOTDATA(\"body\",knt_tab!$S$3,\"zavodnik\",knt_tab!S17)=0,\"\",knt_tab!S17))","v":""},{"$f":"IF(N41=\"\",\"\",GETPIVOTDATA(\"body\",knt_tab!$S$3,\"zavodnik\",N41))","v":""},null,"Pořadí","Příjmení","body",null,"",{"$f":"IF(ISERR(GETPIVOTDATA(\"body\",knt_tab!$D$3,\"zavodnik\",knt_tab!D42)),\"\",IF(GETPIVOTDATA(\"body\",knt_tab!$D$3,\"zavodnik\",knt_tab!D42)=0,\"\",knt_tab!D42))","v":""},{"$f":"IF(V41=\"\",\"\",GETPIVOTDATA(\"body\",knt_tab!$D$3,\"zavodnik\",V41))","v":""}]
[38,{"$f":"IF(ISERR(GETPIVOTDATA(\"body\",knt_tab!$A$3,\"zavodnik\",knt_tab!A43)),\"\",IF(GETPIVOTDATA(\"body\",knt_tab!$A$3,\"zavodnik\",knt_tab!A43)=0,\"\",knt_tab!A43))","v":"Král Miroslav"},{"$f":"IF(B42=\"\",\"\",GETPIVOTDATA(\"body\",knt_tab!$A$3,\"zavodnik\",B42))","v":31},null,96,{"$f":"IF(ISERR(GETPIVOTDATA(\"body\",knt_tab!$A$3,\"zavodnik\",knt_tab!A104)),\"\",IF(GETPIVOTDATA(\"body\",knt_tab!$A$3,\"zavodnik\",knt_tab!A104)=0,\"\",knt_tab!A104))","v":"Matýsek Jan"},{"$f":"IF(F42=\"\",\"\",GETPIVOTDATA(\"body\",knt_tab!$A$3,\"zavodnik\",F42))","v":1},null,9,{"$f":"IF(ISERR(GETPIVOTDATA(\"body\",knt_tab!$AE$3,\"zavodnik\",knt_tab!AE13)),\"\",IF(GETPIVOTDATA(\"body\",knt_tab!$AE$3,\"zavodnik\",knt_tab!AE13)=0,\"\",knt_tab!AE13))","v":"Otto Matyáš"},{"$f":"IF(J42=\"\",\"\",GETPIVOTDATA(\"body\",knt_tab!$AE$3,\"zavodnik\",J42))","v":19},null,"",{"$f":"IF(ISERR(GETPIVOTDATA(\"body\",knt_tab!$S$3,\"zavodnik\",knt_tab!S18)),\"\",IF(GETPIVOTDATA(\"body\",knt_tab!$S$3,\"zavodnik\",knt_tab!S18)=0,\"\",knt_tab!S18))","v":""},{"$f":"IF(N42=\"\",\"\",GETPIVOTDATA(\"body\",knt_tab!$S$3,\"zavodnik\",N42))","v":""},null,1,{"$f":"IF(ISERR(GETPIVOTDATA(\"body\",knt_tab!$G$3,\"zavodnik\",knt_tab!G5)),\"\",IF(GETPIVOTDATA(\"body\",knt_tab!$G$3,\"zavodnik\",knt_tab!G5)=0,\"\",knt_tab!G5))","v":"Tycar Štěpán"},{"$f":"IF(R42=\"\",\"\",GETPIVOTDATA(\"body\",knt_tab!$G$3,\"zavodnik\",R42))","v":100},null,"",{"$f":"IF(ISERR(GETPIVOTDATA(\"body\",knt_tab!$D$3,\"zavodnik\",knt_tab!D43)),\"\",IF(GETPIVOTDATA(\"body\",knt_tab!$D$3,\"zavodnik\",knt_tab!D43)=0,\"\",knt_tab!D43))","v":""},{"$f":"IF(V42=\"\",\"\",GETPIVOTDATA(\"body\",knt_tab!$D$3,\"zavodnik\",V42))","v":""}]
[38,{"$f":"IF(ISERR(GETPIVOTDATA(\"body\",knt_tab!$A$3,\"zavodnik\",knt_tab!A44)),\"\",IF(GETPIVOTDATA(\"body\",knt_tab!$A$3,\"zavodnik\",knt_tab!A44)=0,\"\",knt_tab!A44))","v":"Mikendová Tereza"},{"$f":"IF(B43=\"\",\"\",GETPIVOTDATA(\"body\",knt_tab!$A$3,\"zavodnik\",B43))","v":31},null,96,{"$f":"IF(ISERR(GETPIVOTDATA(\"body\",knt_tab!$A$3,\"zavodnik\",knt_tab!A105)),\"\",IF(GETPIVOTDATA(\"body\",knt_tab!$A$3,\"zavodnik\",knt_tab!A105)=0,\"\",knt_tab!A105))","v":"Kolář Vojtěch"},{"$f":"IF(F43=\"\",\"\",GETPIVOTDATA(\"body\",knt_tab!$A$3,\"zavodnik\",F43))","v":1},null,10,{"$f":"IF(ISERR(GETPIVOTDATA(\"body\",knt_tab!$AE$3,\"zavodnik\",knt_tab!AE14)),\"\",IF(GETPIVOTDATA(\"body\",knt_tab!$AE$3,\"zavodnik\",knt_tab!AE14)=0,\"\",knt_tab!AE14))","v":"Ochman Marek"},{"$f":"IF(J43=\"\",\"\",GETPIVOTDATA(\"body\",knt_tab!$AE$3,\"zavodnik\",J43))","v":14},null,"",{"$f":"IF(ISERR(GETPIVOTDATA(\"body\",knt_tab!$S$3,\"zavodnik\",knt_tab!S19)),\"\",IF(GETPIVOTDATA(\"body\",knt_tab!$S$3,\"zavodnik\",knt_tab!S19)=0,\"\",knt_tab!S19))","v":""},{"$f":"IF(N43=\"\",\"\",GETPIVOTDATA(\"body\",knt_tab!$S$3,\"zavodnik\",N43))","v":""},null,{"$f":"IF(R43=\"\",\"\",IF(S43=S42,Q42,ROW(Q43)-ROW($Q$41)))","v":2},{"$f":"IF(ISERR(GETPIVOTDATA(\"body\",knt_tab!$G$3,\"zavodnik\",knt_tab!G6)),\"\",IF(GETPIVOTDATA(\"body\",knt_tab!$G$3,\"zavodnik\",knt_tab!G6)=0,\"\",knt_tab!G6))","v":"Kunc Matěj"},{"$f":"IF(R43=\"\",\"\",GETPIVOTDATA(\"body\",knt_tab!$G$3,\"zavodnik\",R43))","v":91},null,"",{"$f":"IF(ISERR(GETPIVOTDATA(\"body\",knt_tab!$D$3,\"zavodnik\",knt_tab!D44)),\"\",IF(GETPIVOTDATA(\"body\",knt_tab!$D$3,\"zavodnik\",knt_tab!D44)=0,\"\",knt_tab!D44))","v":""},{"$f":"IF(V43=\"\",\"\",GETPIVOTDATA(\"body\",knt_tab!$D$3,\"zavodnik\",V43))","v":""}]
[41,{"$f":"IF(ISERR(GETPIVOTDATA(\"body\",knt_tab!$A$3,\"zavodnik\",knt_tab!A45)),\"\",IF(GETPIVOTDATA(\"body\",knt_tab!$A$3,\"zavodnik\",knt_tab!A45)=0,\"\",knt_tab!A45))","v":"Schöffer Radim"},{"$f":"IF(B44=\"\",\"\",GETPIVOTDATA(\"body\",knt_tab!$A$3,\"zavodnik\",B44))","v":30},null,96,{"$f":"IF(ISERR(GETPIVOTDATA(\"body\",knt_tab!$A$3,\"zavodnik\",knt_tab!A106)),\"\",IF(GETPIVOTDATA(\"body\",knt_tab!$A$3,\"zavodnik\",knt_tab!A106)=0,\"\",knt_tab!A106))","v":"Buranyč Filip"},{"$f":"IF(F44=\"\",\"\",GETPIVOTDATA(\"body\",knt_tab!$A$3,\"zavodnik\",F44))","v":1},null,11,{"$f":"IF(ISERR(GETPIVOTDATA(\"body\",knt_tab!$AE$3,\"zavodnik\",knt_tab!AE15)),\"\",IF(GETPIVOTDATA(\"body\",knt_tab!$AE$3,\"zavodnik\",knt_tab!AE15)=0,\"\",knt_tab!AE15))","v":"Koza Dušan"},{"$f":"IF(J44=\"\",\"\",GETPIVOTDATA(\"body\",knt_tab!$AE$3,\"zavodnik\",J44))","v":13},null,"",{"$f":"IF(ISERR(GETPIVOTDATA(\"body\",knt_tab!$S$3,\"zavodnik\",knt_tab!S20)),\"\",IF(GETPIVOTDATA(\"body\",knt_tab!$S$3,\"zavodnik\",knt_tab!S20)=0,\"\",knt_tab!S20))","v":""},{"$f":"IF(N44=\"\",\"\",GETPIVOTDATA(\"body\",knt_tab!$S$3,\"zavodnik\",N44))","v":""},null,3,{"$f":"IF(ISERR(GETPIVOTDATA(\"body\",knt_tab!$G$3,\"zavodnik\",knt_tab!G7)),\"\",IF(GETPIVOTDATA(\"body\",knt_tab!$G$3,\"zavodnik\",knt_tab!G7)=0,\"\",knt_tab!G7))","v":"Bulka Vojtěch"},{"$f":"IF(R44=\"\",\"\",GETPIVOTDATA(\"body\",knt_tab!$G$3,\"zavodnik\",R44))","v":85},null,"",{"$f":"IF(ISERR(GETPIVOTDATA(\"body\",knt_tab!$D$3,\"zavodnik\",knt_tab!D45)),\"\",IF(GETPIVOTDATA(\"body\",knt_tab!$D$3,\"zavodnik\",knt_tab!D45)=0,\"\",knt_tab!D45))","v":""},{"$f":"IF(V44=\"\",\"\",GETPIVOTDATA(\"body\",knt_tab!$D$3,\"zavodnik\",V44))","v":""}]
[42,{"$f":"IF(ISERR(GETPIVOTDATA(\"body\",knt_tab!$A$3,\"zavodnik\",knt_tab!A46)),\"\",IF(GETPIVOTDATA(\"body\",knt_tab!$A$3,\"zavodnik\",knt_tab!A46)=0,\"\",knt_tab!A46))","v":"Pelikán Dominik"},{"$f":"IF(B45=\"\",\"\",GETPIVOTDATA(\"body\",knt_tab!$A$3,\"zavodnik\",B45))","v":29},null,96,{"$f":"IF(ISERR(GETPIVOTDATA(\"body\",knt_tab!$A$3,\"zavodnik\",knt_tab!A107)),\"\",IF(GETPIVOTDATA(\"body\",knt_tab!$A$3,\"zavodnik\",knt_tab!A107)=0,\"\",knt_tab!A107))","v":"Zach Matyáš"},{"$f":"IF(F45=\"\",\"\",GETPIVOTDATA(\"body\",knt_tab!$A$3,\"zavodnik\",F45))","v":1},null,12,{"$f":"IF(ISERR(GETPIVOTDATA(\"body\",knt_tab!$AE$3,\"zavodnik\",knt_tab!AE16)),\"\",IF(GETPIVOTDATA(\"body\",knt_tab!$AE$3,\"zavodnik\",knt_tab!AE16)=0,\"\",knt_tab!AE16))","v":"Pustějovský Tomáš"},{"$f":"IF(J45=\"\",\"\",GETPIVOTDATA(\"body\",knt_tab!$AE$3,\"zavodnik\",J45))","v":12},null,"",{"$f":"IF(ISERR(GETPIVOTDATA(\"body\",knt_tab!$S$3,\"zavodnik\",knt_tab!S21)),\"\",IF(GETPIVOTDATA(\"body\",knt_tab!$S$3,\"zavodnik\",knt_tab!S21)=0,\"\",knt_tab!S21))","v":""},{"$f":"IF(N45=\"\",\"\",GETPIVOTDATA(\"body\",knt_tab!$S$3,\"zavodnik\",N45))","v":""},null,4,{"$f":"IF(ISERR(GETPIVOTDATA(\"body\",knt_tab!$G$3,\"zavodnik\",knt_tab!G8)),\"\",IF(GETPIVOTDATA(\"body\",knt_tab!$G$3,\"zavodnik\",knt_tab!G8)=0,\"\",knt_tab!G8))","v":"Meixner Tomáš"},{"$f":"IF(R45=\"\",\"\",GETPIVOTDATA(\"body\",knt_tab!$G$3,\"zavodnik\",R45))","v":83},null,"",{"$f":"IF(ISERR(GETPIVOTDATA(\"body\",knt_tab!$D$3,\"zavodnik\",knt_tab!D46)),\"\",IF(GETPIVOTDATA(\"body\",knt_tab!$D$3,\"zavodnik\",knt_tab!D46)=0,\"\",knt_tab!D46))","v":""},{"$f":"IF(V45=\"\",\"\",GETPIVOTDATA(\"body\",knt_tab!$D$3,\"zavodnik\",V45))","v":""}]
[42,{"$f":"IF(ISERR(GETPIVOTDATA(\"body\",knt_tab!$A$3,\"zavodnik\",knt_tab!A47)),\"\",IF(GETPIVOTDATA(\"body\",knt_tab!$A$3,\"zavodnik\",knt_tab!A47)=0,\"\",knt_tab!A47))","v":"Kohn Pavel"},{"$f":"IF(B46=\"\",\"\",GETPIVOTDATA(\"body\",knt_tab!$A$3,\"zavodnik\",B46))","v":29},null,96,{"$f":"IF(ISERR(GETPIVOTDATA(\"body\",knt_tab!$A$3,\"zavodnik\",knt_tab!A108)),\"\",IF(GETPIVOTDATA(\"body\",knt_tab!$A$3,\"zavodnik\",knt_tab!A108)=0,\"\",knt_tab!A108))","v":"Papaj Tobiáš"},{"$f":"IF(F46=\"\",\"\",GETPIVOTDATA(\"body\",knt_tab!$A$3,\"zavodnik\",F46))","v":1},null,13,{"$f":"IF(ISERR(GETPIVOTDATA(\"body\",knt_tab!$AE$3,\"zavodnik\",knt_tab!AE17)),\"\",IF(GETPIVOTDATA(\"body\",knt_tab!$AE$3,\"zavodnik\",knt_tab!AE17)=0,\"\",knt_tab!AE17))","v":"Šmehlík František"},{"$f":"IF(J46=\"\",\"\",GETPIVOTDATA(\"body\",knt_tab!$AE$3,\"zavodnik\",J46))","v":11},null,"",{"$f":"IF(ISERR(GETPIVOTDATA(\"body\",knt_tab!$S$3,\"zavodnik\",knt_tab!S22)),\"\",IF(GETPIVOTDATA(\"body\",knt_tab!$S$3,\"zavodnik\",knt_tab!S22)=0,\"\",knt_tab!S22))","v":""},{"$f":"IF(N46=\"\",\"\",GETPIVOTDATA(\"body\",knt_tab!$S$3,\"zavodnik\",N46))","v":""},null,5,{"$f":"IF(ISERR(GETPIVOTDATA(\"body\",knt_tab!$G$3,\"zavodnik\",knt_tab!G9)),\"\",IF(GETPIVOTDATA(\"body\",knt_tab!$G$3,\"zavodnik\",knt_tab!G9)=0,\"\",knt_tab!G9))","v":"Malaczynski Filip"},{"$f":"IF(R46=\"\",\"\",GETPIVOTDATA(\"body\",knt_tab!$G$3,\"zavodnik\",R46))","v":58},null,"",{"$f":"IF(ISERR(GETPIVOTDATA(\"body\",knt_tab!$D$3,\"zavodnik\",knt_tab!D47)),\"\",IF(GETPIVOTDATA(\"body\",knt_tab!$D$3,\"zavodnik\",knt_tab!D47)=0,\"\",knt_tab!D47))","v":""},{"$f":"IF(V46=\"\",\"\",GETPIVOTDATA(\"body\",knt_tab!$D$3,\"zavodnik\",V46))","v":""}]
[44,{"$f":"IF(ISERR(GETPIVOTDATA(\"body\",knt_tab!$A$3,\"zavodnik\",knt_tab!A48)),\"\",IF(GETPIVOTDATA(\"body\",knt_tab!$A$3,\"zavodnik\",knt_tab!A48)=0,\"\",knt_tab!A48))","v":"Brzusková Marie"},{"$f":"IF(B47=\"\",\"\",GETPIVOTDATA(\"body\",knt_tab!$A$3,\"zavodnik\",B47))","v":28},null,96,{"$f":"IF(ISERR(GETPIVOTDATA(\"body\",knt_tab!$A$3,\"zavodnik\",knt_tab!A109)),\"\",IF(GETPIVOTDATA(\"body\",knt_tab!$A$3,\"zavodnik\",knt_tab!A109)=0,\"\",knt_tab!A109))","v":"Kožušník Vojtěch"},{"$f":"IF(F47=\"\",\"\",GETPIVOTDATA(\"body\",knt_tab!$A$3,\"zavodnik\",F47))","v":1},null,14,{"$f":"IF(ISERR(GETPIVOTDATA(\"body\",knt_tab!$AE$3,\"zavodnik\",knt_tab!AE18)),\"\",IF(GETPIVOTDATA(\"body\",knt_tab!$AE$3,\"zavodnik\",knt_tab!AE18)=0,\"\",knt_tab!AE18))","v":"Pátek Jan"},{"$f":"IF(J47=\"\",\"\",GETPIVOTDATA(\"body\",knt_tab!$AE$3,\"zavodnik\",J47))","v":10},null,"",{"$f":"IF(ISERR(GETPIVOTDATA(\"body\",knt_tab!$S$3,\"zavodnik\",knt_tab!S23)),\"\",IF(GETPIVOTDATA(\"body\",knt_tab!$S$3,\"zavodnik\",knt_tab!S23)=0,\"\",knt_tab!S23))","v":""},{"$f":"IF(N47=\"\",\"\",GETPIVOTDATA(\"body\",knt_tab!$S$3,\"zavodnik\",N47))","v":""},null,6,{"$f":"IF(ISERR(GETPIVOTDATA(\"body\",knt_tab!$G$3,\"zavodnik\",knt_tab!G10)),\"\",IF(GETPIVOTDATA(\"body\",knt_tab!$G$3,\"zavodnik\",knt_tab!G10)=0,\"\",knt_tab!G10))","v":"Motyka Dominik"},{"$f":"IF(R47=\"\",\"\",GETPIVOTDATA(\"body\",knt_tab!$G$3,\"zavodnik\",R47))","v":51},null,"",{"$f":"IF(ISERR(GETPIVOTDATA(\"body\",knt_tab!$D$3,\"zavodnik\",knt_tab!D48)),\"\",IF(GETPIVOTDATA(\"body\",knt_tab!$D$3,\"zavodnik\",knt_tab!D48)=0,\"\",knt_tab!D48))","v":""},{"$f":"IF(V47=\"\",\"\",GETPIVOTDATA(\"body\",knt_tab!$D$3,\"zavodnik\",V47))","v":""}]
[{"$f":"IF(B48=\"\",\"\",IF(C48=C47,A47,ROW(A48)-ROW($A$3)))","v":45},{"$f":"IF(ISERR(GETPIVOTDATA(\"body\",knt_tab!$A$3,\"zavodnik\",knt_tab!A49)),\"\",IF(GETPIVOTDATA(\"body\",knt_tab!$A$3,\"zavodnik\",knt_tab!A49)=0,\"\",knt_tab!A49))","v":"Meixner Michal"},{"$f":"IF(B48=\"\",\"\",GETPIVOTDATA(\"body\",knt_tab!$A$3,\"zavodnik\",B48))","v":27},null,"",{"$f":"IF(ISERR(GETPIVOTDATA(\"body\",knt_tab!$A$3,\"zavodnik\",knt_tab!A110)),\"\",IF(GETPIVOTDATA(\"body\",knt_tab!$A$3,\"zavodnik\",knt_tab!A110)=0,\"\",knt_tab!A110))","v":""},{"$f":"IF(F48=\"\",\"\",GETPIVOTDATA(\"body\",knt_tab!$A$3,\"zavodnik\",F48))","v":""},null,14,{"$f":"IF(ISERR(GETPIVOTDATA(\"body\",knt_tab!$AE$3,\"zavodnik\",knt_tab!AE19)),\"\",IF(GETPIVOTDATA(\"body\",knt_tab!$AE$3,\"zavodnik\",knt_tab!AE19)=0,\"\",knt_tab!AE19))","v":"Novák Pavel"},{"$f":"IF(J48=\"\",\"\",GETPIVOTDATA(\"body\",knt_tab!$AE$3,\"zavodnik\",J48))","v":10},null,"",{"$f":"IF(ISERR(GETPIVOTDATA(\"body\",knt_tab!$S$3,\"zavodnik\",knt_tab!S24)),\"\",IF(GETPIVOTDATA(\"body\",knt_tab!$S$3,\"zavodnik\",knt_tab!S24)=0,\"\",knt_tab!S24))","v":""},{"$f":"IF(N48=\"\",\"\",GETPIVOTDATA(\"body\",knt_tab!$S$3,\"zavodnik\",N48))","v":""},null,7,{"$f":"IF(ISERR(GETPIVOTDATA(\"body\",knt_tab!$G$3,\"zavodnik\",knt_tab!G11)),\"\",IF(GETPIVOTDATA(\"body\",knt_tab!$G$3,\"zavodnik\",knt_tab!G11)=0,\"\",knt_tab!G11))","v":"Křížek Šimon"},{"$f":"IF(R48=\"\",\"\",GETPIVOTDATA(\"body\",knt_tab!$G$3,\"zavodnik\",R48))","v":43},null,"",{"$f":"IF(ISERR(GETPIVOTDATA(\"body\",knt_tab!$D$3,\"zavodnik\",knt_tab!D49)),\"\",IF(GETPIVOTDATA(\"body\",knt_tab!$D$3,\"zavodnik\",knt_tab!D49)=0,\"\",knt_tab!D49))","v":""},{"$f":"IF(V48=\"\",\"\",GETPIVOTDATA(\"body\",knt_tab!$D$3,\"zavodnik\",V48))","v":""}]
[46,{"$f":"IF(ISERR(GETPIVOTDATA(\"body\",knt_tab!$A$3,\"zavodnik\",knt_tab!A50)),\"\",IF(GETPIVOTDATA(\"body\",knt_tab!$A$3,\"zavodnik\",knt_tab!A50)=0,\"\",knt_tab!A50))","v":"Kocman Petr"},{"$f":"IF(B49=\"\",\"\",GETPIVOTDATA(\"body\",knt_tab!$A$3,\"zavodnik\",B49))","v":26},null,"",{"$f":"IF(ISERR(GETPIVOTDATA(\"body\",knt_tab!$A$3,\"zavodnik\",knt_tab!A111)),\"\",IF(GETPIVOTDATA(\"body\",knt_tab!$A$3,\"zavodnik\",knt_tab!A111)=0,\"\",knt_tab!A111))","v":""},{"$f":"IF(F49=\"\",\"\",GETPIVOTDATA(\"body\",knt_tab!$A$3,\"zavodnik\",F49))","v":""},null,14,{"$f":"IF(ISERR(GETPIVOTDATA(\"body\",knt_tab!$AE$3,\"zavodnik\",knt_tab!AE20)),\"\",IF(GETPIVOTDATA(\"body\",knt_tab!$AE$3,\"zavodnik\",knt_tab!AE20)=0,\"\",knt_tab!AE20))","v":"Janiš Lukáš"},{"$f":"IF(J49=\"\",\"\",GETPIVOTDATA(\"body\",knt_tab!$AE$3,\"zavodnik\",J49))","v":10},null,"",{"$f":"IF(ISERR(GETPIVOTDATA(\"body\",knt_tab!$S$3,\"zavodnik\",knt_tab!S25)),\"\",IF(GETPIVOTDATA(\"body\",knt_tab!$S$3,\"zavodnik\",knt_tab!S25)=0,\"\",knt_tab!S25))","v":""},{"$f":"IF(N49=\"\",\"\",GETPIVOTDATA(\"body\",knt_tab!$S$3,\"zavodnik\",N49))","v":""},null,8,{"$f":"IF(ISERR(GETPIVOTDATA(\"body\",knt_tab!$G$3,\"zavodnik\",knt_tab!G12)),\"\",IF(GETPIVOTDATA(\"body\",knt_tab!$G$3,\"zavodnik\",knt_tab!G12)=0,\"\",knt_tab!G12))","v":"Turčínek Tomáš"},{"$f":"IF(R49=\"\",\"\",GETPIVOTDATA(\"body\",knt_tab!$G$3,\"zavodnik\",R49))","v":40},null,"",{"$f":"IF(ISERR(GETPIVOTDATA(\"body\",knt_tab!$D$3,\"zavodnik\",knt_tab!D50)),\"\",IF(GETPIVOTDATA(\"body\",knt_tab!$D$3,\"zavodnik\",knt_tab!D50)=0,\"\",knt_tab!D50))","v":""},{"$f":"IF(V49=\"\",\"\",GETPIVOTDATA(\"body\",knt_tab!$D$3,\"zavodnik\",V49))","v":""}]
[47,{"$f":"IF(ISERR(GETPIVOTDATA(\"body\",knt_tab!$A$3,\"zavodnik\",knt_tab!A51)),\"\",IF(GETPIVOTDATA(\"body\",knt_tab!$A$3,\"zavodnik\",knt_tab!A51)=0,\"\",knt_tab!A51))","v":"Havlíčková Barbora"},{"$f":"IF(B50=\"\",\"\",GETPIVOTDATA(\"body\",knt_tab!$A$3,\"zavodnik\",B50))","v":24},null,"",{"$f":"IF(ISERR(GETPIVOTDATA(\"body\",knt_tab!$A$3,\"zavodnik\",knt_tab!A112)),\"\",IF(GETPIVOTDATA(\"body\",knt_tab!$A$3,\"zavodnik\",knt_tab!A112)=0,\"\",knt_tab!A112))","v":""},{"$f":"IF(F50=\"\",\"\",GETPIVOTDATA(\"body\",knt_tab!$A$3,\"zavodnik\",F50))","v":""},null,17,{"$f":"IF(ISERR(GETPIVOTDATA(\"body\",knt_tab!$AE$3,\"zavodnik\",knt_tab!AE21)),\"\",IF(GETPIVOTDATA(\"body\",knt_tab!$AE$3,\"zavodnik\",knt_tab!AE21)=0,\"\",knt_tab!AE21))","v":"Schöffer Radim"},{"$f":"IF(J50=\"\",\"\",GETPIVOTDATA(\"body\",knt_tab!$AE$3,\"zavodnik\",J50))","v":6},null,null,null,null,null,9,{"$f":"IF(ISERR(GETPIVOTDATA(\"body\",knt_tab!$G$3,\"zavodnik\",knt_tab!G13)),\"\",IF(GETPIVOTDATA(\"body\",knt_tab!$G$3,\"zavodnik\",knt_tab!G13)=0,\"\",knt_tab!G13))","v":"Franek Adam"},{"$f":"IF(R50=\"\",\"\",GETPIVOTDATA(\"body\",knt_tab!$G$3,\"zavodnik\",R50))","v":38},null,"",{"$f":"IF(ISERR(GETPIVOTDATA(\"body\",knt_tab!$D$3,\"zavodnik\",knt_tab!D51)),\"\",IF(GETPIVOTDATA(\"body\",knt_tab!$D$3,\"zavodnik\",knt_tab!D51)=0,\"\",knt_tab!D51))","v":""},{"$f":"IF(V50=\"\",\"\",GETPIVOTDATA(\"body\",knt_tab!$D$3,\"zavodnik\",V50))","v":""}]
[47,{"$f":"IF(ISERR(GETPIVOTDATA(\"body\",knt_tab!$A$3,\"zavodnik\",knt_tab!A52)),\"\",IF(GETPIVOTDATA(\"body\",knt_tab!$A$3,\"zavodnik\",knt_tab!A52)=0,\"\",knt_tab!A52))","v":"Neuwirt Petr"},{"$f":"IF(B51=\"\",\"\",GETPIVOTDATA(\"body\",knt_tab!$A$3,\"zavodnik\",B51))","v":24},null,"",{"$f":"IF(ISERR(GETPIVOTDATA(\"body\",knt_tab!$A$3,\"zavodnik\",knt_tab!A113)),\"\",IF(GETPIVOTDATA(\"body\",knt_tab!$A$3,\"zavodnik\",knt_tab!A113)=0,\"\",knt_tab!A113))","v":""},{"$f":"IF(F51=\"\",\"\",GETPIVOTDATA(\"body\",knt_tab!$A$3,\"zavodnik\",F51))","v":""},null,18,{"$f":"IF(ISERR(GETPIVOTDATA(\"body\",knt_tab!$AE$3,\"zavodnik\",knt_tab!AE22)),\"\",IF(GETPIVOTDATA(\"body\",knt_tab!$AE$3,\"zavodnik\",knt_tab!AE22)=0,\"\",knt_tab!AE22))","v":"Holý Martin"},{"$f":"IF(J51=\"\",\"\",GETPIVOTDATA(\"body\",knt_tab!$AE$3,\"zavodnik\",J51))","v":4},null,"starší žačky",null,null,null,10,{"$f":"IF(ISERR(GETPIVOTDATA(\"body\",knt_tab!$G$3,\"zavodnik\",knt_tab!G14)),\"\",IF(GETPIVOTDATA(\"body\",knt_tab!$G$3,\"zavodnik\",knt_tab!G14)=0,\"\",knt_tab!G14))","v":"Zabek Matyáš"},{"$f":"IF(R51=\"\",\"\",GETPIVOTDATA(\"body\",knt_tab!$G$3,\"zavodnik\",R51))","v":22},null,"",{"$f":"IF(ISERR(GETPIVOTDATA(\"body\",knt_tab!$D$3,\"zavodnik\",knt_tab!D52)),\"\",IF(GETPIVOTDATA(\"body\",knt_tab!$D$3,\"zavodnik\",knt_tab!D52)=0,\"\",knt_tab!D52))","v":""},{"$f":"IF(V51=\"\",\"\",GETPIVOTDATA(\"body\",knt_tab!$D$3,\"zavodnik\",V51))","v":""}]
[49,{"$f":"IF(ISERR(GETPIVOTDATA(\"body\",knt_tab!$A$3,\"zavodnik\",knt_tab!A53)),\"\",IF(GETPIVOTDATA(\"body\",knt_tab!$A$3,\"zavodnik\",knt_tab!A53)=0,\"\",knt_tab!A53))","v":"Čerchla Michal"},{"$f":"IF(B52=\"\",\"\",GETPIVOTDATA(\"body\",knt_tab!$A$3,\"zavodnik\",B52))","v":23},null,"",{"$f":"IF(ISERR(GETPIVOTDATA(\"body\",knt_tab!$A$3,\"zavodnik\",knt_tab!A114)),\"\",IF(GETPIVOTDATA(\"body\",knt_tab!$A$3,\"zavodnik\",knt_tab!A114)=0,\"\",knt_tab!A114))","v":""},{"$f":"IF(F52=\"\",\"\",GETPIVOTDATA(\"body\",knt_tab!$A$3,\"zavodnik\",F52))","v":""},null,19,{"$f":"IF(ISERR(GETPIVOTDATA(\"body\",knt_tab!$AE$3,\"zavodnik\",knt_tab!AE23)),\"\",IF(GETPIVOTDATA(\"body\",knt_tab!$AE$3,\"zavodnik\",knt_tab!AE23)=0,\"\",knt_tab!AE23))","v":"Frydrýšek Patrik"},{"$f":"IF(J52=\"\",\"\",GETPIVOTDATA(\"body\",knt_tab!$AE$3,\"zavodnik\",J52))","v":2},null,"Pořadí","Příjmení","body",null,11,{"$f":"IF(ISERR(GETPIVOTDATA(\"body\",knt_tab!$G$3,\"zavodnik\",knt_tab!G15)),\"\",IF(GETPIVOTDATA(\"body\",knt_tab!$G$3,\"zavodnik\",knt_tab!G15)=0,\"\",knt_tab!G15))","v":"Hrtus Rostislav"},{"$f":"IF(R52=\"\",\"\",GETPIVOTDATA(\"body\",knt_tab!$G$3,\"zavodnik\",R52))","v":14},null,"",{"$f":"IF(ISERR(GETPIVOTDATA(\"body\",knt_tab!$D$3,\"zavodnik\",knt_tab!D53)),\"\",IF(GETPIVOTDATA(\"body\",knt_tab!$D$3,\"zavodnik\",knt_tab!D53)=0,\"\",knt_tab!D53))","v":""},{"$f":"IF(V52=\"\",\"\",GETPIVOTDATA(\"body\",knt_tab!$D$3,\"zavodnik\",V52))","v":""}]
[50,{"$f":"IF(ISERR(GETPIVOTDATA(\"body\",knt_tab!$A$3,\"zavodnik\",knt_tab!A54)),\"\",IF(GETPIVOTDATA(\"body\",knt_tab!$A$3,\"zavodnik\",knt_tab!A54)=0,\"\",knt_tab!A54))","v":"Zabek Matyáš"},{"$f":"IF(B53=\"\",\"\",GETPIVOTDATA(\"body\",knt_tab!$A$3,\"zavodnik\",B53))","v":22},null,"",{"$f":"IF(ISERR(GETPIVOTDATA(\"body\",knt_tab!$A$3,\"zavodnik\",knt_tab!A115)),\"\",IF(GETPIVOTDATA(\"body\",knt_tab!$A$3,\"zavodnik\",knt_tab!A115)=0,\"\",knt_tab!A115))","v":""},{"$f":"IF(F53=\"\",\"\",GETPIVOTDATA(\"body\",knt_tab!$A$3,\"zavodnik\",F53))","v":""},null,"",{"$f":"IF(ISERR(GETPIVOTDATA(\"body\",knt_tab!$AE$3,\"zavodnik\",knt_tab!AE24)),\"\",IF(GETPIVOTDATA(\"body\",knt_tab!$AE$3,\"zavodnik\",knt_tab!AE24)=0,\"\",knt_tab!AE24))","v":""},{"$f":"IF(J53=\"\",\"\",GETPIVOTDATA(\"body\",knt_tab!$AE$3,\"zavodnik\",J53))","v":""},null,1,{"$f":"IF(ISERR(GETPIVOTDATA(\"body\",knt_tab!$P$3,\"zavodnik\",knt_tab!P5)),\"\",IF(GETPIVOTDATA(\"body\",knt_tab!$P$3,\"zavodnik\",knt_tab!P5)=0,\"\",knt_tab!P5))","v":"Ďurinová Kristýna"},{"$f":"IF(N53=\"\",\"\",GETPIVOTDATA(\"body\",knt_tab!$P$3,\"zavodnik\",N53))","v":48},null,12,{"$f":"IF(ISERR(GETPIVOTDATA(\"body\",knt_tab!$G$3,\"zavodnik\",knt_tab!G16)),\"\",IF(GETPIVOTDATA(\"body\",knt_tab!$G$3,\"zavodnik\",knt_tab!G16)=0,\"\",knt_tab!G16))","v":"Kolář Daniel"},{"$f":"IF(R53=\"\",\"\",GETPIVOTDATA(\"body\",knt_tab!$G$3,\"zavodnik\",R53))","v":13},null,"",{"$f":"IF(ISERR(GETPIVOTDATA(\"body\",knt_tab!$D$3,\"zavodnik\",knt_tab!D54)),\"\",IF(GETPIVOTDATA(\"body\",knt_tab!$D$3,\"zavodnik\",knt_tab!D54)=0,\"\",knt_tab!D54))","v":""},{"$f":"IF(V53=\"\",\"\",GETPIVOTDATA(\"body\",knt_tab!$D$3,\"zavodnik\",V53))","v":""}]
[51,{"$f":"IF(ISERR(GETPIVOTDATA(\"body\",knt_tab!$A$3,\"zavodnik\",knt_tab!A55)),\"\",IF(GETPIVOTDATA(\"body\",knt_tab!$A$3,\"zavodnik\",knt_tab!A55)=0,\"\",knt_tab!A55))","v":"Seibert Marian"},{"$f":"IF(B54=\"\",\"\",GETPIVOTDATA(\"body\",knt_tab!$A$3,\"zavodnik\",B54))","v":20},null,"",{"$f":"IF(ISERR(GETPIVOTDATA(\"body\",knt_tab!$A$3,\"zavodnik\",knt_tab!A116)),\"\",IF(GETPIVOTDATA(\"body\",knt_tab!$A$3,\"zavodnik\",knt_tab!A116)=0,\"\",knt_tab!A116))","v":""},{"$f":"IF(F54=\"\",\"\",GETPIVOTDATA(\"body\",knt_tab!$A$3,\"zavodnik\",F54))","v":""},null,"",{"$f":"IF(ISERR(GETPIVOTDATA(\"body\",knt_tab!$AE$3,\"zavodnik\",knt_tab!AE25)),\"\",IF(GETPIVOTDATA(\"body\",knt_tab!$AE$3,\"zavodnik\",knt_tab!AE25)=0,\"\",knt_tab!AE25))","v":""},{"$f":"IF(J54=\"\",\"\",GETPIVOTDATA(\"body\",knt_tab!$AE$3,\"zavodnik\",J54))","v":""},null,{"$f":"IF(N54=\"\",\"\",IF(O54=O53,M53,ROW(M54)-ROW($M$52)))","v":2},{"$f":"IF(ISERR(GETPIVOTDATA(\"body\",knt_tab!$P$3,\"zavodnik\",knt_tab!P6)),\"\",IF(GETPIVOTDATA(\"body\",knt_tab!$P$3,\"zavodnik\",knt_tab!P6)=0,\"\",knt_tab!P6))","v":"Brzusková Marie"},{"$f":"IF(N54=\"\",\"\",GETPIVOTDATA(\"body\",knt_tab!$P$3,\"zavodnik\",N54))","v":28},null,13,{"$f":"IF(ISERR(GETPIVOTDATA(\"body\",knt_tab!$G$3,\"zavodnik\",knt_tab!G17)),\"\",IF(GETPIVOTDATA(\"body\",knt_tab!$G$3,\"zavodnik\",knt_tab!G17)=0,\"\",knt_tab!G17))","v":"Jakubec Lukáš"},{"$f":"IF(R54=\"\",\"\",GETPIVOTDATA(\"body\",knt_tab!$G$3,\"zavodnik\",R54))","v":5},null,"",{"$f":"IF(ISERR(GETPIVOTDATA(\"body\",knt_tab!$D$3,\"zavodnik\",knt_tab!D55)),\"\",IF(GETPIVOTDATA(\"body\",knt_tab!$D$3,\"zavodnik\",knt_tab!D55)=0,\"\",knt_tab!D55))","v":""},{"$f":"IF(V54=\"\",\"\",GETPIVOTDATA(\"body\",knt_tab!$D$3,\"zavodnik\",V54))","v":""}]
[51,{"$f":"IF(ISERR(GETPIVOTDATA(\"body\",knt_tab!$A$3,\"zavodnik\",knt_tab!A56)),\"\",IF(GETPIVOTDATA(\"body\",knt_tab!$A$3,\"zavodnik\",knt_tab!A56)=0,\"\",knt_tab!A56))","v":"Martínek Roman"},{"$f":"IF(B55=\"\",\"\",GETPIVOTDATA(\"body\",knt_tab!$A$3,\"zavodnik\",B55))","v":20},null,"",{"$f":"IF(ISERR(GETPIVOTDATA(\"body\",knt_tab!$A$3,\"zavodnik\",knt_tab!A117)),\"\",IF(GETPIVOTDATA(\"body\",knt_tab!$A$3,\"zavodnik\",knt_tab!A117)=0,\"\",knt_tab!A117))","v":""},{"$f":"IF(F55=\"\",\"\",GETPIVOTDATA(\"body\",knt_tab!$A$3,\"zavodnik\",F55))","v":""},null,null,null,null,null,{"$f":"IF(N55=\"\",\"\",IF(O55=O54,M54,ROW(M55)-ROW($M$52)))","v":3},{"$f":"IF(ISERR(GETPIVOTDATA(\"body\",knt_tab!$P$3,\"zavodnik\",knt_tab!P7)),\"\",IF(GETPIVOTDATA(\"body\",knt_tab!$P$3,\"zavodnik\",knt_tab!P7)=0,\"\",knt_tab!P7))","v":"Havlíčková Barbora"},{"$f":"IF(N55=\"\",\"\",GETPIVOTDATA(\"body\",knt_tab!$P$3,\"zavodnik\",N55))","v":24},null,14,{"$f":"IF(ISERR(GETPIVOTDATA(\"body\",knt_tab!$G$3,\"zavodnik\",knt_tab!G18)),\"\",IF(GETPIVOTDATA(\"body\",knt_tab!$G$3,\"zavodnik\",knt_tab!G18)=0,\"\",knt_tab!G18))","v":"Částečka Filip"},{"$f":"IF(R55=\"\",\"\",GETPIVOTDATA(\"body\",knt_tab!$G$3,\"zavodnik\",R55))","v":4},null,"",{"$f":"IF(ISERR(GETPIVOTDATA(\"body\",knt_tab!$D$3,\"zavodnik\",knt_tab!D56)),\"\",IF(GETPIVOTDATA(\"body\",knt_tab!$D$3,\"zavodnik\",knt_tab!D56)=0,\"\",knt_tab!D56))","v":""},{"$f":"IF(V55=\"\",\"\",GETPIVOTDATA(\"body\",knt_tab!$D$3,\"zavodnik\",V55))","v":""}]
[53,{"$f":"IF(ISERR(GETPIVOTDATA(\"body\",knt_tab!$A$3,\"zavodnik\",knt_tab!A57)),\"\",IF(GETPIVOTDATA(\"body\",knt_tab!$A$3,\"zavodnik\",knt_tab!A57)=0,\"\",knt_tab!A57))","v":"Frydrýšek Patrik"},{"$f":"IF(B56=\"\",\"\",GETPIVOTDATA(\"body\",knt_tab!$A$3,\"zavodnik\",B56))","v":19},null,"",{"$f":"IF(ISERR(GETPIVOTDATA(\"body\",knt_tab!$A$3,\"zavodnik\",knt_tab!A118)),\"\",IF(GETPIVOTDATA(\"body\",knt_tab!$A$3,\"zavodnik\",knt_tab!A118)=0,\"\",knt_tab!A118))","v":""},{"$f":"IF(F56=\"\",\"\",GETPIVOTDATA(\"body\",knt_tab!$A$3,\"zavodnik\",F56))","v":""},null,"Juniorky",null,null,null,{"$f":"IF(N56=\"\",\"\",IF(O56=O55,M55,ROW(M56)-ROW($M$52)))","v":4},{"$f":"IF(ISERR(GETPIVOTDATA(\"body\",knt_tab!$P$3,\"zavodnik\",knt_tab!P8)),\"\",IF(GETPIVOTDATA(\"body\",knt_tab!$P$3,\"zavodnik\",knt_tab!P8)=0,\"\",knt_tab!P8))","v":"Kuncová Viktorie"},{"$f":"IF(N56=\"\",\"\",GETPIVOTDATA(\"body\",knt_tab!$P$3,\"zavodnik\",N56))","v":20},null,14,{"$f":"IF(ISERR(GETPIVOTDATA(\"body\",knt_tab!$G$3,\"zavodnik\",knt_tab!G19)),\"\",IF(GETPIVOTDATA(\"body\",knt_tab!$G$3,\"zavodnik\",knt_tab!G19)=0,\"\",knt_tab!G19))","v":"Pelikán Dominik"},{"$f":"IF(R56=\"\",\"\",GETPIVOTDATA(\"body\",knt_tab!$G$3,\"zavodnik\",R56))","v":4},null,"",{"$f":"IF(ISERR(GETPIVOTDATA(\"body\",knt_tab!$D$3,\"zavodnik\",knt_tab!D57)),\"\",IF(GETPIVOTDATA(\"body\",knt_tab!$D$3,\"zavodnik\",knt_tab!D57)=0,\"\",knt_tab!D57))","v":""},{"$f":"IF(V56=\"\",\"\",GETPIVOTDATA(\"body\",knt_tab!$D$3,\"zavodnik\",V56))","v":""}]
[53,{"$f":"IF(ISERR(GETPIVOTDATA(\"body\",knt_tab!$A$3,\"zavodnik\",knt_tab!A58)),\"\",IF(GETPIVOTDATA(\"body\",knt_tab!$A$3,\"zavodnik\",knt_tab!A58)=0,\"\",knt_tab!A58))","v":"Chmela Tomáš"},{"$f":"IF(B57=\"\",\"\",GETPIVOTDATA(\"body\",knt_tab!$A$3,\"zavodnik\",B57))","v":19},null,{"$f":"IF(F57=\"\",\"\",IF(G57=G56,E56,ROW(E57)-ROW($E$3)+61))","v":""},{"$f":"IF(ISERR(GETPIVOTDATA(\"body\",knt_tab!$A$3,\"zavodnik\",knt_tab!A119)),\"\",IF(GETPIVOTDATA(\"body\",knt_tab!$A$3,\"zavodnik\",knt_tab!A119)=0,\"\",knt_tab!A119))","v":""},{"$f":"IF(F57=\"\",\"\",GETPIVOTDATA(\"body\",knt_tab!$A$3,\"zavodnik\",F57))","v":""},null,"Pořadí","Příjmení","body",null,{"$f":"IF(N57=\"\",\"\",IF(O57=O56,M56,ROW(M57)-ROW($M$52)))","v":5},{"$f":"IF(ISERR(GETPIVOTDATA(\"body\",knt_tab!$P$3,\"zavodnik\",knt_tab!P9)),\"\",IF(GETPIVOTDATA(\"body\",knt_tab!$P$3,\"zavodnik\",knt_tab!P9)=0,\"\",knt_tab!P9))","v":"Křenková Marie"},{"$f":"IF(N57=\"\",\"\",GETPIVOTDATA(\"body\",knt_tab!$P$3,\"zavodnik\",N57))","v":8},null,16,{"$f":"IF(ISERR(GETPIVOTDATA(\"body\",knt_tab!$G$3,\"zavodnik\",knt_tab!G20)),\"\",IF(GETPIVOTDATA(\"body\",knt_tab!$G$3,\"zavodnik\",knt_tab!G20)=0,\"\",knt_tab!G20))","v":"Tomek David"},{"$f":"IF(R57=\"\",\"\",GETPIVOTDATA(\"body\",knt_tab!$G$3,\"zavodnik\",R57))","v":1},null,"",{"$f":"IF(ISERR(GETPIVOTDATA(\"body\",knt_tab!$D$3,\"zavodnik\",knt_tab!D58)),\"\",IF(GETPIVOTDATA(\"body\",knt_tab!$D$3,\"zavodnik\",knt_tab!D58)=0,\"\",knt_tab!D58))","v":""},{"$f":"IF(V57=\"\",\"\",GETPIVOTDATA(\"body\",knt_tab!$D$3,\"zavodnik\",V57))","v":""}]
[53,{"$f":"IF(ISERR(GETPIVOTDATA(\"body\",knt_tab!$A$3,\"zavodnik\",knt_tab!A59)),\"\",IF(GETPIVOTDATA(\"body\",knt_tab!$A$3,\"zavodnik\",knt_tab!A59)=0,\"\",knt_tab!A59))","v":"Otto Matyáš"},{"$f":"IF(B58=\"\",\"\",GETPIVOTDATA(\"body\",knt_tab!$A$3,\"zavodnik\",B58))","v":19},null,"",{"$f":"IF(ISERR(GETPIVOTDATA(\"body\",knt_tab!$A$3,\"zavodnik\",knt_tab!A120)),\"\",IF(GETPIVOTDATA(\"body\",knt_tab!$A$3,\"zavodnik\",knt_tab!A120)=0,\"\",knt_tab!A120))","v":""},{"$f":"IF(F58=\"\",\"\",GETPIVOTDATA(\"body\",knt_tab!$A$3,\"zavodnik\",F58))","v":""},null,1,{"$f":"IF(ISERR(GETPIVOTDATA(\"body\",knt_tab!$AB$3,\"zavodnik\",knt_tab!AB5)),\"\",IF(GETPIVOTDATA(\"body\",knt_tab!$AB$3,\"zavodnik\",knt_tab!AB5)=0,\"\",knt_tab!AB5))","v":"Chwastarzová Alena"},{"$f":"IF(J58=\"\",\"\",GETPIVOTDATA(\"body\",knt_tab!$AB$3,\"zavodnik\",J58))","v":13},null,"",{"$f":"IF(ISERR(GETPIVOTDATA(\"body\",knt_tab!$P$3,\"zavodnik\",knt_tab!P10)),\"\",IF(GETPIVOTDATA(\"body\",knt_tab!$P$3,\"zavodnik\",knt_tab!P10)=0,\"\",knt_tab!P10))","v":""},{"$f":"IF(N58=\"\",\"\",GETPIVOTDATA(\"body\",knt_tab!$P$3,\"zavodnik\",N58))","v":""},null,16,{"$f":"IF(ISERR(GETPIVOTDATA(\"body\",knt_tab!$G$3,\"zavodnik\",knt_tab!G21)),\"\",IF(GETPIVOTDATA(\"body\",knt_tab!$G$3,\"zavodnik\",knt_tab!G21)=0,\"\",knt_tab!G21))","v":"Matýsek Jan"},{"$f":"IF(R58=\"\",\"\",GETPIVOTDATA(\"body\",knt_tab!$G$3,\"zavodnik\",R58))","v":1},null,"",{"$f":"IF(ISERR(GETPIVOTDATA(\"body\",knt_tab!$D$3,\"zavodnik\",knt_tab!D59)),\"\",IF(GETPIVOTDATA(\"body\",knt_tab!$D$3,\"zavodnik\",knt_tab!D59)=0,\"\",knt_tab!D59))","v":""},{"$f":"IF(V58=\"\",\"\",GETPIVOTDATA(\"body\",knt_tab!$D$3,\"zavodnik\",V58))","v":""}]
[56,{"$f":"IF(ISERR(GETPIVOTDATA(\"body\",knt_tab!$A$3,\"zavodnik\",knt_tab!A60)),\"\",IF(GETPIVOTDATA(\"body\",knt_tab!$A$3,\"zavodnik\",knt_tab!A60)=0,\"\",knt_tab!A60))","v":"Moravec Vlastimil"},{"$f":"IF(B59=\"\",\"\",GETPIVOTDATA(\"body\",knt_tab!$A$3,\"zavodnik\",B59))","v":18},null,"",{"$f":"IF(ISERR(GETPIVOTDATA(\"body\",knt_tab!$A$3,\"zavodnik\",knt_tab!A121)),\"\",IF(GETPIVOTDATA(\"body\",knt_tab!$A$3,\"zavodnik\",knt_tab!A121)=0,\"\",knt_tab!A121))","v":""},{"$f":"IF(F59=\"\",\"\",GETPIVOTDATA(\"body\",knt_tab!$A$3,\"zavodnik\",F59))","v":""},null,{"$f":"IF(J59=\"\",\"\",IF(K59=K58,I58,ROW(I59)-ROW($I$57)))","v":""},{"$f":"IF(ISERR(GETPIVOTDATA(\"body\",knt_tab!$AB$3,\"zavodnik\",knt_tab!AB6)),\"\",IF(GETPIVOTDATA(\"body\",knt_tab!$AB$3,\"zavodnik\",knt_tab!AB6)=0,\"\",knt_tab!AB6))","v":""},{"$f":"IF(J59=\"\",\"\",GETPIVOTDATA(\"body\",knt_tab!$AB$3,\"zavodnik\",J59))","v":""},null,"",{"$f":"IF(ISERR(GETPIVOTDATA(\"body\",knt_tab!$P$3,\"zavodnik\",knt_tab!P11)),\"\",IF(GETPIVOTDATA(\"body\",knt_tab!$P$3,\"zavodnik\",knt_tab!P11)=0,\"\",knt_tab!P11))","v":""},{"$f":"IF(N59=\"\",\"\",GETPIVOTDATA(\"body\",knt_tab!$P$3,\"zavodnik\",N59))","v":""},null,"",{"$f":"IF(ISERR(GETPIVOTDATA(\"body\",knt_tab!$G$3,\"zavodnik\",knt_tab!G22)),\"\",IF(GETPIVOTDATA(\"body\",knt_tab!$G$3,\"zavodnik\",knt_tab!G22)=0,\"\",knt_tab!G22))","v":""},{"$f":"IF(R59=\"\",\"\",GETPIVOTDATA(\"body\",knt_tab!$G$3,\"zavodnik\",R59))","v":""},null,"",{"$f":"IF(ISERR(GETPIVOTDATA(\"body\",knt_tab!$D$3,\"zavodnik\",knt_tab!D60)),\"\",IF(GETPIVOTDATA(\"body\",knt_tab!$D$3,\"zavodnik\",knt_tab!D60)=0,\"\",knt_tab!D60))","v":""},{"$f":"IF(V59=\"\",\"\",GETPIVOTDATA(\"body\",knt_tab!$D$3,\"zavodnik\",V59))","v":""}]
[57,{"$f":"IF(ISERR(GETPIVOTDATA(\"body\",knt_tab!$A$3,\"zavodnik\",knt_tab!A61)),\"\",IF(GETPIVOTDATA(\"body\",knt_tab!$A$3,\"zavodnik\",knt_tab!A61)=0,\"\",knt_tab!A61))","v":"Šmatelka Ondřej"},{"$f":"IF(B60=\"\",\"\",GETPIVOTDATA(\"body\",knt_tab!$A$3,\"zavodnik\",B60))","v":17},null,"",{"$f":"IF(ISERR(GETPIVOTDATA(\"body\",knt_tab!$A$3,\"zavodnik\",knt_tab!A122)),\"\",IF(GETPIVOTDATA(\"body\",knt_tab!$A$3,\"zavodnik\",knt_tab!A122)=0,\"\",knt_tab!A122))","v":""},{"$f":"IF(F60=\"\",\"\",GETPIVOTDATA(\"body\",knt_tab!$A$3,\"zavodnik\",F60))","v":""},null,{"$f":"IF(J60=\"\",\"\",IF(K60=K59,I59,ROW(I60)-ROW($I$57)))","v":""},{"$f":"IF(ISERR(GETPIVOTDATA(\"body\",knt_tab!$AB$3,\"zavodnik\",knt_tab!AB7)),\"\",IF(GETPIVOTDATA(\"body\",knt_tab!$AB$3,\"zavodnik\",knt_tab!AB7)=0,\"\",knt_tab!AB7))","v":""},{"$f":"IF(J60=\"\",\"\",GETPIVOTDATA(\"body\",knt_tab!$AB$3,\"zavodnik\",J60))","v":""},null,"",{"$f":"IF(ISERR(GETPIVOTDATA(\"body\",knt_tab!$P$3,\"zavodnik\",knt_tab!P12)),\"\",IF(GETPIVOTDATA(\"body\",knt_tab!$P$3,\"zavodnik\",knt_tab!P12)=0,\"\",knt_tab!P12))","v":""},{"$f":"IF(N60=\"\",\"\",GETPIVOTDATA(\"body\",knt_tab!$P$3,\"zavodnik\",N60))","v":""},null,"",{"$f":"IF(ISERR(GETPIVOTDATA(\"body\",knt_tab!$G$3,\"zavodnik\",knt_tab!G23)),\"\",IF(GETPIVOTDATA(\"body\",knt_tab!$G$3,\"zavodnik\",knt_tab!G23)=0,\"\",knt_tab!G23))","v":""},{"$f":"IF(R60=\"\",\"\",GETPIVOTDATA(\"body\",knt_tab!$G$3,\"zavodnik\",R60))","v":""},null,"",{"$f":"IF(ISERR(GETPIVOTDATA(\"body\",knt_tab!$D$3,\"zavodnik\",knt_tab!D61)),\"\",IF(GETPIVOTDATA(\"body\",knt_tab!$D$3,\"zavodnik\",knt_tab!D61)=0,\"\",knt_tab!D61))","v":""},{"$f":"IF(V60=\"\",\"\",GETPIVOTDATA(\"body\",knt_tab!$D$3,\"zavodnik\",V60))","v":""}]
[57,{"$f":"IF(ISERR(GETPIVOTDATA(\"body\",knt_tab!$A$3,\"zavodnik\",knt_tab!A62)),\"\",IF(GETPIVOTDATA(\"body\",knt_tab!$A$3,\"zavodnik\",knt_tab!A62)=0,\"\",knt_tab!A62))","v":"Chlebový Arnold"},{"$f":"IF(B61=\"\",\"\",GETPIVOTDATA(\"body\",knt_tab!$A$3,\"zavodnik\",B61))","v":17},null,"",{"$f":"IF(ISERR(GETPIVOTDATA(\"body\",knt_tab!$A$3,\"zavodnik\",knt_tab!A123)),\"\",IF(GETPIVOTDATA(\"body\",knt_tab!$A$3,\"zavodnik\",knt_tab!A123)=0,\"\",knt_tab!A123))","v":""},{"$f":"IF(F61=\"\",\"\",GETPIVOTDATA(\"body\",knt_tab!$A$3,\"zavodnik\",F61))","v":""},null,{"$f":"IF(J61=\"\",\"\",IF(K61=K60,I60,ROW(I61)-ROW($I$57)))","v":""},{"$f":"IF(ISERR(GETPIVOTDATA(\"body\",knt_tab!$AB$3,\"zavodnik\",knt_tab!AB8)),\"\",IF(GETPIVOTDATA(\"body\",knt_tab!$AB$3,\"zavodnik\",knt_tab!AB8)=0,\"\",knt_tab!AB8))","v":""},{"$f":"IF(J61=\"\",\"\",GETPIVOTDATA(\"body\",knt_tab!$AB$3,\"zavodnik\",J61))","v":""},null,"",{"$f":"IF(ISERR(GETPIVOTDATA(\"body\",knt_tab!$P$3,\"zavodnik\",knt_tab!P13)),\"\",IF(GETPIVOTDATA(\"body\",knt_tab!$P$3,\"zavodnik\",knt_tab!P13)=0,\"\",knt_tab!P13))","v":""},{"$f":"IF(N61=\"\",\"\",GETPIVOTDATA(\"body\",knt_tab!$P$3,\"zavodnik\",N61))","v":""},null,"",{"$f":"IF(ISERR(GETPIVOTDATA(\"body\",knt_tab!$G$3,\"zavodnik\",knt_tab!G24)),\"\",IF(GETPIVOTDATA(\"body\",knt_tab!$G$3,\"zavodnik\",knt_tab!G24)=0,\"\",knt_tab!G24))","v":""},{"$f":"IF(R61=\"\",\"\",GETPIVOTDATA(\"body\",knt_tab!$G$3,\"zavodnik\",R61))","v":""},null,"",{"$f":"IF(ISERR(GETPIVOTDATA(\"body\",knt_tab!$D$3,\"zavodnik\",knt_tab!D62)),\"\",IF(GETPIVOTDATA(\"body\",knt_tab!$D$3,\"zavodnik\",knt_tab!D62)=0,\"\",knt_tab!D62))","v":""},{"$f":"IF(V61=\"\",\"\",GETPIVOTDATA(\"body\",knt_tab!$D$3,\"zavodnik\",V61))","v":""}]
[59,{"$f":"IF(ISERR(GETPIVOTDATA(\"body\",knt_tab!$A$3,\"zavodnik\",knt_tab!A63)),\"\",IF(GETPIVOTDATA(\"body\",knt_tab!$A$3,\"zavodnik\",knt_tab!A63)=0,\"\",knt_tab!A63))","v":"Krčmář Jakub"},{"$f":"IF(B62=\"\",\"\",GETPIVOTDATA(\"body\",knt_tab!$A$3,\"zavodnik\",B62))","v":16},null,"",{"$f":"IF(ISERR(GETPIVOTDATA(\"body\",knt_tab!$A$3,\"zavodnik\",knt_tab!A124)),\"\",IF(GETPIVOTDATA(\"body\",knt_tab!$A$3,\"zavodnik\",knt_tab!A124)=0,\"\",knt_tab!A124))","v":""},{"$f":"IF(F62=\"\",\"\",GETPIVOTDATA(\"body\",knt_tab!$A$3,\"zavodnik\",F62))","v":""},null,{"$f":"IF(J62=\"\",\"\",IF(K62=K61,I61,ROW(I62)-ROW($I$57)))","v":""},{"$f":"IF(ISERR(GETPIVOTDATA(\"body\",knt_tab!$AB$3,\"zavodnik\",knt_tab!AB9)),\"\",IF(GETPIVOTDATA(\"body\",knt_tab!$AB$3,\"zavodnik\",knt_tab!AB9)=0,\"\",knt_tab!AB9))","v":""},{"$f":"IF(J62=\"\",\"\",GETPIVOTDATA(\"body\",knt_tab!$AB$3,\"zavodnik\",J62))","v":""},null,"",{"$f":"IF(ISERR(GETPIVOTDATA(\"body\",knt_tab!$P$3,\"zavodnik\",knt_tab!P14)),\"\",IF(GETPIVOTDATA(\"body\",knt_tab!$P$3,\"zavodnik\",knt_tab!P14)=0,\"\",knt_tab!P14))","v":""},{"$f":"IF(N62=\"\",\"\",GETPIVOTDATA(\"body\",knt_tab!$P$3,\"zavodnik\",N62))","v":""},null,"",{"$f":"IF(ISERR(GETPIVOTDATA(\"body\",knt_tab!$G$3,\"zavodnik\",knt_tab!G25)),\"\",IF(GETPIVOTDATA(\"body\",knt_tab!$G$3,\"zavodnik\",knt_tab!G25)=0,\"\",knt_tab!G25))","v":""},{"$f":"IF(R62=\"\",\"\",GETPIVOTDATA(\"body\",knt_tab!$G$3,\"zavodnik\",R62))","v":""},null,"",{"$f":"IF(ISERR(GETPIVOTDATA(\"body\",knt_tab!$D$3,\"zavodnik\",knt_tab!D63)),\"\",IF(GETPIVOTDATA(\"body\",knt_tab!$D$3,\"zavodnik\",knt_tab!D63)=0,\"\",knt_tab!D63))","v":""},{"$f":"IF(V62=\"\",\"\",GETPIVOTDATA(\"body\",knt_tab!$D$3,\"zavodnik\",V62))","v":""}]
[60,{"$f":"IF(ISERR(GETPIVOTDATA(\"body\",knt_tab!$A$3,\"zavodnik\",knt_tab!A64)),\"\",IF(GETPIVOTDATA(\"body\",knt_tab!$A$3,\"zavodnik\",knt_tab!A64)=0,\"\",knt_tab!A64))","v":"Malcová Sabrina"},{"$f":"IF(B63=\"\",\"\",GETPIVOTDATA(\"body\",knt_tab!$A$3,\"zavodnik\",B63))","v":15},null,"",{"$f":"IF(ISERR(GETPIVOTDATA(\"body\",knt_tab!$A$3,\"zavodnik\",knt_tab!A125)),\"\",IF(GETPIVOTDATA(\"body\",knt_tab!$A$3,\"zavodnik\",knt_tab!A125)=0,\"\",knt_tab!A125))","v":""},{"$f":"IF(F63=\"\",\"\",GETPIVOTDATA(\"body\",knt_tab!$A$3,\"zavodnik\",F63))","v":""},null,{"$f":"IF(J63=\"\",\"\",IF(K63=K62,I62,ROW(I63)-ROW($I$57)))","v":""},{"$f":"IF(ISERR(GETPIVOTDATA(\"body\",knt_tab!$AB$3,\"zavodnik\",knt_tab!AB10)),\"\",IF(GETPIVOTDATA(\"body\",knt_tab!$AB$3,\"zavodnik\",knt_tab!AB10)=0,\"\",knt_tab!AB10))","v":""},{"$f":"IF(J63=\"\",\"\",GETPIVOTDATA(\"body\",knt_tab!$AB$3,\"zavodnik\",J63))","v":""},null,"",{"$f":"IF(ISERR(GETPIVOTDATA(\"body\",knt_tab!$P$3,\"zavodnik\",knt_tab!P15)),\"\",IF(GETPIVOTDATA(\"body\",knt_tab!$P$3,\"zavodnik\",knt_tab!P15)=0,\"\",knt_tab!P15))","v":""},{"$f":"IF(N63=\"\",\"\",GETPIVOTDATA(\"body\",knt_tab!$P$3,\"zavodnik\",N63))","v":""},null,"",{"$f":"IF(ISERR(GETPIVOTDATA(\"body\",knt_tab!$G$3,\"zavodnik\",knt_tab!G26)),\"\",IF(GETPIVOTDATA(\"body\",knt_tab!$G$3,\"zavodnik\",knt_tab!G26)=0,\"\",knt_tab!G26))","v":""},{"$f":"IF(R63=\"\",\"\",GETPIVOTDATA(\"body\",knt_tab!$G$3,\"zavodnik\",R63))","v":""},null,"",{"$f":"IF(ISERR(GETPIVOTDATA(\"body\",knt_tab!$D$3,\"zavodnik\",knt_tab!D64)),\"\",IF(GETPIVOTDATA(\"body\",knt_tab!$D$3,\"zavodnik\",knt_tab!D64)=0,\"\",knt_tab!D64))","v":""},{"$f":"IF(V63=\"\",\"\",GETPIVOTDATA(\"body\",knt_tab!$D$3,\"zavodnik\",V63))","v":""}]